Service Delivery Area,Service Delivery Team,CC,Expenditure Group,Nominal Description,Supplier Name,Transaction date,System Reference,Value
Care & Support (Adults & Children),Commissioning for Children & Young People & Families,CCE,SUPPLIES & SERVICES           ,Other Grants (Expenses)       ,TELFORD & WREKIN PCT                    ,07-Mar-11,3209354,25219.5
Care & Support (Adults & Children),Commissioning for Children & Young People & Families,CDC,SUPPLIES & SERVICES           ,Other Grants (Expenses)       ,TELFORD & WREKIN C V S                  ,14-Jan-11,3198914,24000
Care & Support (Adults & Children),Commissioning for Children & Young People & Families,CXG,CURRENT LIABILITIES           ,Receipts                      ,TELFORD & WREKIN PCT                    ,09-Mar-11,3215171,5460
Care & Support (Adults & Children),Housing and Personalisation,GJL,INCOME                        ,Other Receipts                ,WEST MERCIA POLICE AUTHORITY            ,23-Feb-11,3213985,4471.98
Care & Support (Adults & Children),Integrated Disabilities,CBS,THIRD PARTY PAYMENTS          ,Private Contractors           ,ACTION FOR CHILDREN LIMITED             ,27-Jan-11,3201186,135000
Care & Support (Adults & Children),Integrated Disabilities,CBV,SUPPLIES & SERVICES           ,Adaptations                   ,G & S SMIRTHWAITE LTD                   ,18-Feb-11,3208688,1302
Care & Support (Adults & Children),Integrated Disabilities,CBV,SUPPLIES & SERVICES           ,Adaptations                   ,G & S SMIRTHWAITE LTD                   ,25-Mar-11,3220218,2470
Care & Support (Adults & Children),Integrated Disabilities,CCD,TRANSPORT                     ,Travelling Expenses General   ,CENTRAL TAXIS LIMITED                   ,28-Feb-11,3209203,639
Care & Support (Adults & Children),Integrated Disabilities,CCD,THIRD PARTY PAYMENTS          ,Agency Services               ,D H HOMECARE LTD                        ,01-Oct-10,3199515,944.5
Care & Support (Adults & Children),Integrated Disabilities,CCO,EMPLOYEES                     ,Agency Supply Costs           ,ACTION FOR CHILDREN LIMITED             ,18-Mar-11,3214985,3373.66
Care & Support (Adults & Children),Integrated Disabilities,CCO,EMPLOYEES                     ,Course Fees                   ,IMPACT UNIVERSAL LTD                    ,03-Mar-11,3214918,11600
Care & Support (Adults & Children),Integrated Disabilities,CCO,SUPPLIES & SERVICES           ,Grants To Voluntary Organis   ,ACTION FOR CHILDREN LIMITED             ,25-Nov-10,3201182,53576
Care & Support (Adults & Children),"Joint Commissioning - Older People, Disability and Carers",CDQ,SUPPLIES & SERVICES           ,Other Grants (Expenses)       ,BRITISH RED CROSS SOC (SCOTLAND PRO UNIT,01-Feb-11,3201690,5645.79
Care & Support (Adults & Children),"Joint Commissioning - Older People, Disability and Carers",CDQ,SUPPLIES & SERVICES           ,Other Grants (Expenses)       ,COMMUNITY COUNCIL OF SHROPSHIRE         ,02-Feb-11,3201691,13472.16
Care & Support (Adults & Children),"Joint Commissioning - Older People, Disability and Carers",CDQ,SUPPLIES & SERVICES           ,Other Grants (Expenses)       ,A4U                                     ,07-Feb-11,3211179,13559.76
Care & Support (Adults & Children),"Joint Commissioning - Older People, Disability and Carers",CFB,EMPLOYEES                     ,Course Fees                   ,CJ WELLINGS LTD                         ,26-Jan-11,3214960,720
Care & Support (Adults & Children),"Joint Commissioning - Older People, Disability and Carers",CFB,TRANSPORT                     ,Mileage                       ,TELFORD & WREKIN PCT                    ,18-Mar-11,3217047,755.96
Care & Support (Adults & Children),"Joint Commissioning - Older People, Disability and Carers",CFB,PREMISES                      ,Electricity                   ,NPOWER                                  ,21-Mar-11,3215978,1477.38
Care & Support (Adults & Children),Learning Disabilities,CFX,INCOME                        ,Other Receipts                ,SELF UNLIMITED                          ,28-Feb-11,3210987,2166
Care & Support (Adults & Children),Learning Disabilities,CFX,INCOME                        ,Other Receipts                ,D B MILLWARD PLUMBING & MAINTENANCE SVS ,06-Mar-11,3214952,5973
Care & Support (Adults & Children),Learning Disabilities,CGF,SUPPLIES & SERVICES           ,Laundry & Towel Hire          ,PHS GROUP LTD                           ,18-Mar-11,3215915,643.5
Care & Support (Adults & Children),Learning Disabilities,CGH,PREMISES                      ,Gas                           ,WEST MERCIA SUPPLIES                    ,18-Feb-11,3203129,1433.03
Care & Support (Adults & Children),Learning Disabilities,CGJ,SUPPLIES & SERVICES           ,Equipment - Purchase          ,QUEST 88 LIMITED                        ,18-Mar-11,3215282,785
Care & Support (Adults & Children),Learning Disabilities,CGJ,SUPPLIES & SERVICES           ,Equipment - Purchase          ,GRANVILLE CONSTRUCTION & MAINTENANCE LTD,09-Mar-11,3210327,1963
Care & Support (Adults & Children),Learning Disabilities,CGQ,THIRD PARTY PAYMENTS          ,Private Contractors           ,CREATIVE SUPPORT LTD                    ,15-Mar-11,3211202,525.08
Care & Support (Adults & Children),Learning Disabilities,CGQ,THIRD PARTY PAYMENTS          ,Private Contractors           ,CREATIVE SUPPORT LTD                    ,15-Mar-11,3211203,906.96
Care & Support (Adults & Children),Learning Disabilities,CGQ,THIRD PARTY PAYMENTS          ,Private Contractors           ,CREATIVE SUPPORT LTD                    ,15-Mar-11,3211204,1002.12
Care & Support (Adults & Children),Learning Disabilities,CGQ,THIRD PARTY PAYMENTS          ,Private Contractors           ,CREATIVE SUPPORT LTD                    ,16-Feb-11,3199661,1749.88
Care & Support (Adults & Children),Learning Disabilities,CGQ,THIRD PARTY PAYMENTS          ,Private Contractors           ,CREATIVE SUPPORT LTD                    ,15-Mar-11,3218912,1749.88
Care & Support (Adults & Children),Learning Disabilities,CGQ,SUPPLIES & SERVICES           ,Other Grants (Expenses)       ,CREATIVE SUPPORT LTD                    ,16-Feb-11,3199660,5204.16
Care & Support (Adults & Children),Learning Disabilities,CGQ,SUPPLIES & SERVICES           ,Other Grants (Expenses)       ,CREATIVE SUPPORT LTD                    ,15-Mar-11,3218913,5204.16
Care & Support (Adults & Children),Learning Disabilities,CGQ,THIRD PARTY PAYMENTS          ,Private Contractors           ,CREATIVE SUPPORT LTD                    ,16-Feb-11,3199660,16324.6
Care & Support (Adults & Children),Learning Disabilities,CGQ,THIRD PARTY PAYMENTS          ,Private Contractors           ,CREATIVE SUPPORT LTD                    ,15-Mar-11,3218913,16324.6
Care & Support (Adults & Children),Learning Disabilities,CGR,PREMISES                      ,Gas                           ,MIDLANDS WOOD FUEL SUPPLY LTD           ,30-Mar-11,3219757,525.88
Care & Support (Adults & Children),Learning Disabilities,CGR,SUPPLIES & SERVICES           ,Nursing Equipment             ,HOSPITAL DIRECT (MARKETING) LTD         ,25-Feb-11,3211967,556.81
Care & Support (Adults & Children),Learning Disabilities,CGR,PREMISES                      ,Gas                           ,WEST MERCIA SUPPLIES                    ,22-Dec-10,3208745,662.68
Care & Support (Adults & Children),Learning Disabilities,CGR,PREMISES                      ,Gas                           ,WEST MERCIA SUPPLIES                    ,18-Feb-11,3209519,1036.76
Care & Support (Adults & Children),Learning Disabilities,CGR,SUPPLIES & SERVICES           ,Pocket Money/Home Leave       ,FAIRSHARE CREDIT UNION LTD              ,15-Mar-11,3214913,3797.16
Care & Support (Adults & Children),Learning Disabilities,CGS,CAPITAL FINANCING             ,Leased transport funded by service users mobility allowance,LEX AUTOLEASE LTD                       ,13-Feb-11,3204490,500.14
Care & Support (Adults & Children),Learning Disabilities,CGS,CAPITAL FINANCING             ,Leased transport funded by service users mobility allowance,LEX AUTOLEASE LTD                       ,24-Mar-11,3215893,500.14
Care & Support (Adults & Children),Learning Disabilities,CGS,PREMISES                      ,Clean Mats & Toilet Requisites,PHS ALL CLEAR                           ,28-Feb-11,3215168,844.25
Care & Support (Adults & Children),Learning Disabilities,CGS,SUPPLIES & SERVICES           ,Disability Living Allowance   ,BARCLAYS BANK PLC ,21-Feb-11,3199644,1215.21
Care & Support (Adults & Children),Learning Disabilities,CGS,PREMISES                      ,Electricity                   ,WEST MERCIA SUPPLIES                    ,10-Mar-11,3215175,2123.67
Care & Support (Adults & Children),Learning Disabilities,CGT,PREMISES                      ,General Rents                 ,BOURNVILLE VILLAGE TRUST                ,01-Apr-11,3213967,1785
Care & Support (Adults & Children),Learning Disabilities,CGT,PREMISES                      ,General Rents                 ,BOURNVILLE VILLAGE TRUST                ,01-Apr-11,3214182,2400
Care & Support (Adults & Children),Learning Disabilities,CGX,PREMISES                      ,Gas                           ,WEST MERCIA SUPPLIES                    ,18-Feb-11,3199714,513.2
Care & Support (Adults & Children),Learning Disabilities,CGY,PREMISES                      ,Gas                           ,WEST MERCIA SUPPLIES                    ,18-Feb-11,3201819,530.18
Care & Support (Adults & Children),Learning Disabilities,CGY,PREMISES                      ,Water Rates                   ,SEVERN TRENT WATER LTD                  ,14-Mar-11,3215125,1877.98
Care & Support (Adults & Children),Learning Disabilities,CHA,PREMISES                      ,General Rents                 ,BAKER PROPERTY SERVICES                 ,09-Feb-11,3209004,675
Care & Support (Adults & Children),Learning Disabilities,CHA,SUPPLIES & SERVICES           ,Equipment - Repair            ,JONES & HAMPTON LTD                     ,22-Dec-10,3201161,962.5
Care & Support (Adults & Children),Learning Disabilities,CHA,PREMISES                      ,General Rents                 ,BOURNVILLE VILLAGE TRUST                ,01-Apr-11,3214183,1575
Care & Support (Adults & Children),Learning Disabilities,CHI,THIRD PARTY PAYMENTS          ,Interpreters Fees             ,UNIVERSITY OF WOLVERHAMPTON             ,25-Mar-11,3217989,842.41
Care & Support (Adults & Children),Learning Disabilities,CHT,THIRD PARTY PAYMENTS          ,Homecare Expenditure          ,PRIORITY CARE (SHROPSHIRE) LTD          ,07-Mar-11,3209143,504.26
Care & Support (Adults & Children),Learning Disabilities,CHT,THIRD PARTY PAYMENTS          ,Homecare Expenditure          ,CAREWATCH (MID SHROPSHIRE)              ,09-Mar-11,3206688,507.62
Care & Support (Adults & Children),Learning Disabilities,CHT,THIRD PARTY PAYMENTS          ,Homecare Expenditure          ,ALLIED HEALTHCARE GROUP LTD             ,02-Mar-11,3205218,594.56
Care & Support (Adults & Children),Learning Disabilities,CHT,THIRD PARTY PAYMENTS          ,Homecare Expenditure          ,PROSPECTS FPWLD                         ,28-Feb-11,3198773,625.92
Care & Support (Adults & Children),Learning Disabilities,CHT,THIRD PARTY PAYMENTS          ,Homecare Expenditure          ,PROSPECTS FPWLD                         ,10-Mar-11,3219511,625.92
Care & Support (Adults & Children),Learning Disabilities,CHT,THIRD PARTY PAYMENTS          ,Homecare Expenditure          ,PROSPECTS FPWLD                         ,31-Mar-11,3219493,720
Care & Support (Adults & Children),Learning Disabilities,CHT,THIRD PARTY PAYMENTS          ,Homecare Expenditure          ,PHOENIX CARE PARTNERS                   ,02-Mar-11,3201684,723.72
Care & Support (Adults & Children),Learning Disabilities,CHT,THIRD PARTY PAYMENTS          ,Homecare Expenditure          ,PHOENIX CARE PARTNERS                   ,02-Mar-11,3201683,756.16
Care & Support (Adults & Children),Learning Disabilities,CHT,THIRD PARTY PAYMENTS          ,Homecare Expenditure          ,PHOENIX CARE PARTNERS                   ,02-Mar-11,3201682,779.04
Care & Support (Adults & Children),Learning Disabilities,CHT,THIRD PARTY PAYMENTS          ,Homecare Expenditure          ,PRIORITY CARE (SHROPSHIRE) LTD          ,07-Mar-11,3209142,779.84
Care & Support (Adults & Children),Learning Disabilities,CHT,THIRD PARTY PAYMENTS          ,Homecare Expenditure          ,PRIORITY CARE (SHROPSHIRE) LTD          ,07-Mar-11,3209140,799.95
Care & Support (Adults & Children),Learning Disabilities,CHT,THIRD PARTY PAYMENTS          ,Homecare Expenditure          ,PHOENIX CARE PARTNERS                   ,02-Mar-11,3201686,830.92
Care & Support (Adults & Children),Learning Disabilities,CHT,THIRD PARTY PAYMENTS          ,Homecare Expenditure          ,PRIORITY CARE (SHROPSHIRE) LTD          ,07-Mar-11,3209145,969.92
Care & Support (Adults & Children),Learning Disabilities,CHT,THIRD PARTY PAYMENTS          ,Homecare Expenditure          ,PROSPECTS FPWLD                         ,28-Feb-11,3198772,1043.2
Care & Support (Adults & Children),Learning Disabilities,CHT,THIRD PARTY PAYMENTS          ,Homecare Expenditure          ,PROSPECTS FPWLD                         ,13-Mar-11,3219510,1043.2
Care & Support (Adults & Children),Learning Disabilities,CHT,THIRD PARTY PAYMENTS          ,Homecare Expenditure          ,D H HOMECARE LTD                        ,02-Mar-11,3205017,1115.14
Care & Support (Adults & Children),Learning Disabilities,CHT,THIRD PARTY PAYMENTS          ,Homecare Expenditure          ,ALLIED HEALTHCARE GROUP LTD             ,05-Jan-11,3211213,1134.04
Care & Support (Adults & Children),Learning Disabilities,CHT,THIRD PARTY PAYMENTS          ,Homecare Expenditure          ,ALLIED HEALTHCARE GROUP LTD             ,02-Mar-11,3205212,1192.9
Care & Support (Adults & Children),Learning Disabilities,CHT,THIRD PARTY PAYMENTS          ,Homecare Expenditure          ,WE ARE THE CARE COMPANY LTD             ,27-Feb-11,3205347,1256.13
Care & Support (Adults & Children),Learning Disabilities,CHT,THIRD PARTY PAYMENTS          ,Homecare Expenditure          ,CHOICES HOUSING ASSOCIATION LTD         ,01-Mar-11,3201680,1469.16
Care & Support (Adults & Children),Learning Disabilities,CHT,THIRD PARTY PAYMENTS          ,Homecare Expenditure          ,HELPING HANDS HOMECARE                  ,07-Mar-11,3206739,1690
Care & Support (Adults & Children),Learning Disabilities,CHT,THIRD PARTY PAYMENTS          ,Homecare Expenditure          ,CREATIVE SUPPORT LTD                    ,15-Mar-11,3211201,1924.28
Care & Support (Adults & Children),Learning Disabilities,CHT,THIRD PARTY PAYMENTS          ,Homecare Expenditure          ,BETHPHAGE                               ,27-Feb-11,3219425,1928.65
Care & Support (Adults & Children),Learning Disabilities,CHT,THIRD PARTY PAYMENTS          ,Health Funded Services        ,BETHPHAGE                               ,27-Feb-11,3219425,1928.66
Care & Support (Adults & Children),Learning Disabilities,CHT,THIRD PARTY PAYMENTS          ,Homecare Expenditure          ,HELPING HANDS HOMECARE                  ,07-Mar-11,3206738,1978.48
Care & Support (Adults & Children),Learning Disabilities,CHT,THIRD PARTY PAYMENTS          ,Homecare Expenditure          ,PROSPECTS FPWLD                         ,28-Feb-11,3198770,3643.22
Care & Support (Adults & Children),Learning Disabilities,CHT,THIRD PARTY PAYMENTS          ,Homecare Expenditure          ,PROSPECTS FPWLD                         ,28-Mar-11,3219508,3643.22
Care & Support (Adults & Children),Learning Disabilities,CHT,THIRD PARTY PAYMENTS          ,Homecare Expenditure          ,PROSPECTS FPWLD                         ,28-Feb-11,3198769,3643.52
Care & Support (Adults & Children),Learning Disabilities,CHT,THIRD PARTY PAYMENTS          ,Homecare Expenditure          ,PROSPECTS FPWLD                         ,28-Mar-11,3219507,3643.52
Care & Support (Adults & Children),Learning Disabilities,CHT,THIRD PARTY PAYMENTS          ,Homecare Expenditure          ,PROSPECTS FPWLD                         ,28-Feb-11,3198768,3873.16
Care & Support (Adults & Children),Learning Disabilities,CHT,THIRD PARTY PAYMENTS          ,Homecare Expenditure          ,PROSPECTS FPWLD                         ,28-Mar-11,3219506,3873.16
Care & Support (Adults & Children),Learning Disabilities,CHT,THIRD PARTY PAYMENTS          ,Homecare Expenditure          ,CHOICES HOUSING ASSOCIATION LTD         ,01-Mar-11,3201679,4964.4
Care & Support (Adults & Children),Learning Disabilities,CHT,THIRD PARTY PAYMENTS          ,Homecare Expenditure          ,BARCHESTER HEALTHCARE                   ,31-Mar-11,3209068,5092.6
Care & Support (Adults & Children),Learning Disabilities,CHT,THIRD PARTY PAYMENTS          ,Homecare Expenditure          ,BARCHESTER HEALTHCARE                   ,28-Feb-11,3201673,5093
Care & Support (Adults & Children),Learning Disabilities,CHT,THIRD PARTY PAYMENTS          ,Homecare Expenditure          ,PROSPECTS FPWLD                         ,28-Feb-11,3198771,6721.3
Care & Support (Adults & Children),Learning Disabilities,CHT,THIRD PARTY PAYMENTS          ,Homecare Expenditure          ,PROSPECTS FPWLD                         ,13-Mar-11,3219509,6721.3
Care & Support (Adults & Children),Learning Disabilities,CHT,THIRD PARTY PAYMENTS          ,Homecare Expenditure          ,CREATIVE SUPPORT LTD                    ,15-Mar-11,3211194,7010.16
Care & Support (Adults & Children),Learning Disabilities,CHT,THIRD PARTY PAYMENTS          ,Health Funded Services        ,COMPLETE CARE HOLDINGS LTD              ,28-Feb-11,3216808,16279.79
Care & Support (Adults & Children),Learning Disabilities,CHV,SUPPLIES & SERVICES           ,Other Grants (Expenses)       ,SELF UNLIMITED                          ,25-Feb-11,3202154,7676.09
Care & Support (Adults & Children),Learning Disabilities,CHV,SUPPLIES & SERVICES           ,Other Grants (Expenses)       ,NORTH STAFFS COMBINED HEALTHCARE        ,10-Feb-11,3199749,11938
Care & Support (Adults & Children),Learning Disabilities,CHV,SUPPLIES & SERVICES           ,Other Grants (Expenses)       ,NORTH STAFFS COMBINED HEALTHCARE        ,14-Feb-11,3210197,11938
Care & Support (Adults & Children),Learning Disabilities,CHV,SUPPLIES & SERVICES           ,Other Grants (Expenses)       ,TELFORD & WREKIN PCT                    ,08-Feb-11,3209355,599066.5
Care & Support (Adults & Children),Learning Disabilities,CHW,THIRD PARTY PAYMENTS          ,Daycare Expenditure           ,SELF UNLIMITED                          ,28-Feb-11,3208604,1993.5
Care & Support (Adults & Children),Learning Disabilities,CHX,THIRD PARTY PAYMENTS          ,Residential Expenditure       ,VISION HOMES ASSOCIATION                ,29-Jul-10,3216763,5166.7
Care & Support (Adults & Children),Learning Disabilities,CHX,THIRD PARTY PAYMENTS          ,Residential Expenditure       ,NATIONAL FOSTERING AGENCY               ,28-Feb-11,3201677,5359.48
Care & Support (Adults & Children),Learning Disabilities,CHX,THIRD PARTY PAYMENTS          ,Residential Expenditure       ,NATIONAL FOSTERING AGENCY               ,08-Mar-11,3206685,5933.71
Care & Support (Adults & Children),Learning Disabilities,CHX,SUPPLIES & SERVICES           ,Respite Care                  ,LEONARD CHESHIRE DISABILITY             ,08-Mar-11,3205653,24108.66
Care & Support (Adults & Children),Learning Disabilities,CHY,THIRD PARTY PAYMENTS          ,Health Funded Services        ,BARCHESTER HEALTHCARE                   ,31-Mar-11,3209059,1344
Care & Support (Adults & Children),Learning Disabilities,CHY,THIRD PARTY PAYMENTS          ,Health Funded Services        ,BARCHESTER HEALTHCARE                   ,31-Mar-11,3209067,3094
Care & Support (Adults & Children),Learning Disabilities,CHY,THIRD PARTY PAYMENTS          ,Homecare Expenditure          ,BARCHESTER HEALTHCARE                   ,31-Mar-11,3209067,3094
Care & Support (Adults & Children),Learning Disabilities,CHY,THIRD PARTY PAYMENTS          ,Health Funded Services        ,BETHPHAGE                               ,31-Mar-11,3219426,6319.79
Care & Support (Adults & Children),Learning Disabilities,CHY,THIRD PARTY PAYMENTS          ,Health Funded Services        ,BARCHESTER HEALTHCARE                   ,31-Mar-11,3209066,6720
Care & Support (Adults & Children),Learning Disabilities,CHY,THIRD PARTY PAYMENTS          ,Health Funded Services        ,DIMENSIONS (UK) LTD                     ,14-Mar-11,3217024,29051.65
Care & Support (Adults & Children),Learning Disabilities,CHY,THIRD PARTY PAYMENTS          ,Health Funded Services        ,DIMENSIONS (UK) LTD                     ,14-Mar-11,3217027,32931.3
Care & Support (Adults & Children),Learning Disabilities,CHY,THIRD PARTY PAYMENTS          ,Health Funded Services        ,ACCORD HOUSING ASSOCIATION LIMITED      ,28-Feb-11,3211016,33186.24
Care & Support (Adults & Children),Learning Disabilities,CHY,THIRD PARTY PAYMENTS          ,Health Funded Services        ,DIMENSIONS (UK) LTD                     ,14-Mar-11,3217026,38998
Care & Support (Adults & Children),Learning Disabilities,CHY,THIRD PARTY PAYMENTS          ,Health Funded Services        ,DIMENSIONS (UK) LTD                     ,14-Mar-11,3217025,46797.6
Care & Support (Adults & Children),Learning Disabilities,CLS,SUPPLIES & SERVICES           ,Equipment - Purchase          ,QUEST 88 LIMITED                        ,18-Mar-11,3215166,1584
Care & Support (Adults & Children),Learning Disabilities,CTD,SUPPLIES & SERVICES           ,Other Grants (Expenses)       ,SHROPSHIRE COUNCIL                      ,23-Feb-11,3206770,55420
Care & Support (Adults & Children),Mental Health & Substance Misuse,CIH,SUPPLIES & SERVICES           ,General Rents                 ,WREKIN FARMERS LTD                      ,18-Oct-10,3218074,4875
Care & Support (Adults & Children),Mental Health & Substance Misuse,CIO,SUPPLIES & SERVICES           ,Comp Hardware (Purch / Hire)  ,ILLY SYSTEMS LTD                        ,18-Feb-11,3214993,1115
Care & Support (Adults & Children),Mental Health & Substance Misuse,CIT,SUPPLIES & SERVICES           ,Service Contracts             ,SRCL LTD                                ,01-Feb-11,3200447,794.14
Care & Support (Adults & Children),Mental Health & Substance Misuse,CIT,SUPPLIES & SERVICES           ,Service Contracts             ,SRCL LTD                                ,01-Mar-11,3206771,1022.29
Care & Support (Adults & Children),Mental Health & Substance Misuse,CIT,SUPPLIES & SERVICES           ,Service Contracts             ,DRUG-AWARE LTD                          ,22-Mar-11,3217938,4165.21
Care & Support (Adults & Children),Mental Health & Substance Misuse,CIV,PREMISES                      ,Gas                           ,WEST MERCIA SUPPLIES                    ,18-Feb-11,3214252,732.34
Care & Support (Adults & Children),Mental Health & Substance Misuse,CJP,THIRD PARTY PAYMENTS          ,Residential Expenditure       ,THE FIRS GUEST HOUSE                ,28-Feb-11,3199464,525
Care & Support (Adults & Children),Mental Health & Substance Misuse,CJP,THIRD PARTY PAYMENTS          ,Residential Expenditure       ,THE FIRS GUEST HOUSE                ,07-Mar-11,3205642,525
Care & Support (Adults & Children),Mental Health & Substance Misuse,CJP,THIRD PARTY PAYMENTS          ,Residential Expenditure       ,THE FIRS GUEST HOUSE                ,14-Mar-11,3209058,525
Care & Support (Adults & Children),Mental Health & Substance Misuse,CJP,THIRD PARTY PAYMENTS          ,Residential Expenditure       ,THE FIRS GUEST HOUSE                ,21-Mar-11,3219394,525
Care & Support (Adults & Children),Mental Health & Substance Misuse,CJP,THIRD PARTY PAYMENTS          ,Residential Expenditure       ,THE FIRS GUEST HOUSE                ,28-Mar-11,3219395,525
Care & Support (Adults & Children),Mental Health & Substance Misuse,CJP,THIRD PARTY PAYMENTS          ,Residential Expenditure       ,WYE PROPERTIES                          ,24-Mar-11,3215792,552.64
Care & Support (Adults & Children),Mental Health & Substance Misuse,CJP,THIRD PARTY PAYMENTS          ,Residential Expenditure       ,GRAY HEALTHCARE                         ,28-Feb-11,3199465,1568.18
Care & Support (Adults & Children),Mental Health & Substance Misuse,CJP,THIRD PARTY PAYMENTS          ,Residential Expenditure       ,GRAY HEALTHCARE                         ,07-Mar-11,3205630,1568.18
Care & Support (Adults & Children),Mental Health & Substance Misuse,CJP,THIRD PARTY PAYMENTS          ,Residential Expenditure       ,GRAY HEALTHCARE                         ,14-Mar-11,3208605,1568.18
Care & Support (Adults & Children),Mental Health & Substance Misuse,CJP,THIRD PARTY PAYMENTS          ,Residential Expenditure       ,GRAY HEALTHCARE                         ,21-Mar-11,3219392,1568.18
Care & Support (Adults & Children),Mental Health & Substance Misuse,CJP,THIRD PARTY PAYMENTS          ,Residential Expenditure       ,GRAY HEALTHCARE                         ,28-Mar-11,3219393,1568.18
Care & Support (Adults & Children),Mental Health & Substance Misuse,CJP,THIRD PARTY PAYMENTS          ,Residential Expenditure       ,BARCHESTER HEALTHCARE                   ,31-Mar-11,3209065,1624
Care & Support (Adults & Children),Mental Health & Substance Misuse,CJP,THIRD PARTY PAYMENTS          ,Residential Expenditure       ,SOUTHCOTT SUPPORT SERVICES LTD          ,01-Mar-11,3201676,1825
Care & Support (Adults & Children),Mental Health & Substance Misuse,CJP,THIRD PARTY PAYMENTS          ,Residential Expenditure       ,FIRST INITIATIVES                       ,01-Mar-11,3205652,3961.68
Care & Support (Adults & Children),Mental Health & Substance Misuse,CJP,INCOME                        ,Other Contributions           ,TELFORD & WREKIN PCT                    ,07-Mar-11,3213878,4000
Care & Support (Adults & Children),Mental Health & Substance Misuse,CJZ,PREMISES                      ,General Rents                 ,REDACTED PERSONAL INFORMATION,10-Mar-11,3213966,5875
Care & Support (Adults & Children),Mental Health & Substance Misuse,CLC,THIRD PARTY PAYMENTS          ,Homecare Expenditure          ,PEACE OF MIND HOMECARE LIMITED          ,21-Mar-11,3219445,560.16
Care & Support (Adults & Children),Mental Health & Substance Misuse,CLC,THIRD PARTY PAYMENTS          ,Homecare Expenditure          ,SUPREME HOME CARE                       ,01-Mar-11,3205060,736.08
Care & Support (Adults & Children),Mental Health & Substance Misuse,CLC,THIRD PARTY PAYMENTS          ,Homecare Expenditure          ,PHOENIX CARE PARTNERS                   ,02-Mar-11,3201687,738.04
Care & Support (Adults & Children),Mental Health & Substance Misuse,CLC,THIRD PARTY PAYMENTS          ,Homecare Expenditure          ,CARRADICE CARE LTD                      ,01-Feb-11,3207651,1227.28
Care & Support (Adults & Children),Older People & Physical Disability,CDT,TRANSPORT                     ,Travelling Expenses General   ,CENTRAL TAXIS LIMITED                   ,28-Feb-11,3210186,945.45
Care & Support (Adults & Children),Older People & Physical Disability,CDT,THIRD PARTY PAYMENTS          ,Private Contractors           ,PHYSIOTHERAPY SERVICES LTD              ,17-Mar-11,3220210,1057
Care & Support (Adults & Children),Older People & Physical Disability,CDU,SUPPLIES & SERVICES           ,Respite Care                  ,ACCORD HOUSING ASSOCIATION LIMITED      ,11-Feb-11,3201179,22753.07
Care & Support (Adults & Children),Older People & Physical Disability,CDU,SUPPLIES & SERVICES           ,Respite Care                  ,ACCORD HOUSING ASSOCIATION LIMITED      ,10-Feb-11,3201180,22753.08
Care & Support (Adults & Children),Older People & Physical Disability,CDU,THIRD PARTY PAYMENTS          ,Residential Expenditure       ,ACCORD HOUSING ASSOCIATION LIMITED      ,11-Feb-11,3201179,141784.09
Care & Support (Adults & Children),Older People & Physical Disability,CDU,THIRD PARTY PAYMENTS          ,Residential Expenditure       ,ACCORD HOUSING ASSOCIATION LIMITED      ,10-Feb-11,3201180,141784.09
Care & Support (Adults & Children),Older People & Physical Disability,CDX,THIRD PARTY PAYMENTS          ,Homecare Expenditure          ,D H HOMECARE LTD                        ,02-Mar-11,3207039,500.14
Care & Support (Adults & Children),Older People & Physical Disability,CDX,THIRD PARTY PAYMENTS          ,Homecare Expenditure          ,ALLIED HEALTHCARE GROUP LTD             ,23-Feb-11,3201934,500.92
Care & Support (Adults & Children),Older People & Physical Disability,CDX,THIRD PARTY PAYMENTS          ,Homecare Expenditure          ,WREKIN CARE CO-OPERATIVE LIMITED        ,01-Mar-11,3202438,501.36
Care & Support (Adults & Children),Older People & Physical Disability,CDX,THIRD PARTY PAYMENTS          ,Homecare Expenditure          ,ALLIED HEALTHCARE GROUP LTD             ,23-Feb-11,3201900,503.26
Care & Support (Adults & Children),Older People & Physical Disability,CDX,THIRD PARTY PAYMENTS          ,Homecare Expenditure          ,TENDER CARE                             ,01-Mar-11,3203209,503.52
Care & Support (Adults & Children),Older People & Physical Disability,CDX,THIRD PARTY PAYMENTS          ,Homecare Expenditure          ,TENDER CARE                             ,01-Mar-11,3203334,503.52
Care & Support (Adults & Children),Older People & Physical Disability,CDX,THIRD PARTY PAYMENTS          ,Homecare Expenditure          ,CAVENDISH HOMECARE SERVICES LTD         ,28-Feb-11,3202333,504.82
Care & Support (Adults & Children),Older People & Physical Disability,CDX,THIRD PARTY PAYMENTS          ,Homecare Expenditure          ,SUPREME HOME CARE                       ,01-Mar-11,3209028,505.2
Care & Support (Adults & Children),Older People & Physical Disability,CDX,THIRD PARTY PAYMENTS          ,Homecare Expenditure          ,SUPREME HOME CARE                       ,01-Mar-11,3209121,505.2
Care & Support (Adults & Children),Older People & Physical Disability,CDX,THIRD PARTY PAYMENTS          ,Homecare Expenditure          ,ALLIED HEALTHCARE GROUP LTD             ,23-Mar-11,3220138,506.12
Care & Support (Adults & Children),Older People & Physical Disability,CDX,THIRD PARTY PAYMENTS          ,Homecare Expenditure          ,SUPREME HOME CARE                       ,01-Mar-11,3209122,506.92
Care & Support (Adults & Children),Older People & Physical Disability,CDX,THIRD PARTY PAYMENTS          ,Homecare Expenditure          ,SUPREME HOME CARE                       ,01-Mar-11,3209159,507.68
Care & Support (Adults & Children),Older People & Physical Disability,CDX,THIRD PARTY PAYMENTS          ,Homecare Expenditure          ,D H HOMECARE LTD                        ,02-Mar-11,3206998,508.8
Care & Support (Adults & Children),Older People & Physical Disability,CDX,THIRD PARTY PAYMENTS          ,Homecare Expenditure          ,D H HOMECARE LTD                        ,02-Mar-11,3207049,508.8
Care & Support (Adults & Children),Older People & Physical Disability,CDX,THIRD PARTY PAYMENTS          ,Homecare Expenditure          ,PHOENIX CARE PARTNERS                   ,02-Mar-11,3204342,510.07
Care & Support (Adults & Children),Older People & Physical Disability,CDX,THIRD PARTY PAYMENTS          ,Homecare Expenditure          ,PEACE OF MIND HOMECARE LIMITED          ,22-Feb-11,3199470,510.44
Care & Support (Adults & Children),Older People & Physical Disability,CDX,THIRD PARTY PAYMENTS          ,Homecare Expenditure          ,SEVA CARE (UK) LIMITED                  ,22-Mar-11,3216202,511.9
Care & Support (Adults & Children),Older People & Physical Disability,CDX,THIRD PARTY PAYMENTS          ,Homecare Expenditure          ,D H HOMECARE LTD                        ,02-Mar-11,3207059,516.94
Care & Support (Adults & Children),Older People & Physical Disability,CDX,THIRD PARTY PAYMENTS          ,Homecare Expenditure          ,PEACE OF MIND HOMECARE LIMITED          ,22-Feb-11,3203616,518.4
Care & Support (Adults & Children),Older People & Physical Disability,CDX,THIRD PARTY PAYMENTS          ,Homecare Expenditure          ,PEACE OF MIND HOMECARE LIMITED          ,21-Mar-11,3216930,518.4
Care & Support (Adults & Children),Older People & Physical Disability,CDX,THIRD PARTY PAYMENTS          ,Homecare Expenditure          ,AMG NURSING & CARE SERVICES             ,20-Feb-11,3207070,519.13
Care & Support (Adults & Children),Older People & Physical Disability,CDX,THIRD PARTY PAYMENTS          ,Homecare Expenditure          ,ALLIED HEALTHCARE GROUP LTD             ,23-Mar-11,3220136,519.43
Care & Support (Adults & Children),Older People & Physical Disability,CDX,THIRD PARTY PAYMENTS          ,Homecare Expenditure          ,ALLIED HEALTHCARE GROUP LTD             ,23-Feb-11,3203155,522.44
Care & Support (Adults & Children),Older People & Physical Disability,CDX,THIRD PARTY PAYMENTS          ,Homecare Expenditure          ,SEVA CARE (UK) LIMITED                  ,22-Feb-11,3202118,522.88
Care & Support (Adults & Children),Older People & Physical Disability,CDX,THIRD PARTY PAYMENTS          ,Homecare Expenditure          ,ALLIED HEALTHCARE GROUP LTD             ,23-Feb-11,3203160,524.02
Care & Support (Adults & Children),Older People & Physical Disability,CDX,THIRD PARTY PAYMENTS          ,Homecare Expenditure          ,PRIORITY CARE (SHROPSHIRE) LTD          ,07-Mar-11,3212248,524.72
Care & Support (Adults & Children),Older People & Physical Disability,CDX,THIRD PARTY PAYMENTS          ,Homecare Expenditure          ,PARADIGM HEALTH & SOCIAL CARE LTD   ,14-Feb-11,3199135,525
Care & Support (Adults & Children),Older People & Physical Disability,CDX,THIRD PARTY PAYMENTS          ,Homecare Expenditure          ,PARADIGM HEALTH & SOCIAL CARE LTD   ,14-Mar-11,3212674,525
Care & Support (Adults & Children),Older People & Physical Disability,CDX,THIRD PARTY PAYMENTS          ,Homecare Expenditure          ,D H HOMECARE LTD                        ,02-Mar-11,3207012,528.82
Care & Support (Adults & Children),Older People & Physical Disability,CDX,THIRD PARTY PAYMENTS          ,Homecare Expenditure          ,PEACE OF MIND HOMECARE LIMITED          ,22-Feb-11,3203617,532.88
Care & Support (Adults & Children),Older People & Physical Disability,CDX,THIRD PARTY PAYMENTS          ,Homecare Expenditure          ,PEACE OF MIND HOMECARE LIMITED          ,21-Mar-11,3216931,532.88
Care & Support (Adults & Children),Older People & Physical Disability,CDX,THIRD PARTY PAYMENTS          ,Homecare Expenditure          ,ALLIED HEALTHCARE GROUP LTD             ,02-Mar-11,3206954,533
Care & Support (Adults & Children),Older People & Physical Disability,CDX,THIRD PARTY PAYMENTS          ,Homecare Expenditure          ,SUPREME HOME CARE                       ,01-Mar-11,3209030,533.92
Care & Support (Adults & Children),Older People & Physical Disability,CDX,THIRD PARTY PAYMENTS          ,Homecare Expenditure          ,SUPREME HOME CARE                       ,01-Mar-11,3209277,533.92
Care & Support (Adults & Children),Older People & Physical Disability,CDX,THIRD PARTY PAYMENTS          ,Homecare Expenditure          ,ALLIED HEALTHCARE GROUP LTD             ,23-Mar-11,3219966,533.95
Care & Support (Adults & Children),Older People & Physical Disability,CDX,THIRD PARTY PAYMENTS          ,Homecare Expenditure          ,PHOENIX CARE PARTNERS                   ,02-Mar-11,3204373,538.08
Care & Support (Adults & Children),Older People & Physical Disability,CDX,THIRD PARTY PAYMENTS          ,Homecare Expenditure          ,PRIORITY CARE (SHROPSHIRE) LTD          ,07-Mar-11,3212151,541.3
Care & Support (Adults & Children),Older People & Physical Disability,CDX,THIRD PARTY PAYMENTS          ,Homecare Expenditure          ,SEVA CARE (UK) LIMITED                  ,22-Feb-11,3202102,542.58
Care & Support (Adults & Children),Older People & Physical Disability,CDX,THIRD PARTY PAYMENTS          ,Homecare Expenditure          ,SEVA CARE (UK) LIMITED                  ,22-Mar-11,3216193,542.58
Care & Support (Adults & Children),Older People & Physical Disability,CDX,THIRD PARTY PAYMENTS          ,Homecare Expenditure          ,SUPREME HOME CARE                       ,01-Mar-11,3209280,543.08
Care & Support (Adults & Children),Older People & Physical Disability,CDX,THIRD PARTY PAYMENTS          ,Homecare Expenditure          ,PHOENIX CARE PARTNERS                   ,02-Mar-11,3204348,544.28
Care & Support (Adults & Children),Older People & Physical Disability,CDX,THIRD PARTY PAYMENTS          ,Homecare Expenditure          ,PRIORITY CARE (SHROPSHIRE) LTD          ,07-Mar-11,3212284,546.88
Care & Support (Adults & Children),Older People & Physical Disability,CDX,THIRD PARTY PAYMENTS          ,Homecare Expenditure          ,PHOENIX CARE PARTNERS                   ,02-Mar-11,3204347,547.56
Care & Support (Adults & Children),Older People & Physical Disability,CDX,THIRD PARTY PAYMENTS          ,Homecare Expenditure          ,PRIORITY CARE (SHROPSHIRE) LTD          ,07-Mar-11,3212147,551.6
Care & Support (Adults & Children),Older People & Physical Disability,CDX,THIRD PARTY PAYMENTS          ,Homecare Expenditure          ,PRIORITY CARE (SHROPSHIRE) LTD          ,07-Mar-11,3212290,551.6
Care & Support (Adults & Children),Older People & Physical Disability,CDX,THIRD PARTY PAYMENTS          ,Homecare Expenditure          ,TENDER CARE                             ,01-Mar-11,3203261,551.65
Care & Support (Adults & Children),Older People & Physical Disability,CDX,THIRD PARTY PAYMENTS          ,Homecare Expenditure          ,ALLIED HEALTHCARE GROUP LTD             ,23-Mar-11,3220114,552.24
Care & Support (Adults & Children),Older People & Physical Disability,CDX,THIRD PARTY PAYMENTS          ,Health Funded Services        ,D H HOMECARE LTD                        ,02-Mar-11,3207053,552.38
Care & Support (Adults & Children),Older People & Physical Disability,CDX,THIRD PARTY PAYMENTS          ,Homecare Expenditure          ,D H HOMECARE LTD                        ,02-Mar-11,3207028,553.12
Care & Support (Adults & Children),Older People & Physical Disability,CDX,THIRD PARTY PAYMENTS          ,Homecare Expenditure          ,PEACE OF MIND HOMECARE LIMITED          ,22-Feb-11,3199471,555.52
Care & Support (Adults & Children),Older People & Physical Disability,CDX,THIRD PARTY PAYMENTS          ,Homecare Expenditure          ,PEACE OF MIND HOMECARE LIMITED          ,22-Feb-11,3202457,558.96
Care & Support (Adults & Children),Older People & Physical Disability,CDX,THIRD PARTY PAYMENTS          ,Homecare Expenditure          ,PEACE OF MIND HOMECARE LIMITED          ,21-Mar-11,3216892,558.96
Care & Support (Adults & Children),Older People & Physical Disability,CDX,THIRD PARTY PAYMENTS          ,Homecare Expenditure          ,SUPREME HOME CARE                       ,01-Mar-11,3209276,560.36
Care & Support (Adults & Children),Older People & Physical Disability,CDX,THIRD PARTY PAYMENTS          ,Homecare Expenditure          ,PHOENIX CARE PARTNERS                   ,02-Mar-11,3204339,561.32
Care & Support (Adults & Children),Older People & Physical Disability,CDX,THIRD PARTY PAYMENTS          ,Homecare Expenditure          ,D H HOMECARE LTD                        ,02-Mar-11,3207006,567.99
Care & Support (Adults & Children),Older People & Physical Disability,CDX,THIRD PARTY PAYMENTS          ,Homecare Expenditure          ,SEVA CARE (UK) LIMITED                  ,22-Feb-11,3203469,568.7
Care & Support (Adults & Children),Older People & Physical Disability,CDX,THIRD PARTY PAYMENTS          ,Homecare Expenditure          ,SEVA CARE (UK) LIMITED                  ,22-Mar-11,3216194,570.59
Care & Support (Adults & Children),Older People & Physical Disability,CDX,THIRD PARTY PAYMENTS          ,Homecare Expenditure          ,SEVA CARE (UK) LIMITED                  ,22-Feb-11,3202103,574.88
Care & Support (Adults & Children),Older People & Physical Disability,CDX,THIRD PARTY PAYMENTS          ,Homecare Expenditure          ,D H HOMECARE LTD                        ,02-Mar-11,3207041,575.08
Care & Support (Adults & Children),Older People & Physical Disability,CDX,THIRD PARTY PAYMENTS          ,Homecare Expenditure          ,ALLIED HEALTHCARE GROUP LTD             ,23-Feb-11,3202031,575.24
Care & Support (Adults & Children),Older People & Physical Disability,CDX,THIRD PARTY PAYMENTS          ,Homecare Expenditure          ,TENDER CARE                             ,01-Mar-11,3203259,575.58
Care & Support (Adults & Children),Older People & Physical Disability,CDX,THIRD PARTY PAYMENTS          ,Homecare Expenditure          ,PEACE OF MIND HOMECARE LIMITED          ,21-Mar-11,3216926,579.3
Care & Support (Adults & Children),Older People & Physical Disability,CDX,THIRD PARTY PAYMENTS          ,Homecare Expenditure          ,D H HOMECARE LTD                        ,02-Mar-11,3206991,582.65
Care & Support (Adults & Children),Older People & Physical Disability,CDX,THIRD PARTY PAYMENTS          ,Homecare Expenditure          ,TENDER CARE                             ,01-Mar-11,3203332,583.52
Care & Support (Adults & Children),Older People & Physical Disability,CDX,THIRD PARTY PAYMENTS          ,Homecare Expenditure          ,TENDER CARE                             ,01-Mar-11,3203327,584.4
Care & Support (Adults & Children),Older People & Physical Disability,CDX,THIRD PARTY PAYMENTS          ,Homecare Expenditure          ,SEVA CARE (UK) LIMITED                  ,22-Feb-11,3202104,585.6
Care & Support (Adults & Children),Older People & Physical Disability,CDX,THIRD PARTY PAYMENTS          ,Homecare Expenditure          ,SEVA CARE (UK) LIMITED                  ,22-Mar-11,3216195,585.6
Care & Support (Adults & Children),Older People & Physical Disability,CDX,THIRD PARTY PAYMENTS          ,Homecare Expenditure          ,WREKIN CARE CO-OPERATIVE LIMITED        ,01-Mar-11,3202417,588.88
Care & Support (Adults & Children),Older People & Physical Disability,CDX,THIRD PARTY PAYMENTS          ,Homecare Expenditure          ,ALLIED HEALTHCARE GROUP LTD             ,23-Feb-11,3201922,589.15
Care & Support (Adults & Children),Older People & Physical Disability,CDX,THIRD PARTY PAYMENTS          ,Homecare Expenditure          ,CAVENDISH HOMECARE SERVICES LTD         ,28-Feb-11,3202338,591.34
Care & Support (Adults & Children),Older People & Physical Disability,CDX,THIRD PARTY PAYMENTS          ,Homecare Expenditure          ,D H HOMECARE LTD                        ,02-Mar-11,3206997,591.44
Care & Support (Adults & Children),Older People & Physical Disability,CDX,THIRD PARTY PAYMENTS          ,Homecare Expenditure          ,ALLIED HEALTHCARE GROUP LTD             ,02-Mar-11,3206956,592.58
Care & Support (Adults & Children),Older People & Physical Disability,CDX,THIRD PARTY PAYMENTS          ,Homecare Expenditure          ,WREKIN CARE CO-OPERATIVE LIMITED        ,01-Mar-11,3202420,595
Care & Support (Adults & Children),Older People & Physical Disability,CDX,THIRD PARTY PAYMENTS          ,Homecare Expenditure          ,WREKIN CARE CO-OPERATIVE LIMITED        ,01-Mar-11,3202419,595.32
Care & Support (Adults & Children),Older People & Physical Disability,CDX,THIRD PARTY PAYMENTS          ,Homecare Expenditure          ,PEACE OF MIND HOMECARE LIMITED          ,22-Feb-11,3202455,595.76
Care & Support (Adults & Children),Older People & Physical Disability,CDX,THIRD PARTY PAYMENTS          ,Homecare Expenditure          ,D H HOMECARE LTD                        ,02-Mar-11,3207064,597.82
Care & Support (Adults & Children),Older People & Physical Disability,CDX,THIRD PARTY PAYMENTS          ,Homecare Expenditure          ,D H HOMECARE LTD                        ,02-Mar-11,3206994,598.14
Care & Support (Adults & Children),Older People & Physical Disability,CDX,THIRD PARTY PAYMENTS          ,Homecare Expenditure          ,PEACE OF MIND HOMECARE LIMITED          ,22-Feb-11,3202459,600.88
Care & Support (Adults & Children),Older People & Physical Disability,CDX,THIRD PARTY PAYMENTS          ,Homecare Expenditure          ,PEACE OF MIND HOMECARE LIMITED          ,21-Mar-11,3216894,600.88
Care & Support (Adults & Children),Older People & Physical Disability,CDX,THIRD PARTY PAYMENTS          ,Homecare Expenditure          ,PRIORITY CARE (SHROPSHIRE) LTD          ,07-Mar-11,3212281,604.98
Care & Support (Adults & Children),Older People & Physical Disability,CDX,THIRD PARTY PAYMENTS          ,Homecare Expenditure          ,PRIORITY CARE (SHROPSHIRE) LTD          ,07-Mar-11,3212628,617.55
Care & Support (Adults & Children),Older People & Physical Disability,CDX,THIRD PARTY PAYMENTS          ,Homecare Expenditure          ,ALLIED HEALTHCARE GROUP LTD             ,23-Mar-11,3220112,618.35
Care & Support (Adults & Children),Older People & Physical Disability,CDX,THIRD PARTY PAYMENTS          ,Homecare Expenditure          ,PEACE OF MIND HOMECARE LIMITED          ,21-Mar-11,3216739,625.68
Care & Support (Adults & Children),Older People & Physical Disability,CDX,THIRD PARTY PAYMENTS          ,Homecare Expenditure          ,ALLIED HEALTHCARE GROUP LTD             ,23-Feb-11,3201933,625.85
Care & Support (Adults & Children),Older People & Physical Disability,CDX,THIRD PARTY PAYMENTS          ,Homecare Expenditure          ,PRIORITY CARE (SHROPSHIRE) LTD          ,07-Mar-11,3212243,629.62
Care & Support (Adults & Children),Older People & Physical Disability,CDX,THIRD PARTY PAYMENTS          ,Homecare Expenditure          ,WREKIN CARE CO-OPERATIVE LIMITED        ,01-Mar-11,3202445,633.32
Care & Support (Adults & Children),Older People & Physical Disability,CDX,THIRD PARTY PAYMENTS          ,Homecare Expenditure          ,D H HOMECARE LTD                        ,02-Mar-11,3207043,634.06
Care & Support (Adults & Children),Older People & Physical Disability,CDX,THIRD PARTY PAYMENTS          ,Homecare Expenditure          ,SUPREME HOME CARE                       ,01-Mar-11,3209541,640.8
Care & Support (Adults & Children),Older People & Physical Disability,CDX,THIRD PARTY PAYMENTS          ,Homecare Expenditure          ,ALLIED HEALTHCARE GROUP LTD             ,23-Feb-11,3203161,650.54
Care & Support (Adults & Children),Older People & Physical Disability,CDX,THIRD PARTY PAYMENTS          ,Homecare Expenditure          ,SUPREME HOME CARE                       ,01-Mar-11,3209130,657.04
Care & Support (Adults & Children),Older People & Physical Disability,CDX,THIRD PARTY PAYMENTS          ,Homecare Expenditure          ,PHOENIX CARE PARTNERS                   ,02-Mar-11,3204369,663.28
Care & Support (Adults & Children),Older People & Physical Disability,CDX,THIRD PARTY PAYMENTS          ,Homecare Expenditure          ,PHOENIX CARE PARTNERS                   ,02-Mar-11,3204370,663.81
Care & Support (Adults & Children),Older People & Physical Disability,CDX,THIRD PARTY PAYMENTS          ,Homecare Expenditure          ,D H HOMECARE LTD                        ,02-Mar-11,3207032,665.28
Care & Support (Adults & Children),Older People & Physical Disability,CDX,THIRD PARTY PAYMENTS          ,Homecare Expenditure          ,SEVA CARE (UK) LIMITED                  ,22-Mar-11,3216153,666.9
Care & Support (Adults & Children),Older People & Physical Disability,CDX,THIRD PARTY PAYMENTS          ,Homecare Expenditure          ,PEACE OF MIND HOMECARE LIMITED          ,22-Feb-11,3202465,670.32
Care & Support (Adults & Children),Older People & Physical Disability,CDX,THIRD PARTY PAYMENTS          ,Homecare Expenditure          ,PEACE OF MIND HOMECARE LIMITED          ,21-Mar-11,3216983,670.32
Care & Support (Adults & Children),Older People & Physical Disability,CDX,THIRD PARTY PAYMENTS          ,Homecare Expenditure          ,PRIORITY CARE (SHROPSHIRE) LTD          ,07-Mar-11,3212625,672.2
Care & Support (Adults & Children),Older People & Physical Disability,CDX,THIRD PARTY PAYMENTS          ,Homecare Expenditure          ,PRIORITY CARE (SHROPSHIRE) LTD          ,07-Mar-11,3212282,674.36
Care & Support (Adults & Children),Older People & Physical Disability,CDX,THIRD PARTY PAYMENTS          ,Homecare Expenditure          ,PEACE OF MIND HOMECARE LIMITED          ,22-Feb-11,3202467,681.04
Care & Support (Adults & Children),Older People & Physical Disability,CDX,THIRD PARTY PAYMENTS          ,Homecare Expenditure          ,PEACE OF MIND HOMECARE LIMITED          ,21-Mar-11,3216985,681.04
Care & Support (Adults & Children),Older People & Physical Disability,CDX,THIRD PARTY PAYMENTS          ,Homecare Expenditure          ,ALLIED HEALTHCARE GROUP LTD             ,23-Feb-11,3201905,681.34
Care & Support (Adults & Children),Older People & Physical Disability,CDX,THIRD PARTY PAYMENTS          ,Homecare Expenditure          ,SEVA CARE (UK) LIMITED                  ,22-Feb-11,3202166,682.44
Care & Support (Adults & Children),Older People & Physical Disability,CDX,THIRD PARTY PAYMENTS          ,Homecare Expenditure          ,SEVA CARE (UK) LIMITED                  ,22-Mar-11,3216206,682.44
Care & Support (Adults & Children),Older People & Physical Disability,CDX,THIRD PARTY PAYMENTS          ,Homecare Expenditure          ,ALLIED HEALTHCARE GROUP LTD             ,23-Mar-11,3219971,692.11
Care & Support (Adults & Children),Older People & Physical Disability,CDX,THIRD PARTY PAYMENTS          ,Homecare Expenditure          ,PEACE OF MIND HOMECARE LIMITED          ,21-Mar-11,3216935,693.02
Care & Support (Adults & Children),Older People & Physical Disability,CDX,THIRD PARTY PAYMENTS          ,Homecare Expenditure          ,ALLIED HEALTHCARE GROUP LTD             ,23-Mar-11,3220109,697.9
Care & Support (Adults & Children),Older People & Physical Disability,CDX,THIRD PARTY PAYMENTS          ,Homecare Expenditure          ,PEACE OF MIND HOMECARE LIMITED          ,22-Feb-11,3202449,701.04
Care & Support (Adults & Children),Older People & Physical Disability,CDX,THIRD PARTY PAYMENTS          ,Homecare Expenditure          ,PEACE OF MIND HOMECARE LIMITED          ,22-Feb-11,3202458,701.04
Care & Support (Adults & Children),Older People & Physical Disability,CDX,THIRD PARTY PAYMENTS          ,Homecare Expenditure          ,PEACE OF MIND HOMECARE LIMITED          ,22-Feb-11,3202469,701.04
Care & Support (Adults & Children),Older People & Physical Disability,CDX,THIRD PARTY PAYMENTS          ,Homecare Expenditure          ,PEACE OF MIND HOMECARE LIMITED          ,21-Mar-11,3216893,701.04
Care & Support (Adults & Children),Older People & Physical Disability,CDX,THIRD PARTY PAYMENTS          ,Homecare Expenditure          ,PEACE OF MIND HOMECARE LIMITED          ,21-Mar-11,3216987,701.04
Care & Support (Adults & Children),Older People & Physical Disability,CDX,THIRD PARTY PAYMENTS          ,Homecare Expenditure          ,ALLIED HEALTHCARE GROUP LTD             ,26-Jan-11,3212295,701.26
Care & Support (Adults & Children),Older People & Physical Disability,CDX,THIRD PARTY PAYMENTS          ,Homecare Expenditure          ,ALLIED HEALTHCARE GROUP LTD             ,23-Feb-11,3201901,706.48
Care & Support (Adults & Children),Older People & Physical Disability,CDX,THIRD PARTY PAYMENTS          ,Homecare Expenditure          ,ALLIED HEALTHCARE GROUP LTD             ,23-Mar-11,3220134,709.49
Care & Support (Adults & Children),Older People & Physical Disability,CDX,THIRD PARTY PAYMENTS          ,Homecare Expenditure          ,CAVENDISH HOMECARE SERVICES LTD         ,28-Feb-11,3202242,710.59
Care & Support (Adults & Children),Older People & Physical Disability,CDX,THIRD PARTY PAYMENTS          ,Homecare Expenditure          ,PHOENIX CARE PARTNERS                   ,02-Mar-11,3204272,712.02
Care & Support (Adults & Children),Older People & Physical Disability,CDX,THIRD PARTY PAYMENTS          ,Homecare Expenditure          ,SUPREME HOME CARE                       ,01-Mar-11,3209278,715.56
Care & Support (Adults & Children),Older People & Physical Disability,CDX,THIRD PARTY PAYMENTS          ,Homecare Expenditure          ,ALLIED HEALTHCARE GROUP LTD             ,23-Feb-11,3202030,717.16
Care & Support (Adults & Children),Older People & Physical Disability,CDX,THIRD PARTY PAYMENTS          ,Homecare Expenditure          ,SUPREME HOME CARE                       ,01-Mar-11,3209162,720.8
Care & Support (Adults & Children),Older People & Physical Disability,CDX,THIRD PARTY PAYMENTS          ,Homecare Expenditure          ,SUPREME HOME CARE                       ,01-Mar-11,3209533,721.68
Care & Support (Adults & Children),Older People & Physical Disability,CDX,THIRD PARTY PAYMENTS          ,Homecare Expenditure          ,CAVENDISH HOMECARE SERVICES LTD         ,28-Feb-11,3202410,730.18
Care & Support (Adults & Children),Older People & Physical Disability,CDX,THIRD PARTY PAYMENTS          ,Homecare Expenditure          ,SEVA CARE (UK) LIMITED                  ,22-Feb-11,3202106,730.64
Care & Support (Adults & Children),Older People & Physical Disability,CDX,THIRD PARTY PAYMENTS          ,Homecare Expenditure          ,SEVA CARE (UK) LIMITED                  ,22-Mar-11,3216197,730.64
Care & Support (Adults & Children),Older People & Physical Disability,CDX,THIRD PARTY PAYMENTS          ,Homecare Expenditure          ,ALLIED HEALTHCARE GROUP LTD             ,23-Feb-11,3202034,736.32
Care & Support (Adults & Children),Older People & Physical Disability,CDX,THIRD PARTY PAYMENTS          ,Homecare Expenditure          ,ALLIED HEALTHCARE GROUP LTD             ,23-Mar-11,3220113,736.32
Care & Support (Adults & Children),Older People & Physical Disability,CDX,THIRD PARTY PAYMENTS          ,Homecare Expenditure          ,ALLIED HEALTHCARE GROUP LTD             ,23-Mar-11,3220140,736.32
Care & Support (Adults & Children),Older People & Physical Disability,CDX,THIRD PARTY PAYMENTS          ,Homecare Expenditure          ,PHOENIX CARE PARTNERS                   ,02-Mar-11,3204341,745.36
Care & Support (Adults & Children),Older People & Physical Disability,CDX,THIRD PARTY PAYMENTS          ,Homecare Expenditure          ,D H HOMECARE LTD                        ,02-Mar-11,3207055,745.44
Care & Support (Adults & Children),Older People & Physical Disability,CDX,THIRD PARTY PAYMENTS          ,Homecare Expenditure          ,PRIORITY CARE (SHROPSHIRE) LTD          ,07-Mar-11,3212191,746.56
Care & Support (Adults & Children),Older People & Physical Disability,CDX,THIRD PARTY PAYMENTS          ,Homecare Expenditure          ,PHOENIX CARE PARTNERS                   ,02-Mar-11,3204366,758.48
Care & Support (Adults & Children),Older People & Physical Disability,CDX,THIRD PARTY PAYMENTS          ,Homecare Expenditure          ,D H HOMECARE LTD                        ,02-Mar-11,3206993,771.3
Care & Support (Adults & Children),Older People & Physical Disability,CDX,THIRD PARTY PAYMENTS          ,Homecare Expenditure          ,CAVENDISH HOMECARE SERVICES LTD         ,28-Feb-11,3202413,778.72
Care & Support (Adults & Children),Older People & Physical Disability,CDX,THIRD PARTY PAYMENTS          ,Homecare Expenditure          ,ALLIED HEALTHCARE GROUP LTD             ,23-Feb-11,3202037,779.26
Care & Support (Adults & Children),Older People & Physical Disability,CDX,THIRD PARTY PAYMENTS          ,Homecare Expenditure          ,ALLIED HEALTHCARE GROUP LTD             ,23-Mar-11,3220118,782.9
Care & Support (Adults & Children),Older People & Physical Disability,CDX,THIRD PARTY PAYMENTS          ,Homecare Expenditure          ,PEACE OF MIND HOMECARE LIMITED          ,22-Feb-11,3202454,785.12
Care & Support (Adults & Children),Older People & Physical Disability,CDX,THIRD PARTY PAYMENTS          ,Homecare Expenditure          ,PEACE OF MIND HOMECARE LIMITED          ,21-Mar-11,3216890,785.12
Care & Support (Adults & Children),Older People & Physical Disability,CDX,THIRD PARTY PAYMENTS          ,Homecare Expenditure          ,SEVA CARE (UK) LIMITED                  ,22-Mar-11,3216142,793.45
Care & Support (Adults & Children),Older People & Physical Disability,CDX,THIRD PARTY PAYMENTS          ,Homecare Expenditure          ,SUPREME HOME CARE                       ,01-Mar-11,3209157,795.72
Care & Support (Adults & Children),Older People & Physical Disability,CDX,THIRD PARTY PAYMENTS          ,Homecare Expenditure          ,SUPREME HOME CARE                       ,01-Mar-11,3209535,800.88
Care & Support (Adults & Children),Older People & Physical Disability,CDX,THIRD PARTY PAYMENTS          ,Homecare Expenditure          ,PEACE OF MIND HOMECARE LIMITED          ,01-Mar-11,3202463,806.56
Care & Support (Adults & Children),Older People & Physical Disability,CDX,THIRD PARTY PAYMENTS          ,Homecare Expenditure          ,PEACE OF MIND HOMECARE LIMITED          ,21-Mar-11,3216981,806.56
Care & Support (Adults & Children),Older People & Physical Disability,CDX,THIRD PARTY PAYMENTS          ,Homecare Expenditure          ,PEACE OF MIND HOMECARE LIMITED          ,22-Feb-11,3202468,811.26
Care & Support (Adults & Children),Older People & Physical Disability,CDX,THIRD PARTY PAYMENTS          ,Homecare Expenditure          ,SUPREME HOME CARE                       ,01-Mar-11,3209026,813.12
Care & Support (Adults & Children),Older People & Physical Disability,CDX,THIRD PARTY PAYMENTS          ,Homecare Expenditure          ,PEACE OF MIND HOMECARE LIMITED          ,22-Feb-11,3199189,819.44
Care & Support (Adults & Children),Older People & Physical Disability,CDX,THIRD PARTY PAYMENTS          ,Homecare Expenditure          ,PEACE OF MIND HOMECARE LIMITED          ,21-Mar-11,3216923,819.44
Care & Support (Adults & Children),Older People & Physical Disability,CDX,THIRD PARTY PAYMENTS          ,Homecare Expenditure          ,TENDER CARE                             ,01-Mar-11,3203263,822.08
Care & Support (Adults & Children),Older People & Physical Disability,CDX,THIRD PARTY PAYMENTS          ,Homecare Expenditure          ,PRIORITY CARE (SHROPSHIRE) LTD          ,07-Mar-11,3212150,823.16
Care & Support (Adults & Children),Older People & Physical Disability,CDX,THIRD PARTY PAYMENTS          ,Homecare Expenditure          ,HEALTH CARE EVENTS & CONFERENCES        ,07-Mar-11,3207084,828.8
Care & Support (Adults & Children),Older People & Physical Disability,CDX,THIRD PARTY PAYMENTS          ,Homecare Expenditure          ,SUPREME HOME CARE                       ,01-Mar-11,3209031,834.2
Care & Support (Adults & Children),Older People & Physical Disability,CDX,THIRD PARTY PAYMENTS          ,Homecare Expenditure          ,SEVA CARE (UK) LIMITED                  ,22-Feb-11,3203468,837.18
Care & Support (Adults & Children),Older People & Physical Disability,CDX,THIRD PARTY PAYMENTS          ,Homecare Expenditure          ,SEVA CARE (UK) LIMITED                  ,22-Mar-11,3216152,837.18
Care & Support (Adults & Children),Older People & Physical Disability,CDX,THIRD PARTY PAYMENTS          ,Homecare Expenditure          ,PHOENIX CARE PARTNERS                   ,02-Mar-11,3204372,840.96
Care & Support (Adults & Children),Older People & Physical Disability,CDX,THIRD PARTY PAYMENTS          ,Homecare Expenditure          ,PRIORITY CARE (SHROPSHIRE) LTD          ,07-Mar-11,3212186,843.72
Care & Support (Adults & Children),Older People & Physical Disability,CDX,THIRD PARTY PAYMENTS          ,Homecare Expenditure          ,PRIORITY CARE (SHROPSHIRE) LTD          ,07-Mar-11,3212187,843.72
Care & Support (Adults & Children),Older People & Physical Disability,CDX,THIRD PARTY PAYMENTS          ,Homecare Expenditure          ,ALLIED HEALTHCARE GROUP LTD             ,02-Mar-11,3206955,844.12
Care & Support (Adults & Children),Older People & Physical Disability,CDX,THIRD PARTY PAYMENTS          ,Homecare Expenditure          ,PRIORITY CARE (SHROPSHIRE) LTD          ,07-Mar-11,3212153,852.45
Care & Support (Adults & Children),Older People & Physical Disability,CDX,THIRD PARTY PAYMENTS          ,Homecare Expenditure          ,PRIORITY CARE (SHROPSHIRE) LTD          ,07-Mar-11,3212615,855.88
Care & Support (Adults & Children),Older People & Physical Disability,CDX,THIRD PARTY PAYMENTS          ,Homecare Expenditure          ,PRIORITY CARE (SHROPSHIRE) LTD          ,07-Mar-11,3212242,860.64
Care & Support (Adults & Children),Older People & Physical Disability,CDX,THIRD PARTY PAYMENTS          ,Homecare Expenditure          ,D H HOMECARE LTD                        ,02-Mar-11,3207054,866.72
Care & Support (Adults & Children),Older People & Physical Disability,CDX,THIRD PARTY PAYMENTS          ,Homecare Expenditure          ,SEVA CARE (UK) LIMITED                  ,22-Feb-11,3202119,868.52
Care & Support (Adults & Children),Older People & Physical Disability,CDX,THIRD PARTY PAYMENTS          ,Homecare Expenditure          ,PRIORITY CARE (SHROPSHIRE) LTD          ,07-Mar-11,3212190,869.32
Care & Support (Adults & Children),Older People & Physical Disability,CDX,THIRD PARTY PAYMENTS          ,Homecare Expenditure          ,PARADIGM HEALTH & SOCIAL CARE LTD   ,14-Feb-11,3199138,870.4
Care & Support (Adults & Children),Older People & Physical Disability,CDX,THIRD PARTY PAYMENTS          ,Homecare Expenditure          ,PARADIGM HEALTH & SOCIAL CARE LTD   ,14-Mar-11,3212677,870.4
Care & Support (Adults & Children),Older People & Physical Disability,CDX,THIRD PARTY PAYMENTS          ,Homecare Expenditure          ,D H HOMECARE LTD                        ,02-Mar-11,3207034,876.12
Care & Support (Adults & Children),Older People & Physical Disability,CDX,THIRD PARTY PAYMENTS          ,Homecare Expenditure          ,SUPREME HOME CARE                       ,01-Mar-11,3209538,876.5
Care & Support (Adults & Children),Older People & Physical Disability,CDX,THIRD PARTY PAYMENTS          ,Homecare Expenditure          ,SUPREME HOME CARE                       ,01-Mar-11,3209155,877.23
Care & Support (Adults & Children),Older People & Physical Disability,CDX,THIRD PARTY PAYMENTS          ,Homecare Expenditure          ,D H HOMECARE LTD                        ,02-Mar-11,3207042,878.44
Care & Support (Adults & Children),Older People & Physical Disability,CDX,THIRD PARTY PAYMENTS          ,Homecare Expenditure          ,PRIORITY CARE (SHROPSHIRE) LTD          ,07-Mar-11,3212189,882.14
Care & Support (Adults & Children),Older People & Physical Disability,CDX,THIRD PARTY PAYMENTS          ,Homecare Expenditure          ,PEACE OF MIND HOMECARE LIMITED          ,28-Feb-11,3202448,884.64
Care & Support (Adults & Children),Older People & Physical Disability,CDX,THIRD PARTY PAYMENTS          ,Homecare Expenditure          ,PEACE OF MIND HOMECARE LIMITED          ,21-Mar-11,3216934,884.64
Care & Support (Adults & Children),Older People & Physical Disability,CDX,THIRD PARTY PAYMENTS          ,Homecare Expenditure          ,D H HOMECARE LTD                        ,02-Mar-11,3207016,895.6
Care & Support (Adults & Children),Older People & Physical Disability,CDX,THIRD PARTY PAYMENTS          ,Homecare Expenditure          ,WREKIN CARE CO-OPERATIVE LIMITED        ,01-Mar-11,3202418,896.2
Care & Support (Adults & Children),Older People & Physical Disability,CDX,THIRD PARTY PAYMENTS          ,Homecare Expenditure          ,PRIORITY CARE (SHROPSHIRE) LTD          ,07-Mar-11,3212148,896.71
Care & Support (Adults & Children),Older People & Physical Disability,CDX,THIRD PARTY PAYMENTS          ,Homecare Expenditure          ,SEVA CARE (UK) LIMITED                  ,22-Feb-11,3202121,898.76
Care & Support (Adults & Children),Older People & Physical Disability,CDX,THIRD PARTY PAYMENTS          ,Homecare Expenditure          ,SEVA CARE (UK) LIMITED                  ,22-Feb-11,3203467,898.76
Care & Support (Adults & Children),Older People & Physical Disability,CDX,THIRD PARTY PAYMENTS          ,Homecare Expenditure          ,SEVA CARE (UK) LIMITED                  ,22-Mar-11,3216204,898.76
Care & Support (Adults & Children),Older People & Physical Disability,CDX,THIRD PARTY PAYMENTS          ,Homecare Expenditure          ,D H HOMECARE LTD                        ,02-Mar-11,3207020,901.38
Care & Support (Adults & Children),Older People & Physical Disability,CDX,THIRD PARTY PAYMENTS          ,Homecare Expenditure          ,PARADIGM HEALTH & SOCIAL CARE LTD   ,14-Feb-11,3199137,903
Care & Support (Adults & Children),Older People & Physical Disability,CDX,THIRD PARTY PAYMENTS          ,Health Funded Services        ,ALLIED HEALTHCARE GROUP LTD             ,23-Feb-11,3201904,905.8
Care & Support (Adults & Children),Older People & Physical Disability,CDX,THIRD PARTY PAYMENTS          ,Homecare Expenditure          ,D H HOMECARE LTD                        ,02-Mar-11,3207040,906.04
Care & Support (Adults & Children),Older People & Physical Disability,CDX,THIRD PARTY PAYMENTS          ,Homecare Expenditure          ,SEVA CARE (UK) LIMITED                  ,22-Feb-11,3203472,909.92
Care & Support (Adults & Children),Older People & Physical Disability,CDX,THIRD PARTY PAYMENTS          ,Homecare Expenditure          ,SEVA CARE (UK) LIMITED                  ,22-Mar-11,3216156,909.92
Care & Support (Adults & Children),Older People & Physical Disability,CDX,THIRD PARTY PAYMENTS          ,Homecare Expenditure          ,ALLIED HEALTHCARE GROUP LTD             ,02-Mar-11,3206953,913.37
Care & Support (Adults & Children),Older People & Physical Disability,CDX,THIRD PARTY PAYMENTS          ,Homecare Expenditure          ,SUPREME HOME CARE                       ,01-Mar-11,3209129,913.6
Care & Support (Adults & Children),Older People & Physical Disability,CDX,THIRD PARTY PAYMENTS          ,Homecare Expenditure          ,SEVA CARE (UK) LIMITED                  ,22-Feb-11,3202101,922.28
Care & Support (Adults & Children),Older People & Physical Disability,CDX,THIRD PARTY PAYMENTS          ,Homecare Expenditure          ,SUPREME HOME CARE                       ,01-Mar-11,3209323,922.64
Care & Support (Adults & Children),Older People & Physical Disability,CDX,THIRD PARTY PAYMENTS          ,Homecare Expenditure          ,WREKIN CARE CO-OPERATIVE LIMITED        ,01-Mar-11,3202421,927.76
Care & Support (Adults & Children),Older People & Physical Disability,CDX,THIRD PARTY PAYMENTS          ,Homecare Expenditure          ,PRIORITY CARE (SHROPSHIRE) LTD          ,07-Mar-11,3212154,934.78
Care & Support (Adults & Children),Older People & Physical Disability,CDX,THIRD PARTY PAYMENTS          ,Homecare Expenditure          ,WREKIN CARE CO-OPERATIVE LIMITED        ,01-Mar-11,3202439,936
Care & Support (Adults & Children),Older People & Physical Disability,CDX,THIRD PARTY PAYMENTS          ,Homecare Expenditure          ,D H HOMECARE LTD                        ,02-Mar-11,3207011,939.78
Care & Support (Adults & Children),Older People & Physical Disability,CDX,THIRD PARTY PAYMENTS          ,Homecare Expenditure          ,PRIORITY CARE (SHROPSHIRE) LTD          ,07-Mar-11,3212249,941.52
Care & Support (Adults & Children),Older People & Physical Disability,CDX,THIRD PARTY PAYMENTS          ,Homecare Expenditure          ,ALLIED HEALTHCARE GROUP LTD             ,23-Mar-11,3220111,943.03
Care & Support (Adults & Children),Older People & Physical Disability,CDX,THIRD PARTY PAYMENTS          ,Homecare Expenditure          ,PRIORITY CARE (SHROPSHIRE) LTD          ,07-Mar-11,3212099,948.2
Care & Support (Adults & Children),Older People & Physical Disability,CDX,THIRD PARTY PAYMENTS          ,Homecare Expenditure          ,SEVA CARE (UK) LIMITED                  ,22-Mar-11,3216192,948.88
Care & Support (Adults & Children),Older People & Physical Disability,CDX,THIRD PARTY PAYMENTS          ,Homecare Expenditure          ,D H HOMECARE LTD                        ,02-Mar-11,3207058,954.66
Care & Support (Adults & Children),Older People & Physical Disability,CDX,THIRD PARTY PAYMENTS          ,Homecare Expenditure          ,PEACE OF MIND HOMECARE LIMITED          ,21-Mar-11,3216917,957.6
Care & Support (Adults & Children),Older People & Physical Disability,CDX,THIRD PARTY PAYMENTS          ,Health Funded Services        ,EXPRESS TRAVEL                          ,01-Mar-11,3204885,960
Care & Support (Adults & Children),Older People & Physical Disability,CDX,THIRD PARTY PAYMENTS          ,Homecare Expenditure          ,PEACE OF MIND HOMECARE LIMITED          ,22-Feb-11,3202461,960.32
Care & Support (Adults & Children),Older People & Physical Disability,CDX,THIRD PARTY PAYMENTS          ,Homecare Expenditure          ,PEACE OF MIND HOMECARE LIMITED          ,21-Mar-11,3216896,960.32
Care & Support (Adults & Children),Older People & Physical Disability,CDX,THIRD PARTY PAYMENTS          ,Homecare Expenditure          ,TENDER CARE                             ,01-Mar-11,3203331,961.52
Care & Support (Adults & Children),Older People & Physical Disability,CDX,THIRD PARTY PAYMENTS          ,Homecare Expenditure          ,D H HOMECARE LTD                        ,02-Mar-11,3207031,963.44
Care & Support (Adults & Children),Older People & Physical Disability,CDX,THIRD PARTY PAYMENTS          ,Homecare Expenditure          ,WREKIN CARE CO-OPERATIVE LIMITED        ,01-Mar-11,3202437,979.75
Care & Support (Adults & Children),Older People & Physical Disability,CDX,THIRD PARTY PAYMENTS          ,Homecare Expenditure          ,PARADIGM HEALTH & SOCIAL CARE LTD   ,14-Mar-11,3212672,990.2
Care & Support (Adults & Children),Older People & Physical Disability,CDX,THIRD PARTY PAYMENTS          ,Homecare Expenditure          ,SUPREME HOME CARE                       ,01-Mar-11,3209539,991.7
Care & Support (Adults & Children),Older People & Physical Disability,CDX,THIRD PARTY PAYMENTS          ,Homecare Expenditure          ,TENDER CARE                             ,01-Mar-11,3203267,994.56
Care & Support (Adults & Children),Older People & Physical Disability,CDX,THIRD PARTY PAYMENTS          ,Homecare Expenditure          ,D H HOMECARE LTD                        ,02-Mar-11,3207014,1004.2
Care & Support (Adults & Children),Older People & Physical Disability,CDX,THIRD PARTY PAYMENTS          ,Homecare Expenditure          ,SUPREME HOME CARE                       ,01-Mar-11,3209325,1016.42
Care & Support (Adults & Children),Older People & Physical Disability,CDX,THIRD PARTY PAYMENTS          ,Homecare Expenditure          ,SUPREME HOME CARE                       ,01-Mar-11,3209158,1026.88
Care & Support (Adults & Children),Older People & Physical Disability,CDX,THIRD PARTY PAYMENTS          ,Health Funded Services        ,PEACE OF MIND HOMECARE LIMITED          ,21-Mar-11,3216980,1029.16
Care & Support (Adults & Children),Older People & Physical Disability,CDX,THIRD PARTY PAYMENTS          ,Homecare Expenditure          ,SEVA CARE (UK) LIMITED                  ,22-Feb-11,3202115,1029.84
Care & Support (Adults & Children),Older People & Physical Disability,CDX,THIRD PARTY PAYMENTS          ,Homecare Expenditure          ,SEVA CARE (UK) LIMITED                  ,22-Feb-11,3203473,1029.84
Care & Support (Adults & Children),Older People & Physical Disability,CDX,THIRD PARTY PAYMENTS          ,Homecare Expenditure          ,SEVA CARE (UK) LIMITED                  ,22-Mar-11,3216157,1029.84
Care & Support (Adults & Children),Older People & Physical Disability,CDX,THIRD PARTY PAYMENTS          ,Homecare Expenditure          ,SEVA CARE (UK) LIMITED                  ,22-Mar-11,3216199,1029.84
Care & Support (Adults & Children),Older People & Physical Disability,CDX,THIRD PARTY PAYMENTS          ,Homecare Expenditure          ,D H HOMECARE LTD                        ,02-Mar-11,3207046,1045.68
Care & Support (Adults & Children),Older People & Physical Disability,CDX,THIRD PARTY PAYMENTS          ,Homecare Expenditure          ,ALLIED HEALTHCARE GROUP LTD             ,23-Feb-11,3202032,1046.09
Care & Support (Adults & Children),Older People & Physical Disability,CDX,THIRD PARTY PAYMENTS          ,Homecare Expenditure          ,PHOENIX CARE PARTNERS                   ,02-Mar-11,3204340,1051.48
Care & Support (Adults & Children),Older People & Physical Disability,CDX,THIRD PARTY PAYMENTS          ,Homecare Expenditure          ,D H HOMECARE LTD                        ,02-Mar-11,3206989,1052.36
Care & Support (Adults & Children),Older People & Physical Disability,CDX,THIRD PARTY PAYMENTS          ,Homecare Expenditure          ,SUPREME HOME CARE                       ,01-Mar-11,3209321,1054.68
Care & Support (Adults & Children),Older People & Physical Disability,CDX,THIRD PARTY PAYMENTS          ,Homecare Expenditure          ,D H HOMECARE LTD                        ,02-Mar-11,3207047,1069.02
Care & Support (Adults & Children),Older People & Physical Disability,CDX,THIRD PARTY PAYMENTS          ,Homecare Expenditure          ,ALLIED HEALTHCARE GROUP LTD             ,23-Mar-11,3219968,1071.62
Care & Support (Adults & Children),Older People & Physical Disability,CDX,THIRD PARTY PAYMENTS          ,Homecare Expenditure          ,PRIORITY CARE (SHROPSHIRE) LTD          ,07-Mar-11,3212246,1073
Care & Support (Adults & Children),Older People & Physical Disability,CDX,THIRD PARTY PAYMENTS          ,Homecare Expenditure          ,SUPREME HOME CARE                       ,01-Mar-11,3209156,1075.81
Care & Support (Adults & Children),Older People & Physical Disability,CDX,THIRD PARTY PAYMENTS          ,Homecare Expenditure          ,D H HOMECARE LTD                        ,02-Mar-11,3207022,1096.04
Care & Support (Adults & Children),Older People & Physical Disability,CDX,THIRD PARTY PAYMENTS          ,Homecare Expenditure          ,D H HOMECARE LTD                        ,02-Mar-11,3207030,1097.51
Care & Support (Adults & Children),Older People & Physical Disability,CDX,THIRD PARTY PAYMENTS          ,Homecare Expenditure          ,SUPREME HOME CARE                       ,01-Mar-11,3209282,1106.48
Care & Support (Adults & Children),Older People & Physical Disability,CDX,THIRD PARTY PAYMENTS          ,Homecare Expenditure          ,SUPREME HOME CARE                       ,01-Mar-11,3209537,1106.85
Care & Support (Adults & Children),Older People & Physical Disability,CDX,THIRD PARTY PAYMENTS          ,Homecare Expenditure          ,SUPREME HOME CARE                       ,01-Mar-11,3209536,1110.85
Care & Support (Adults & Children),Older People & Physical Disability,CDX,THIRD PARTY PAYMENTS          ,Homecare Expenditure          ,ALLIED HEALTHCARE GROUP LTD             ,23-Feb-11,3201929,1114.84
Care & Support (Adults & Children),Older People & Physical Disability,CDX,THIRD PARTY PAYMENTS          ,Health Funded Services        ,SEVA CARE (UK) LIMITED                  ,22-Mar-11,3216211,1121.36
Care & Support (Adults & Children),Older People & Physical Disability,CDX,THIRD PARTY PAYMENTS          ,Homecare Expenditure          ,SEVA CARE (UK) LIMITED                  ,22-Feb-11,3203558,1123
Care & Support (Adults & Children),Older People & Physical Disability,CDX,THIRD PARTY PAYMENTS          ,Homecare Expenditure          ,SEVA CARE (UK) LIMITED                  ,22-Mar-11,3216146,1123
Care & Support (Adults & Children),Older People & Physical Disability,CDX,THIRD PARTY PAYMENTS          ,Homecare Expenditure          ,SEVA CARE (UK) LIMITED                  ,22-Mar-11,3216151,1126.24
Care & Support (Adults & Children),Older People & Physical Disability,CDX,THIRD PARTY PAYMENTS          ,Health Funded Services        ,SEVA CARE (UK) LIMITED                  ,22-Feb-11,3202170,1135.53
Care & Support (Adults & Children),Older People & Physical Disability,CDX,THIRD PARTY PAYMENTS          ,Homecare Expenditure          ,D H HOMECARE LTD                        ,02-Mar-11,3207019,1136.17
Care & Support (Adults & Children),Older People & Physical Disability,CDX,THIRD PARTY PAYMENTS          ,Homecare Expenditure          ,D H HOMECARE LTD                        ,02-Mar-11,3207009,1136.8
Care & Support (Adults & Children),Older People & Physical Disability,CDX,THIRD PARTY PAYMENTS          ,Homecare Expenditure          ,HEALTH CARE EVENTS & CONFERENCES        ,07-Mar-11,3207083,1138.28
Care & Support (Adults & Children),Older People & Physical Disability,CDX,THIRD PARTY PAYMENTS          ,Homecare Expenditure          ,D H HOMECARE LTD                        ,02-Mar-11,3207008,1142.82
Care & Support (Adults & Children),Older People & Physical Disability,CDX,THIRD PARTY PAYMENTS          ,Homecare Expenditure          ,PEACE OF MIND HOMECARE LIMITED          ,22-Feb-11,3199475,1145.76
Care & Support (Adults & Children),Older People & Physical Disability,CDX,THIRD PARTY PAYMENTS          ,Homecare Expenditure          ,PEACE OF MIND HOMECARE LIMITED          ,21-Mar-11,3216986,1147.28
Care & Support (Adults & Children),Older People & Physical Disability,CDX,THIRD PARTY PAYMENTS          ,Homecare Expenditure          ,D H HOMECARE LTD                        ,02-Mar-11,3207056,1169.12
Care & Support (Adults & Children),Older People & Physical Disability,CDX,THIRD PARTY PAYMENTS          ,Homecare Expenditure          ,SEVA CARE (UK) LIMITED                  ,22-Feb-11,3203555,1187.26
Care & Support (Adults & Children),Older People & Physical Disability,CDX,THIRD PARTY PAYMENTS          ,Homecare Expenditure          ,PARADIGM HEALTH & SOCIAL CARE LTD   ,14-Mar-11,3212676,1204
Care & Support (Adults & Children),Older People & Physical Disability,CDX,THIRD PARTY PAYMENTS          ,Homecare Expenditure          ,PHOENIX CARE PARTNERS                   ,02-Mar-11,3204368,1208.44
Care & Support (Adults & Children),Older People & Physical Disability,CDX,THIRD PARTY PAYMENTS          ,Homecare Expenditure          ,SEVA CARE (UK) LIMITED                  ,22-Mar-11,3216143,1209.32
Care & Support (Adults & Children),Older People & Physical Disability,CDX,THIRD PARTY PAYMENTS          ,Homecare Expenditure          ,WREKIN CARE CO-OPERATIVE LIMITED        ,01-Mar-11,3202424,1222.2
Care & Support (Adults & Children),Older People & Physical Disability,CDX,THIRD PARTY PAYMENTS          ,Health Funded Services        ,ALLIED HEALTHCARE GROUP LTD             ,23-Feb-11,3201923,1224.35
Care & Support (Adults & Children),Older People & Physical Disability,CDX,THIRD PARTY PAYMENTS          ,Homecare Expenditure          ,D H HOMECARE LTD                        ,02-Mar-11,3207017,1238.99
Care & Support (Adults & Children),Older People & Physical Disability,CDX,THIRD PARTY PAYMENTS          ,Homecare Expenditure          ,SEVA CARE (UK) LIMITED                  ,22-Feb-11,3202169,1243
Care & Support (Adults & Children),Older People & Physical Disability,CDX,THIRD PARTY PAYMENTS          ,Homecare Expenditure          ,SEVA CARE (UK) LIMITED                  ,22-Mar-11,3216209,1243
Care & Support (Adults & Children),Older People & Physical Disability,CDX,THIRD PARTY PAYMENTS          ,Homecare Expenditure          ,TENDER CARE                             ,01-Mar-11,3203197,1259.32
Care & Support (Adults & Children),Older People & Physical Disability,CDX,THIRD PARTY PAYMENTS          ,Homecare Expenditure          ,WREKIN CARE CO-OPERATIVE LIMITED        ,01-Mar-11,3202436,1261.68
Care & Support (Adults & Children),Older People & Physical Disability,CDX,THIRD PARTY PAYMENTS          ,Homecare Expenditure          ,SUPREME HOME CARE                       ,01-Mar-11,3209322,1266.3
Care & Support (Adults & Children),Older People & Physical Disability,CDX,THIRD PARTY PAYMENTS          ,Homecare Expenditure          ,PEACE OF MIND HOMECARE LIMITED          ,22-Feb-11,3199183,1276.8
Care & Support (Adults & Children),Older People & Physical Disability,CDX,THIRD PARTY PAYMENTS          ,Homecare Expenditure          ,PHOENIX CARE PARTNERS                   ,02-Mar-11,3204270,1336
Care & Support (Adults & Children),Older People & Physical Disability,CDX,THIRD PARTY PAYMENTS          ,Homecare Expenditure          ,PEACE OF MIND HOMECARE LIMITED          ,21-Mar-11,3216733,1339.42
Care & Support (Adults & Children),Older People & Physical Disability,CDX,THIRD PARTY PAYMENTS          ,Homecare Expenditure          ,D H HOMECARE LTD                        ,02-Mar-11,3206996,1346.16
Care & Support (Adults & Children),Older People & Physical Disability,CDX,THIRD PARTY PAYMENTS          ,Health Funded Services        ,ALLIED HEALTHCARE GROUP LTD             ,23-Mar-11,3219975,1365.04
Care & Support (Adults & Children),Older People & Physical Disability,CDX,THIRD PARTY PAYMENTS          ,Homecare Expenditure          ,SEVA CARE (UK) LIMITED                  ,22-Mar-11,3216205,1373.18
Care & Support (Adults & Children),Older People & Physical Disability,CDX,THIRD PARTY PAYMENTS          ,Homecare Expenditure          ,SUPREME HOME CARE                       ,01-Mar-11,3209275,1422.32
Care & Support (Adults & Children),Older People & Physical Disability,CDX,THIRD PARTY PAYMENTS          ,Homecare Expenditure          ,PHOENIX CARE PARTNERS                   ,02-Mar-11,3204269,1438.16
Care & Support (Adults & Children),Older People & Physical Disability,CDX,THIRD PARTY PAYMENTS          ,Homecare Expenditure          ,ALLIED HEALTHCARE GROUP LTD             ,23-Feb-11,3203156,1449.51
Care & Support (Adults & Children),Older People & Physical Disability,CDX,THIRD PARTY PAYMENTS          ,Homecare Expenditure          ,PEACE OF MIND HOMECARE LIMITED          ,21-Mar-11,3216736,1480.24
Care & Support (Adults & Children),Older People & Physical Disability,CDX,THIRD PARTY PAYMENTS          ,Homecare Expenditure          ,HEALTH CARE EVENTS & CONFERENCES        ,07-Mar-11,3207087,1484.84
Care & Support (Adults & Children),Older People & Physical Disability,CDX,THIRD PARTY PAYMENTS          ,Homecare Expenditure          ,ALLIED HEALTHCARE GROUP LTD             ,23-Feb-11,3201932,1501.35
Care & Support (Adults & Children),Older People & Physical Disability,CDX,THIRD PARTY PAYMENTS          ,Homecare Expenditure          ,SUPREME HOME CARE                       ,01-Mar-11,3209324,1516.16
Care & Support (Adults & Children),Older People & Physical Disability,CDX,THIRD PARTY PAYMENTS          ,Homecare Expenditure          ,ALLIED HEALTHCARE GROUP LTD             ,23-Feb-11,3202036,1520.19
Care & Support (Adults & Children),Older People & Physical Disability,CDX,THIRD PARTY PAYMENTS          ,Homecare Expenditure          ,ALLIED HEALTHCARE GROUP LTD             ,23-Mar-11,3220116,1567.04
Care & Support (Adults & Children),Older People & Physical Disability,CDX,THIRD PARTY PAYMENTS          ,Homecare Expenditure          ,D H HOMECARE LTD                        ,02-Mar-11,3207004,1567.96
Care & Support (Adults & Children),Older People & Physical Disability,CDX,THIRD PARTY PAYMENTS          ,Homecare Expenditure          ,ALLIED HEALTHCARE GROUP LTD             ,23-Feb-11,3202033,1570.62
Care & Support (Adults & Children),Older People & Physical Disability,CDX,THIRD PARTY PAYMENTS          ,Homecare Expenditure          ,ALLIED HEALTHCARE GROUP LTD             ,23-Mar-11,3220108,1576.96
Care & Support (Adults & Children),Older People & Physical Disability,CDX,THIRD PARTY PAYMENTS          ,Homecare Expenditure          ,SUPREME HOME CARE                       ,01-Mar-11,3209126,1601.76
Care & Support (Adults & Children),Older People & Physical Disability,CDX,THIRD PARTY PAYMENTS          ,Homecare Expenditure          ,SUPREME HOME CARE                       ,01-Mar-11,3209154,1603.04
Care & Support (Adults & Children),Older People & Physical Disability,CDX,THIRD PARTY PAYMENTS          ,Homecare Expenditure          ,ALLIED HEALTHCARE GROUP LTD             ,23-Feb-11,3202029,1604.17
Care & Support (Adults & Children),Older People & Physical Disability,CDX,THIRD PARTY PAYMENTS          ,Homecare Expenditure          ,PEACE OF MIND HOMECARE LIMITED          ,22-Feb-11,3203609,1613.12
Care & Support (Adults & Children),Older People & Physical Disability,CDX,THIRD PARTY PAYMENTS          ,Homecare Expenditure          ,PEACE OF MIND HOMECARE LIMITED          ,21-Mar-11,3216738,1613.12
Care & Support (Adults & Children),Older People & Physical Disability,CDX,THIRD PARTY PAYMENTS          ,Homecare Expenditure          ,SUPREME HOME CARE                       ,01-Mar-11,3209123,1634.26
Care & Support (Adults & Children),Older People & Physical Disability,CDX,THIRD PARTY PAYMENTS          ,Homecare Expenditure          ,PHOENIX CARE PARTNERS                   ,02-Mar-11,3204346,1778.41
Care & Support (Adults & Children),Older People & Physical Disability,CDX,THIRD PARTY PAYMENTS          ,Homecare Expenditure          ,HEALTH CARE EVENTS & CONFERENCES        ,07-Mar-11,3207086,1794.64
Care & Support (Adults & Children),Older People & Physical Disability,CDX,THIRD PARTY PAYMENTS          ,Homecare Expenditure          ,PEACE OF MIND HOMECARE LIMITED          ,22-Feb-11,3199472,1795.44
Care & Support (Adults & Children),Older People & Physical Disability,CDX,THIRD PARTY PAYMENTS          ,Health Funded Services        ,WREKIN CARE CO-OPERATIVE LIMITED        ,01-Mar-11,3202423,1837.15
Care & Support (Adults & Children),Older People & Physical Disability,CDX,THIRD PARTY PAYMENTS          ,Homecare Expenditure          ,PRIORITY CARE (SHROPSHIRE) LTD          ,07-Mar-11,3212624,1883.04
Care & Support (Adults & Children),Older People & Physical Disability,CDX,THIRD PARTY PAYMENTS          ,Health Funded Services        ,PEACE OF MIND HOMECARE LIMITED          ,22-Feb-11,3202462,1895.02
Care & Support (Adults & Children),Older People & Physical Disability,CDX,THIRD PARTY PAYMENTS          ,Homecare Expenditure          ,SEVA CARE (UK) LIMITED                  ,22-Feb-11,3202117,1978.02
Care & Support (Adults & Children),Older People & Physical Disability,CDX,THIRD PARTY PAYMENTS          ,Homecare Expenditure          ,SEVA CARE (UK) LIMITED                  ,22-Mar-11,3216201,1978.02
Care & Support (Adults & Children),Older People & Physical Disability,CDX,THIRD PARTY PAYMENTS          ,Homecare Expenditure          ,PRIORITY CARE (SHROPSHIRE) LTD          ,07-Mar-11,3212613,2022.94
Care & Support (Adults & Children),Older People & Physical Disability,CDX,THIRD PARTY PAYMENTS          ,Homecare Expenditure          ,D H HOMECARE LTD                        ,02-Mar-11,3207051,2049.68
Care & Support (Adults & Children),Older People & Physical Disability,CDX,THIRD PARTY PAYMENTS          ,Homecare Expenditure          ,SEVA CARE (UK) LIMITED                  ,22-Feb-11,3202167,2059.68
Care & Support (Adults & Children),Older People & Physical Disability,CDX,THIRD PARTY PAYMENTS          ,Homecare Expenditure          ,SEVA CARE (UK) LIMITED                  ,22-Mar-11,3216207,2059.68
Care & Support (Adults & Children),Older People & Physical Disability,CDX,THIRD PARTY PAYMENTS          ,Homecare Expenditure          ,ALLIED HEALTHCARE GROUP LTD             ,23-Feb-11,3201930,2077.42
Care & Support (Adults & Children),Older People & Physical Disability,CDX,THIRD PARTY PAYMENTS          ,Homecare Expenditure          ,D H HOMECARE LTD                        ,02-Mar-11,3207045,2124.2
Care & Support (Adults & Children),Older People & Physical Disability,CDX,THIRD PARTY PAYMENTS          ,Homecare Expenditure          ,PRIORITY CARE (SHROPSHIRE) LTD          ,07-Mar-11,3212620,2125.28
Care & Support (Adults & Children),Older People & Physical Disability,CDX,THIRD PARTY PAYMENTS          ,Homecare Expenditure          ,PARADIGM HEALTH & SOCIAL CARE LTD   ,14-Feb-11,3199131,2134.4
Care & Support (Adults & Children),Older People & Physical Disability,CDX,THIRD PARTY PAYMENTS          ,Homecare Expenditure          ,PARADIGM HEALTH & SOCIAL CARE LTD   ,14-Mar-11,3212669,2134.4
Care & Support (Adults & Children),Older People & Physical Disability,CDX,THIRD PARTY PAYMENTS          ,Homecare Expenditure          ,ALLIED HEALTHCARE GROUP LTD             ,23-Feb-11,3201928,2158.09
Care & Support (Adults & Children),Older People & Physical Disability,CDX,THIRD PARTY PAYMENTS          ,Homecare Expenditure          ,D H HOMECARE LTD                        ,02-Mar-11,3207065,2176.8
Care & Support (Adults & Children),Older People & Physical Disability,CDX,THIRD PARTY PAYMENTS          ,Homecare Expenditure          ,PRIORITY CARE (SHROPSHIRE) LTD          ,07-Mar-11,3212247,2187.9
Care & Support (Adults & Children),Older People & Physical Disability,CDX,THIRD PARTY PAYMENTS          ,Homecare Expenditure          ,PRIORITY CARE (SHROPSHIRE) LTD          ,07-Mar-11,3212609,2206.4
Care & Support (Adults & Children),Older People & Physical Disability,CDX,THIRD PARTY PAYMENTS          ,Homecare Expenditure          ,ALLIED HEALTHCARE GROUP LTD             ,23-Feb-11,3203157,2225.11
Care & Support (Adults & Children),Older People & Physical Disability,CDX,THIRD PARTY PAYMENTS          ,Homecare Expenditure          ,SEVA CARE (UK) LIMITED                  ,22-Feb-11,3202120,2227
Care & Support (Adults & Children),Older People & Physical Disability,CDX,THIRD PARTY PAYMENTS          ,Homecare Expenditure          ,SEVA CARE (UK) LIMITED                  ,22-Mar-11,3216203,2227
Care & Support (Adults & Children),Older People & Physical Disability,CDX,THIRD PARTY PAYMENTS          ,Homecare Expenditure          ,COMPLETE CARE HOLDINGS LTD              ,02-Mar-11,3207074,2231.88
Care & Support (Adults & Children),Older People & Physical Disability,CDX,THIRD PARTY PAYMENTS          ,Homecare Expenditure          ,PRIORITY CARE (SHROPSHIRE) LTD          ,07-Mar-11,3212155,2291.94
Care & Support (Adults & Children),Older People & Physical Disability,CDX,THIRD PARTY PAYMENTS          ,Homecare Expenditure          ,D H HOMECARE LTD                        ,02-Mar-11,3206990,2300
Care & Support (Adults & Children),Older People & Physical Disability,CDX,THIRD PARTY PAYMENTS          ,Homecare Expenditure          ,D H HOMECARE LTD                        ,02-Mar-11,3206992,2351.78
Care & Support (Adults & Children),Older People & Physical Disability,CDX,THIRD PARTY PAYMENTS          ,Homecare Expenditure          ,PEACE OF MIND HOMECARE LIMITED          ,21-Mar-11,3216933,2390.92
Care & Support (Adults & Children),Older People & Physical Disability,CDX,THIRD PARTY PAYMENTS          ,Homecare Expenditure          ,PEACE OF MIND HOMECARE LIMITED          ,22-Feb-11,3202447,2403.52
Care & Support (Adults & Children),Older People & Physical Disability,CDX,THIRD PARTY PAYMENTS          ,Homecare Expenditure          ,ALLIED HEALTHCARE GROUP LTD             ,23-Mar-11,3219967,2411.76
Care & Support (Adults & Children),Older People & Physical Disability,CDX,THIRD PARTY PAYMENTS          ,Homecare Expenditure          ,PRIORITY CARE (SHROPSHIRE) LTD          ,07-Mar-11,3212192,2529.76
Care & Support (Adults & Children),Older People & Physical Disability,CDX,THIRD PARTY PAYMENTS          ,Homecare Expenditure          ,PHOENIX CARE PARTNERS                   ,02-Mar-11,3204271,2573.92
Care & Support (Adults & Children),Older People & Physical Disability,CDX,THIRD PARTY PAYMENTS          ,Homecare Expenditure          ,PEACE OF MIND HOMECARE LIMITED          ,22-Feb-11,3202446,2577.92
Care & Support (Adults & Children),Older People & Physical Disability,CDX,THIRD PARTY PAYMENTS          ,Homecare Expenditure          ,PEACE OF MIND HOMECARE LIMITED          ,21-Mar-11,3216932,2577.92
Care & Support (Adults & Children),Older People & Physical Disability,CDX,THIRD PARTY PAYMENTS          ,Homecare Expenditure          ,HEALTH CARE EVENTS & CONFERENCES        ,07-Mar-11,3207085,2608.04
Care & Support (Adults & Children),Older People & Physical Disability,CDX,THIRD PARTY PAYMENTS          ,Homecare Expenditure          ,SUPREME HOME CARE                       ,01-Mar-11,3209320,2695.84
Care & Support (Adults & Children),Older People & Physical Disability,CDX,THIRD PARTY PAYMENTS          ,Health Funded Services        ,PHOENIX CARE PARTNERS                   ,02-Mar-11,3204345,2740.74
Care & Support (Adults & Children),Older People & Physical Disability,CDX,THIRD PARTY PAYMENTS          ,Homecare Expenditure          ,PRIORITY CARE (SHROPSHIRE) LTD          ,07-Mar-11,3212095,2745.36
Care & Support (Adults & Children),Older People & Physical Disability,CDX,THIRD PARTY PAYMENTS          ,Homecare Expenditure          ,ALLIED HEALTHCARE GROUP LTD             ,26-Jan-11,3201927,2792.48
Care & Support (Adults & Children),Older People & Physical Disability,CDX,THIRD PARTY PAYMENTS          ,Health Funded Services        ,PRIORITY CARE (SHROPSHIRE) LTD          ,07-Mar-11,3212244,2794.29
Care & Support (Adults & Children),Older People & Physical Disability,CDX,THIRD PARTY PAYMENTS          ,Homecare Expenditure          ,D H HOMECARE LTD                        ,02-Mar-11,3207052,2870.88
Care & Support (Adults & Children),Older People & Physical Disability,CDX,THIRD PARTY PAYMENTS          ,Homecare Expenditure          ,SUPREME HOME CARE                       ,01-Mar-11,3209326,3238.4
Care & Support (Adults & Children),Older People & Physical Disability,CDX,THIRD PARTY PAYMENTS          ,Health Funded Services        ,ALLIED HEALTHCARE GROUP LTD             ,23-Feb-11,3201921,4334.79
Care & Support (Adults & Children),Older People & Physical Disability,CDY,THIRD PARTY PAYMENTS          ,Health Funded Services        ,NEWPORT COTTAGE CARE CENTRE             ,01-Feb-11,3205265,5457.6
Care & Support (Adults & Children),Older People & Physical Disability,CDY,THIRD PARTY PAYMENTS          ,Daycare Expenditure           ,ACCORD HOUSING ASSOCIATION LIMITED      ,10-Feb-11,3201180,19483.19
Care & Support (Adults & Children),Older People & Physical Disability,CDY,THIRD PARTY PAYMENTS          ,Daycare Expenditure           ,ACCORD HOUSING ASSOCIATION LIMITED      ,11-Feb-11,3201179,19483.2
Care & Support (Adults & Children),Older People & Physical Disability,CDZ,THIRD PARTY PAYMENTS          ,Homecare Expenditure          ,THE EXTRA CARE CHARITABLE TRUST         ,31-Jan-11,3199662,2082.9
Care & Support (Adults & Children),Older People & Physical Disability,CDZ,THIRD PARTY PAYMENTS          ,Homecare Expenditure          ,COVERAGE CARE SERVICES LTD              ,31-Jan-11,3201692,4390.16
Care & Support (Adults & Children),Older People & Physical Disability,CDZ,THIRD PARTY PAYMENTS          ,Homecare Expenditure          ,ACCORD HOUSING ASSOCIATION LIMITED      ,31-Jan-11,3201181,28252.61
Care & Support (Adults & Children),Older People & Physical Disability,CDZ,THIRD PARTY PAYMENTS          ,Homecare Expenditure          ,COVERAGE CARE SERVICES LTD              ,31-Jan-11,3201185,41985.74
Care & Support (Adults & Children),Older People & Physical Disability,CDZ,THIRD PARTY PAYMENTS          ,Homecare Expenditure          ,COVERAGE CARE SERVICES LTD              ,31-Dec-10,3201188,46178.25
Care & Support (Adults & Children),Older People & Physical Disability,CEG,THIRD PARTY PAYMENTS          ,Daycare Expenditure           ,BRIDGE HOUSE CARE LTD                   ,30-Jan-11,3199462,559.8
Care & Support (Adults & Children),Older People & Physical Disability,CEG,THIRD PARTY PAYMENTS          ,Daycare Expenditure           ,BRIDGE HOUSE CARE LTD                   ,30-Jan-11,3199463,559.8
Care & Support (Adults & Children),Older People & Physical Disability,CEG,THIRD PARTY PAYMENTS          ,Daycare Expenditure           ,BRIDGE HOUSE CARE LTD                   ,28-Feb-11,3212664,559.8
Care & Support (Adults & Children),Older People & Physical Disability,CEG,THIRD PARTY PAYMENTS          ,Daycare Expenditure           ,BRIDGE HOUSE CARE LTD                   ,28-Feb-11,3212665,559.8
Care & Support (Adults & Children),Older People & Physical Disability,CEG,THIRD PARTY PAYMENTS          ,Health Funded Services        ,WELLINGTON & DISTRICT COTTAGE HOSPITAL  ,10-Mar-11,3208717,819.6
Care & Support (Adults & Children),Older People & Physical Disability,CEG,THIRD PARTY PAYMENTS          ,Daycare Expenditure           ,BRIDGE HOUSE CARE LTD                   ,30-Jan-11,3199459,991.24
Care & Support (Adults & Children),Older People & Physical Disability,CEG,THIRD PARTY PAYMENTS          ,Daycare Expenditure           ,BRIDGE HOUSE CARE LTD                   ,30-Jan-11,3199460,1010.24
Care & Support (Adults & Children),Older People & Physical Disability,CEG,THIRD PARTY PAYMENTS          ,Daycare Expenditure           ,BRIDGE HOUSE CARE LTD                   ,28-Feb-11,3212662,1010.24
Care & Support (Adults & Children),Older People & Physical Disability,CEG,THIRD PARTY PAYMENTS          ,Health Funded Services        ,BRIDGE HOUSE CARE LTD                   ,30-Jan-11,3199461,1400
Care & Support (Adults & Children),Older People & Physical Disability,CEG,THIRD PARTY PAYMENTS          ,Health Funded Services        ,BRIDGE HOUSE CARE LTD                   ,28-Feb-11,3212663,1400
Care & Support (Adults & Children),Older People & Physical Disability,CEG,THIRD PARTY PAYMENTS          ,Daycare Expenditure           ,NEWPORT COTTAGE CARE CENTRE             ,01-Mar-11,3204884,2082.85
Care & Support (Adults & Children),Older People & Physical Disability,CEG,THIRD PARTY PAYMENTS          ,Daycare Expenditure           ,WELLINGTON & DISTRICT COTTAGE HOSPITAL  ,10-Mar-11,3208717,10473.68
Care & Support (Adults & Children),Older People & Physical Disability,CEL,SUPPLIES & SERVICES           ,Other Grants (Expenses)       ,TELFORD & WREKIN CITIZENS ADVICE BUREAU ,22-Feb-11,3201702,31150
Care & Support (Adults & Children),Older People & Physical Disability,CEP,SUPPLIES & SERVICES           ,Purchased Meals               ,APETITO LTD                             ,27-Feb-11,3211234,1192.36
Care & Support (Adults & Children),Older People & Physical Disability,CEP,TRANSPORT                     ,Mileage                       ,WRVS SHROPSHIRE,03-Jan-11,3205929,1269.2
Care & Support (Adults & Children),Older People & Physical Disability,CEP,SUPPLIES & SERVICES           ,Purchased Meals               ,APETITO LTD                             ,13-Feb-11,3201146,1285.38
Care & Support (Adults & Children),Older People & Physical Disability,CEP,SUPPLIES & SERVICES           ,Purchased Meals               ,APETITO LTD                             ,13-Mar-11,3218756,1291.56
Care & Support (Adults & Children),Older People & Physical Disability,CEP,SUPPLIES & SERVICES           ,Purchased Meals               ,APETITO LTD                             ,24-Mar-11,3215888,2337.1
Care & Support (Adults & Children),Older People & Physical Disability,CEP,SUPPLIES & SERVICES           ,Purchased Meals               ,COVERAGE CARE SERVICES LTD              ,31-Jan-11,3201693,3067.83
Care & Support (Adults & Children),Older People & Physical Disability,CFD,THIRD PARTY PAYMENTS          ,Daycare Expenditure           ,BRIDGE HOUSE CARE LTD                   ,31-Jan-11,3199456,759.07
Care & Support (Adults & Children),Older People & Physical Disability,CFD,THIRD PARTY PAYMENTS          ,Daycare Expenditure           ,BRIDGE HOUSE CARE LTD                   ,28-Feb-11,3212630,1167.8
Care & Support (Adults & Children),Older People & Physical Disability,CFD,THIRD PARTY PAYMENTS          ,Daycare Expenditure           ,WELLINGTON & DISTRICT COTTAGE HOSPITAL  ,10-Mar-11,3208717,3297.25
Care & Support (Adults & Children),Older People & Physical Disability,CFJ,SUPPLIES & SERVICES           ,Aids & Appliances             ,BERWICK CARE EQUIPMENT LTD              ,04-Mar-11,3211922,550
Care & Support (Adults & Children),Older People & Physical Disability,CFJ,SUPPLIES & SERVICES           ,Aids & Appliances             ,BERWICK CARE EQUIPMENT LTD              ,04-Mar-11,3211923,550
Care & Support (Adults & Children),Older People & Physical Disability,CFJ,SUPPLIES & SERVICES           ,Aids & Appliances             ,BERWICK CARE EQUIPMENT LTD              ,04-Mar-11,3211924,550
Care & Support (Adults & Children),Older People & Physical Disability,CFJ,SUPPLIES & SERVICES           ,Aids & Appliances             ,BERWICK CARE EQUIPMENT LTD              ,24-Mar-11,3220267,550
Care & Support (Adults & Children),Older People & Physical Disability,CFJ,SUPPLIES & SERVICES           ,Aids & Appliances             ,CEFNDY ENTERPRISES HEALTHCARE           ,03-Mar-11,3205729,551.2
Care & Support (Adults & Children),Older People & Physical Disability,CFJ,SUPPLIES & SERVICES           ,Aids & Appliances             ,BERWICK CARE EQUIPMENT LTD              ,16-Feb-11,3200834,699
Care & Support (Adults & Children),Older People & Physical Disability,CFJ,SUPPLIES & SERVICES           ,Aids & Appliances             ,BERWICK CARE EQUIPMENT LTD              ,14-Mar-11,3211925,760
Care & Support (Adults & Children),Older People & Physical Disability,CFJ,SUPPLIES & SERVICES           ,Aids & Appliances             ,WESTHOLME LTD                           ,22-Nov-10,3200843,768
Care & Support (Adults & Children),Older People & Physical Disability,CFJ,SUPPLIES & SERVICES           ,Aids & Appliances             ,BERWICK CARE EQUIPMENT LTD              ,18-Mar-11,3214986,895
Care & Support (Adults & Children),Older People & Physical Disability,CFJ,SUPPLIES & SERVICES           ,Aids & Appliances             ,SMITCARE LTD                            ,03-Mar-11,3212830,934.6
Care & Support (Adults & Children),Older People & Physical Disability,CFJ,SUPPLIES & SERVICES           ,Aids & Appliances             ,SMITCARE LTD                            ,17-Mar-11,3215127,1115
Care & Support (Adults & Children),Older People & Physical Disability,CFJ,SUPPLIES & SERVICES           ,Aids & Appliances             ,AIDSERVICE LTD                          ,17-Mar-11,3218166,1235
Care & Support (Adults & Children),Older People & Physical Disability,CFJ,SUPPLIES & SERVICES           ,Aids & Appliances             ,MYCO LTD                                ,23-Mar-11,3218183,1485
Care & Support (Adults & Children),Older People & Physical Disability,CFJ,SUPPLIES & SERVICES           ,Aids & Appliances             ,MANGAR INTERNATIONAL LTD                ,02-Mar-11,3212827,1660
Care & Support (Adults & Children),Older People & Physical Disability,CFJ,SUPPLIES & SERVICES           ,Aids & Appliances             ,POWERGUARDS INC RAMPING SYSTEMS         ,22-Mar-11,3220211,1700
Care & Support (Adults & Children),Older People & Physical Disability,CFJ,SUPPLIES & SERVICES           ,Equipment - Repair            ,HANDICARE ACCESSIBILITY LIMITED         ,25-Feb-11,3208001,4826.25
Care & Support (Adults & Children),Older People & Physical Disability,CFJ,SUPPLIES & SERVICES           ,Aids & Appliances             ,MANGAR INTERNATIONAL LTD                ,17-Mar-11,3214994,6075
Care & Support (Adults & Children),Older People & Physical Disability,CFL,SUPPLIES & SERVICES           ,Aids & Appliances             ,ROYAL NATIONAL INSTITUTE FOR THE BLIND  ,15-Feb-11,3200516,501.57
Care & Support (Adults & Children),Older People & Physical Disability,CFL,SUPPLIES & SERVICES           ,Aids & Appliances             ,ASSOCIATED OPTICAL PRODUCTS             ,24-Mar-11,3215773,543
Care & Support (Adults & Children),Older People & Physical Disability,CFL,SUPPLIES & SERVICES           ,Aids & Appliances             ,RNID PRODUCTS                           ,17-Feb-11,3200440,744.98
Care & Support (Adults & Children),Older People & Physical Disability,CFU,THIRD PARTY PAYMENTS          ,Homecare Expenditure          ,D H HOMECARE LTD                        ,02-Mar-11,3206980,504.16
Care & Support (Adults & Children),Older People & Physical Disability,CFU,THIRD PARTY PAYMENTS          ,Homecare Expenditure          ,PEACE OF MIND HOMECARE LIMITED          ,22-Feb-11,3199215,505.84
Care & Support (Adults & Children),Older People & Physical Disability,CFU,THIRD PARTY PAYMENTS          ,Homecare Expenditure          ,PEACE OF MIND HOMECARE LIMITED          ,22-Feb-11,3199216,508.88
Care & Support (Adults & Children),Older People & Physical Disability,CFU,THIRD PARTY PAYMENTS          ,Homecare Expenditure          ,PEACE OF MIND HOMECARE LIMITED          ,21-Mar-11,3216990,508.88
Care & Support (Adults & Children),Older People & Physical Disability,CFU,THIRD PARTY PAYMENTS          ,Homecare Expenditure          ,D H HOMECARE LTD                        ,02-Mar-11,3206939,513.68
Care & Support (Adults & Children),Older People & Physical Disability,CFU,THIRD PARTY PAYMENTS          ,Homecare Expenditure          ,PARADIGM HEALTH & SOCIAL CARE LTD   ,14-Feb-11,3199125,518
Care & Support (Adults & Children),Older People & Physical Disability,CFU,THIRD PARTY PAYMENTS          ,Homecare Expenditure          ,SUPREME HOME CARE                       ,01-Mar-11,3209595,529.04
Care & Support (Adults & Children),Older People & Physical Disability,CFU,THIRD PARTY PAYMENTS          ,Homecare Expenditure          ,D H HOMECARE LTD                        ,02-Mar-11,3206981,541.6
Care & Support (Adults & Children),Older People & Physical Disability,CFU,THIRD PARTY PAYMENTS          ,Homecare Expenditure          ,SEVA CARE (UK) LIMITED                  ,22-Mar-11,3216187,581.09
Care & Support (Adults & Children),Older People & Physical Disability,CFU,THIRD PARTY PAYMENTS          ,Homecare Expenditure          ,ALLIED HEALTHCARE GROUP LTD             ,02-Mar-11,3206950,586.08
Care & Support (Adults & Children),Older People & Physical Disability,CFU,THIRD PARTY PAYMENTS          ,Homecare Expenditure          ,HEADWAY SHROPSHIRE                      ,23-Mar-11,3218657,595.04
Care & Support (Adults & Children),Older People & Physical Disability,CFU,THIRD PARTY PAYMENTS          ,Homecare Expenditure          ,HEADWAY SHROPSHIRE                      ,23-Mar-11,3218659,608.76
Care & Support (Adults & Children),Older People & Physical Disability,CFU,THIRD PARTY PAYMENTS          ,Homecare Expenditure          ,SUPREME HOME CARE                       ,01-Mar-11,3209549,609.08
Care & Support (Adults & Children),Older People & Physical Disability,CFU,THIRD PARTY PAYMENTS          ,Homecare Expenditure          ,HEADWAY SHROPSHIRE                      ,23-Mar-11,3218650,612
Care & Support (Adults & Children),Older People & Physical Disability,CFU,THIRD PARTY PAYMENTS          ,Homecare Expenditure          ,D H HOMECARE LTD                        ,02-Mar-11,3206976,634.51
Care & Support (Adults & Children),Older People & Physical Disability,CFU,THIRD PARTY PAYMENTS          ,Homecare Expenditure          ,ALLIED HEALTHCARE GROUP LTD             ,23-Mar-11,3220174,664.43
Care & Support (Adults & Children),Older People & Physical Disability,CFU,THIRD PARTY PAYMENTS          ,Homecare Expenditure          ,SEVA CARE (UK) LIMITED                  ,22-Feb-11,3199552,671.28
Care & Support (Adults & Children),Older People & Physical Disability,CFU,THIRD PARTY PAYMENTS          ,Homecare Expenditure          ,SEVA CARE (UK) LIMITED                  ,22-Mar-11,3216186,671.28
Care & Support (Adults & Children),Older People & Physical Disability,CFU,THIRD PARTY PAYMENTS          ,Homecare Expenditure          ,ALLIED HEALTHCARE GROUP LTD             ,23-Feb-11,3202432,672.88
Care & Support (Adults & Children),Older People & Physical Disability,CFU,THIRD PARTY PAYMENTS          ,Homecare Expenditure          ,PEACE OF MIND HOMECARE LIMITED          ,22-Feb-11,3199218,678.4
Care & Support (Adults & Children),Older People & Physical Disability,CFU,THIRD PARTY PAYMENTS          ,Homecare Expenditure          ,PEACE OF MIND HOMECARE LIMITED          ,21-Mar-11,3216992,678.4
Care & Support (Adults & Children),Older People & Physical Disability,CFU,THIRD PARTY PAYMENTS          ,Homecare Expenditure          ,D H HOMECARE LTD                        ,02-Mar-11,3206978,709.02
Care & Support (Adults & Children),Older People & Physical Disability,CFU,THIRD PARTY PAYMENTS          ,Homecare Expenditure          ,SUPREME HOME CARE                       ,01-Mar-11,3209564,755.92
Care & Support (Adults & Children),Older People & Physical Disability,CFU,THIRD PARTY PAYMENTS          ,Homecare Expenditure          ,ALLIED HEALTHCARE GROUP LTD             ,02-Mar-11,3206952,766.02
Care & Support (Adults & Children),Older People & Physical Disability,CFU,THIRD PARTY PAYMENTS          ,Homecare Expenditure          ,HEADWAY SHROPSHIRE                      ,23-Mar-11,3218653,788.6
Care & Support (Adults & Children),Older People & Physical Disability,CFU,THIRD PARTY PAYMENTS          ,Homecare Expenditure          ,PHOENIX CARE PARTNERS                   ,02-Mar-11,3204402,790.84
Care & Support (Adults & Children),Older People & Physical Disability,CFU,THIRD PARTY PAYMENTS          ,Homecare Expenditure          ,D H HOMECARE LTD                        ,02-Mar-11,3206974,794.71
Care & Support (Adults & Children),Older People & Physical Disability,CFU,THIRD PARTY PAYMENTS          ,Homecare Expenditure          ,SUPREME HOME CARE                       ,01-Mar-11,3209545,803.56
Care & Support (Adults & Children),Older People & Physical Disability,CFU,THIRD PARTY PAYMENTS          ,Homecare Expenditure          ,D H HOMECARE LTD                        ,03-Feb-11,3206942,846.44
Care & Support (Adults & Children),Older People & Physical Disability,CFU,THIRD PARTY PAYMENTS          ,Homecare Expenditure          ,PEACE OF MIND HOMECARE LIMITED          ,21-Mar-11,3216989,851.24
Care & Support (Adults & Children),Older People & Physical Disability,CFU,THIRD PARTY PAYMENTS          ,Health Funded Services        ,PHOENIX CARE PARTNERS                   ,02-Mar-11,3204400,865.12
Care & Support (Adults & Children),Older People & Physical Disability,CFU,THIRD PARTY PAYMENTS          ,Homecare Expenditure          ,PHOENIX CARE PARTNERS                   ,02-Mar-11,3204400,865.12
Care & Support (Adults & Children),Older People & Physical Disability,CFU,THIRD PARTY PAYMENTS          ,Homecare Expenditure          ,D H HOMECARE LTD                        ,02-Mar-11,3206938,866.6
Care & Support (Adults & Children),Older People & Physical Disability,CFU,THIRD PARTY PAYMENTS          ,Homecare Expenditure          ,SUPREME HOME CARE                       ,01-Mar-11,3209560,909
Care & Support (Adults & Children),Older People & Physical Disability,CFU,THIRD PARTY PAYMENTS          ,Homecare Expenditure          ,ALLIED HEALTHCARE GROUP LTD             ,23-Mar-11,3220143,915.08
Care & Support (Adults & Children),Older People & Physical Disability,CFU,THIRD PARTY PAYMENTS          ,Homecare Expenditure          ,ALLIED HEALTHCARE GROUP LTD             ,23-Feb-11,3202016,915.69
Care & Support (Adults & Children),Older People & Physical Disability,CFU,THIRD PARTY PAYMENTS          ,Homecare Expenditure          ,PEACE OF MIND HOMECARE LIMITED          ,21-Mar-11,3216991,924.48
Care & Support (Adults & Children),Older People & Physical Disability,CFU,THIRD PARTY PAYMENTS          ,Homecare Expenditure          ,PEACE OF MIND HOMECARE LIMITED          ,22-Feb-11,3199217,948.32
Care & Support (Adults & Children),Older People & Physical Disability,CFU,THIRD PARTY PAYMENTS          ,Homecare Expenditure          ,HEADWAY SHROPSHIRE                      ,23-Mar-11,3218651,956
Care & Support (Adults & Children),Older People & Physical Disability,CFU,THIRD PARTY PAYMENTS          ,Homecare Expenditure          ,SUPREME HOME CARE                       ,01-Mar-11,3209544,971.28
Care & Support (Adults & Children),Older People & Physical Disability,CFU,THIRD PARTY PAYMENTS          ,Health Funded Services        ,SUPREME HOME CARE                       ,01-Mar-11,3209566,1004.88
Care & Support (Adults & Children),Older People & Physical Disability,CFU,THIRD PARTY PAYMENTS          ,Homecare Expenditure          ,PARADIGM HEALTH & SOCIAL CARE LTD   ,14-Mar-11,3212708,1027.1
Care & Support (Adults & Children),Older People & Physical Disability,CFU,THIRD PARTY PAYMENTS          ,Homecare Expenditure          ,SUPREME HOME CARE                       ,01-Mar-11,3209601,1029.84
Care & Support (Adults & Children),Older People & Physical Disability,CFU,THIRD PARTY PAYMENTS          ,Homecare Expenditure          ,SUPREME HOME CARE                       ,01-Mar-11,3209547,1057.84
Care & Support (Adults & Children),Older People & Physical Disability,CFU,THIRD PARTY PAYMENTS          ,Homecare Expenditure          ,PEACE OF MIND HOMECARE LIMITED          ,21-Mar-11,3216995,1075.06
Care & Support (Adults & Children),Older People & Physical Disability,CFU,THIRD PARTY PAYMENTS          ,Homecare Expenditure          ,D H HOMECARE LTD                        ,02-Mar-11,3206937,1100.72
Care & Support (Adults & Children),Older People & Physical Disability,CFU,THIRD PARTY PAYMENTS          ,Homecare Expenditure          ,PHOENIX CARE PARTNERS                   ,02-Mar-11,3204401,1128.9
Care & Support (Adults & Children),Older People & Physical Disability,CFU,THIRD PARTY PAYMENTS          ,Homecare Expenditure          ,D H HOMECARE LTD                        ,02-Mar-11,3206944,1254.24
Care & Support (Adults & Children),Older People & Physical Disability,CFU,THIRD PARTY PAYMENTS          ,Homecare Expenditure          ,SUPREME HOME CARE                       ,01-Mar-11,3209551,1276.5
Care & Support (Adults & Children),Older People & Physical Disability,CFU,THIRD PARTY PAYMENTS          ,Homecare Expenditure          ,D H HOMECARE LTD                        ,02-Mar-11,3206945,1285.59
Care & Support (Adults & Children),Older People & Physical Disability,CFU,THIRD PARTY PAYMENTS          ,Homecare Expenditure          ,SUPREME HOME CARE                       ,01-Mar-11,3209550,1329.04
Care & Support (Adults & Children),Older People & Physical Disability,CFU,THIRD PARTY PAYMENTS          ,Homecare Expenditure          ,SUPREME HOME CARE                       ,01-Mar-11,3209546,1335.52
Care & Support (Adults & Children),Older People & Physical Disability,CFU,THIRD PARTY PAYMENTS          ,Homecare Expenditure          ,SEVA CARE (UK) LIMITED                  ,22-Feb-11,3199557,1442.58
Care & Support (Adults & Children),Older People & Physical Disability,CFU,THIRD PARTY PAYMENTS          ,Homecare Expenditure          ,D H HOMECARE LTD                        ,02-Mar-11,3206936,1498.58
Care & Support (Adults & Children),Older People & Physical Disability,CFU,THIRD PARTY PAYMENTS          ,Homecare Expenditure          ,PARADIGM HEALTH & SOCIAL CARE LTD   ,14-Mar-11,3212711,1574.2
Care & Support (Adults & Children),Older People & Physical Disability,CFU,THIRD PARTY PAYMENTS          ,Homecare Expenditure          ,PARADIGM HEALTH & SOCIAL CARE LTD   ,14-Feb-11,3199128,1686.9
Care & Support (Adults & Children),Older People & Physical Disability,CFU,THIRD PARTY PAYMENTS          ,Homecare Expenditure          ,HEADWAY SHROPSHIRE                      ,23-Mar-11,3218655,1704.87
Care & Support (Adults & Children),Older People & Physical Disability,CFU,THIRD PARTY PAYMENTS          ,Health Funded Services        ,PEACE OF MIND HOMECARE LIMITED          ,21-Mar-11,3216994,1770.88
Care & Support (Adults & Children),Older People & Physical Disability,CFU,THIRD PARTY PAYMENTS          ,Health Funded Services        ,PEACE OF MIND HOMECARE LIMITED          ,22-Feb-11,3199220,1828.72
Care & Support (Adults & Children),Older People & Physical Disability,CFU,THIRD PARTY PAYMENTS          ,Homecare Expenditure          ,SUPREME HOME CARE                       ,01-Mar-11,3209594,2037.94
Care & Support (Adults & Children),Older People & Physical Disability,CFU,THIRD PARTY PAYMENTS          ,Homecare Expenditure          ,ALLIED HEALTHCARE GROUP LTD             ,23-Mar-11,3220178,2221.33
Care & Support (Adults & Children),Older People & Physical Disability,CFU,THIRD PARTY PAYMENTS          ,Homecare Expenditure          ,ALLIED HEALTHCARE GROUP LTD             ,23-Feb-11,3202435,2230.96
Care & Support (Adults & Children),Older People & Physical Disability,CFU,THIRD PARTY PAYMENTS          ,Health Funded Services        ,PHOENIX CARE PARTNERS                   ,02-Mar-11,3204398,2337.35
Care & Support (Adults & Children),Older People & Physical Disability,CFU,THIRD PARTY PAYMENTS          ,Health Funded Services        ,SUPREME HOME CARE                       ,01-Mar-11,3209602,2521.01
Care & Support (Adults & Children),Older People & Physical Disability,CFU,THIRD PARTY PAYMENTS          ,Homecare Expenditure          ,D H HOMECARE LTD                        ,02-Mar-11,3206982,2572.56
Care & Support (Adults & Children),Older People & Physical Disability,CFU,THIRD PARTY PAYMENTS          ,Homecare Expenditure          ,D H HOMECARE LTD                        ,02-Mar-11,3206935,2873.76
Care & Support (Adults & Children),Older People & Physical Disability,CFU,THIRD PARTY PAYMENTS          ,Health Funded Services        ,COMPLETE CARE HOLDINGS LTD              ,28-Feb-11,3207075,3144.96
Care & Support (Adults & Children),Older People & Physical Disability,CFU,THIRD PARTY PAYMENTS          ,Health Funded Services        ,D H HOMECARE LTD                        ,02-Mar-11,3206979,3262.52
Care & Support (Adults & Children),Older People & Physical Disability,CFU,THIRD PARTY PAYMENTS          ,Homecare Expenditure          ,AMG NURSING & CARE SERVICES             ,27-Feb-11,3209331,3948.35
Care & Support (Adults & Children),Older People & Physical Disability,CFU,THIRD PARTY PAYMENTS          ,Health Funded Services        ,SEVA CARE (UK) LIMITED                  ,22-Feb-11,3199554,4317.73
Care & Support (Adults & Children),Older People & Physical Disability,CFU,THIRD PARTY PAYMENTS          ,Health Funded Services        ,SEVA CARE (UK) LIMITED                  ,22-Mar-11,3216188,4329.75
Care & Support (Adults & Children),Older People & Physical Disability,CFU,THIRD PARTY PAYMENTS          ,Homecare Expenditure          ,ALLIED HEALTHCARE GROUP LTD             ,23-Feb-11,3204364,6298.98
Care & Support (Adults & Children),Older People & Physical Disability,CFU,THIRD PARTY PAYMENTS          ,Homecare Expenditure          ,ALLIED HEALTHCARE GROUP LTD             ,23-Mar-11,3220176,6338.62
Care & Support (Adults & Children),Older People & Physical Disability,CLI,EMPLOYEES                     ,Agency Supply Costs           ,MEDICONNECT RECRUITMENT LTD             ,25-Feb-11,3210742,638.4
Care & Support (Adults & Children),Older People & Physical Disability,CLI,EMPLOYEES                     ,Agency Supply Costs           ,MEDICONNECT RECRUITMENT LTD             ,11-Feb-11,3204354,716.58
Care & Support (Adults & Children),Older People & Physical Disability,CLI,EMPLOYEES                     ,Agency Supply Costs           ,MEDICONNECT RECRUITMENT LTD             ,25-Feb-11,3210743,748.13
Care & Support (Adults & Children),Older People & Physical Disability,CLI,EMPLOYEES                     ,Agency Supply Costs           ,MEDICONNECT RECRUITMENT LTD             ,04-Mar-11,3211928,748.13
Care & Support (Adults & Children),Older People & Physical Disability,CLI,EMPLOYEES                     ,Agency Supply Costs           ,MEDICONNECT RECRUITMENT LTD             ,18-Mar-11,3220273,748.13
Care & Support (Adults & Children),Older People & Physical Disability,CLI,EMPLOYEES                     ,Agency Supply Costs           ,MEDICONNECT RECRUITMENT LTD             ,18-Mar-11,3220272,786.4
Care & Support (Adults & Children),Older People & Physical Disability,CLI,EMPLOYEES                     ,Agency Supply Costs           ,MEDICONNECT RECRUITMENT LTD             ,18-Feb-11,3204355,797.73
Care & Support (Adults & Children),Older People & Physical Disability,CLI,EMPLOYEES                     ,Agency Supply Costs           ,MEDICONNECT RECRUITMENT LTD             ,04-Mar-11,3211927,807.98
Care & Support (Adults & Children),Older People & Physical Disability,CLI,EMPLOYEES                     ,Agency Supply Costs           ,MEDICONNECT RECRUITMENT LTD             ,18-Feb-11,3204353,816.33
Care & Support (Adults & Children),Older People & Physical Disability,CLI,EMPLOYEES                     ,Agency Supply Costs           ,MEDICONNECT RECRUITMENT LTD             ,11-Mar-11,3215279,816.33
Corporate Core,Communications & Marketing,GPR,SUPPLIES & SERVICES           ,National Newspaper Licensing Agreement,NEWSPAPER LICENSING AGENCY LIMITED      ,11-Mar-11,3210196,1628
Corporate Core,Communications & Marketing,GPR,SUPPLIES & SERVICES           ,Printing - Print Room         ,PRECISION COLOUR PRINTING               ,21-Feb-11,3201976,5900
Corporate Core,Communications & Marketing,GRF,SUPPLIES & SERVICES           ,Advertising                   ,PENNA PLC                               ,28-Feb-11,3203512,690.9
Corporate Core,Communications & Marketing,GRF,SUPPLIES & SERVICES           ,Advertising                   ,PENNA PLC                               ,28-Feb-11,3203511,2936.26
Corporate Core,Communications & Marketing,GRF,SUPPLIES & SERVICES           ,Advertising                   ,PENNA PLC                               ,28-Feb-11,3203513,8277.57
Corporate Core,"Community Engagement, Equality & Action",GDD,SUPPLIES & SERVICES           ,Funding to deliver Community Health Project,EQUAL CHARITABLE FOUNDATIONS            ,03-Mar-11,3201969,3000
Corporate Core,"Community Engagement, Equality & Action",LNA,SUPPLIES & SERVICES           ,Grants To Voluntary Organis   ,POUNDS FOR PROJECTS                     ,24-Feb-11,3201066,700
Corporate Core,"Community Engagement, Equality & Action",LNA,SUPPLIES & SERVICES           ,Grants To Voluntary Organis   ,POUNDS FOR PROJECTS                     ,08-Mar-11,3204525,750
Corporate Core,"Community Engagement, Equality & Action",LNA,SUPPLIES & SERVICES           ,Grants To Voluntary Organis   ,POUNDS FOR PROJECTS                     ,24-Feb-11,3201112,800
Corporate Core,"Community Engagement, Equality & Action",LNA,SUPPLIES & SERVICES           ,Grants To Voluntary Organis   ,POUNDS FOR PROJECTS                     ,24-Feb-11,3201063,900
Corporate Core,"Community Engagement, Equality & Action",LNA,SUPPLIES & SERVICES           ,Grants To Voluntary Organis   ,POUNDS FOR PROJECTS                     ,24-Feb-11,3201064,900
Corporate Core,"Community Engagement, Equality & Action",LNA,SUPPLIES & SERVICES           ,Grants To Voluntary Organis   ,POUNDS FOR PROJECTS                     ,24-Feb-11,3201117,900
Corporate Core,"Community Engagement, Equality & Action",LNA,SUPPLIES & SERVICES           ,Grants To Voluntary Organis   ,POUNDS FOR PROJECTS                     ,24-Feb-11,3201122,900
Corporate Core,"Community Engagement, Equality & Action",LNA,SUPPLIES & SERVICES           ,Grants To Voluntary Organis   ,POUNDS FOR PROJECTS                     ,24-Feb-11,3201059,1000
Corporate Core,"Community Engagement, Equality & Action",LNA,SUPPLIES & SERVICES           ,Grants To Voluntary Organis   ,POUNDS FOR PROJECTS                     ,24-Feb-11,3201060,1000
Corporate Core,"Community Engagement, Equality & Action",LNA,SUPPLIES & SERVICES           ,Grants To Voluntary Organis   ,POUNDS FOR PROJECTS                     ,24-Feb-11,3201065,1000
Corporate Core,"Community Engagement, Equality & Action",LNA,SUPPLIES & SERVICES           ,Grants To Voluntary Organis   ,POUNDS FOR PROJECTS                     ,24-Feb-11,3201068,1000
Corporate Core,"Community Engagement, Equality & Action",LNA,SUPPLIES & SERVICES           ,Grants To Voluntary Organis   ,POUNDS FOR PROJECTS                     ,24-Feb-11,3201110,1000
Corporate Core,"Community Engagement, Equality & Action",LNA,SUPPLIES & SERVICES           ,Grants To Voluntary Organis   ,POUNDS FOR PROJECTS                     ,24-Feb-11,3201115,1180
Corporate Core,"Community Engagement, Equality & Action",LNA,SUPPLIES & SERVICES           ,Grants To Voluntary Organis   ,POUNDS FOR PROJECTS                     ,24-Feb-11,3201114,1200
Corporate Core,"Community Engagement, Equality & Action",LNA,SUPPLIES & SERVICES           ,Grants To Voluntary Organis   ,POUNDS FOR PROJECTS                     ,24-Feb-11,3201120,1400
Corporate Core,"Community Engagement, Equality & Action",LNA,SUPPLIES & SERVICES           ,Grants To Voluntary Organis   ,POUNDS FOR PROJECTS                     ,24-Feb-11,3201057,1430
Corporate Core,"Community Engagement, Equality & Action",LNA,SUPPLIES & SERVICES           ,Grants To Voluntary Organis   ,POUNDS FOR PROJECTS                     ,24-Feb-11,3201056,1500
Corporate Core,"Community Engagement, Equality & Action",LNA,SUPPLIES & SERVICES           ,Grants To Voluntary Organis   ,POUNDS FOR PROJECTS                     ,24-Feb-11,3201061,1500
Corporate Core,"Community Engagement, Equality & Action",LNA,SUPPLIES & SERVICES           ,Grants To Voluntary Organis   ,POUNDS FOR PROJECTS                     ,28-Feb-11,3201862,1500
Corporate Core,"Community Engagement, Equality & Action",LNA,SUPPLIES & SERVICES           ,Grants To Voluntary Organis   ,POUNDS FOR PROJECTS                     ,24-Feb-11,3201100,1580
Corporate Core,"Community Engagement, Equality & Action",LNA,SUPPLIES & SERVICES           ,Grants To Voluntary Organis   ,POUNDS FOR PROJECTS                     ,28-Mar-11,3217031,1655
Corporate Core,"Community Engagement, Equality & Action",LNA,SUPPLIES & SERVICES           ,Grants To Voluntary Organis   ,POUNDS FOR PROJECTS                     ,24-Feb-11,3201113,1730
Corporate Core,"Community Engagement, Equality & Action",LNA,SUPPLIES & SERVICES           ,Grants To Voluntary Organis   ,POUNDS FOR PROJECTS                     ,24-Feb-11,3201118,1750
Corporate Core,"Community Engagement, Equality & Action",LNA,SUPPLIES & SERVICES           ,Grants To Voluntary Organis   ,POUNDS FOR PROJECTS                     ,24-Feb-11,3201102,2000
Corporate Core,"Community Engagement, Equality & Action",LNA,SUPPLIES & SERVICES           ,Grants To Voluntary Organis   ,POUNDS FOR PROJECTS                     ,24-Feb-11,3201103,2000
Corporate Core,"Community Engagement, Equality & Action",LNA,SUPPLIES & SERVICES           ,Grants To Voluntary Organis   ,POUNDS FOR PROJECTS                     ,24-Feb-11,3201121,2000
Corporate Core,"Community Engagement, Equality & Action",LNA,SUPPLIES & SERVICES           ,Grants To Voluntary Organis   ,POUNDS FOR PROJECTS                     ,28-Feb-11,3201865,2100
Corporate Core,"Community Engagement, Equality & Action",LNA,SUPPLIES & SERVICES           ,Grants To Voluntary Organis   ,POUNDS FOR PROJECTS                     ,24-Feb-11,3201067,2130
Corporate Core,"Community Engagement, Equality & Action",LNA,SUPPLIES & SERVICES           ,Grants To Voluntary Organis   ,POUNDS FOR PROJECTS                     ,24-Feb-11,3201062,2150
Corporate Core,"Community Engagement, Equality & Action",LNA,SUPPLIES & SERVICES           ,Grants To Voluntary Organis   ,POUNDS FOR PROJECTS                     ,10-Mar-11,3206072,2150
Corporate Core,"Community Engagement, Equality & Action",LNA,SUPPLIES & SERVICES           ,Grants To Voluntary Organis   ,POUNDS FOR PROJECTS                     ,24-Feb-11,3201058,2270
Corporate Core,"Community Engagement, Equality & Action",LNA,SUPPLIES & SERVICES           ,Grants To Voluntary Organis   ,POUNDS FOR PROJECTS                     ,24-Feb-11,3201101,2500
Corporate Core,"Community Engagement, Equality & Action",LNA,SUPPLIES & SERVICES           ,Grants To Voluntary Organis   ,POUNDS FOR PROJECTS                     ,24-Feb-11,3201054,2770
Corporate Core,"Community Engagement, Equality & Action",LNA,SUPPLIES & SERVICES           ,Grants To Voluntary Organis   ,POUNDS FOR PROJECTS                     ,24-Feb-11,3201124,2800
Corporate Core,"Community Engagement, Equality & Action",LNA,SUPPLIES & SERVICES           ,Grants To Voluntary Organis   ,POUNDS FOR PROJECTS                     ,28-Feb-11,3201853,2990
Corporate Core,"Community Engagement, Equality & Action",LNA,SUPPLIES & SERVICES           ,Grants To Voluntary Organis   ,LILLESHALL & DONNINGTON & MUXTON PC,16-Mar-11,3209606,3000
Corporate Core,"Community Engagement, Equality & Action",LNA,SUPPLIES & SERVICES           ,Grants To Voluntary Organis   ,POUNDS FOR PROJECTS                     ,24-Feb-11,3201106,3000
Corporate Core,"Community Engagement, Equality & Action",LNA,SUPPLIES & SERVICES           ,Grants To Voluntary Organis   ,POUNDS FOR PROJECTS                     ,24-Feb-11,3201107,3000
Corporate Core,"Community Engagement, Equality & Action",LNA,SUPPLIES & SERVICES           ,Grants To Voluntary Organis   ,POUNDS FOR PROJECTS                     ,24-Feb-11,3201116,3000
Corporate Core,"Community Engagement, Equality & Action",LNA,SUPPLIES & SERVICES           ,Grants To Voluntary Organis   ,POUNDS FOR PROJECTS                     ,24-Feb-11,3201119,3000
Corporate Core,"Community Engagement, Equality & Action",LNA,SUPPLIES & SERVICES           ,Grants To Voluntary Organis   ,POUNDS FOR PROJECTS                     ,24-Feb-11,3201109,3870
Corporate Core,"Community Engagement, Equality & Action",LNA,SUPPLIES & SERVICES           ,Grants To Voluntary Organis   ,POUNDS FOR PROJECTS                     ,24-Feb-11,3201108,4390
Corporate Core,"Community Engagement, Equality & Action",LNA,SUPPLIES & SERVICES           ,Grants To Voluntary Organis   ,POUNDS FOR PROJECTS                     ,24-Feb-11,3201111,4500
Corporate Core,"Community Engagement, Equality & Action",LNA,SUPPLIES & SERVICES           ,Grants To Voluntary Organis   ,POUNDS FOR PROJECTS                     ,24-Feb-11,3201123,4500
Corporate Core,Delivery Planning & Management,GBM,SUPPLIES & SERVICES           ,Comp Hardware (Purch / Hire)  ,SCOPED SOLUTIONS LTD                    ,07-Mar-11,3216732,600
Corporate Core,Delivery Planning & Management,GBM,SUPPLIES & SERVICES           ,Subscriptions                 ,SNAP SURVEYS LTD                        ,28-Feb-11,3199491,699
Corporate Core,Organisational Improvement,CIE,EMPLOYEES                     ,Course Fees                   ,SPECIALIST ADDICTION SERVICES LTD       ,23-Mar-11,3218671,600
Corporate Core,Organisational Improvement,CJT,EMPLOYEES                     ,Course Fees                   ,CAREWATCH (MID SHROPSHIRE)              ,09-Mar-11,3218169,600
Corporate Core,Organisational Improvement,CJT,EMPLOYEES                     ,Course Fees                   ,VISION HOMES ASSOCIATION                ,31-Jan-11,3201720,660
Corporate Core,Organisational Improvement,CJT,EMPLOYEES                     ,Course Fees                   ,WE ARE THE CARE COMPANY LTD             ,02-Mar-11,3215249,720
Corporate Core,Organisational Improvement,CJT,EMPLOYEES                     ,Course Fees                   ,VISION HOMES ASSOCIATION                ,31-Jan-11,3201719,1020
Corporate Core,Organisational Improvement,CJT,EMPLOYEES                     ,Course Fees                   ,BETHPHAGE                               ,28-Feb-11,3219952,1620
Corporate Core,Organisational Improvement,CJT,EMPLOYEES                     ,Course Fees                   ,WE ARE THE CARE COMPANY LTD             ,18-Feb-11,3198923,4680
Corporate Core,Organisational Improvement,CJW,EMPLOYEES                     ,Course Fees                   ,SHROPSHIRE COUNCIL                      ,01-Mar-11,3215004,9452
Corporate Core,Organisational Improvement,CJW,EMPLOYEES                     ,Course Fees                   ,SHROPSHIRE COUNCIL                      ,16-Nov-10,3215003,16418.66
Corporate Core,Organisational Improvement,CKE,EMPLOYEES                     ,Course Fees                   ,UNIVERSITY OF WOLVERHAMPTON             ,25-Feb-11,3212124,687.37
Corporate Core,Organisational Improvement,CKE,EMPLOYEES                     ,Course Fees                   ,HELEN SANDERSON ASSOCIATES LTD          ,31-Jan-11,3201701,1431
Corporate Core,Organisational Improvement,CKE,EMPLOYEES                     ,Course Fees                   ,HELEN SANDERSON ASSOCIATES LTD          ,28-Feb-11,3213029,1480.7
Corporate Core,Organisational Improvement,CKE,EMPLOYEES                     ,Course Fees                   ,CITY & GUILDS                           ,11-Feb-11,3205196,1634
Corporate Core,Organisational Improvement,CKG,EMPLOYEES                     ,Course Fees                   ,OCR                                     ,22-Feb-11,3210096,512.8
Corporate Core,Organisational Improvement,CKG,PREMISES                      ,Hire Of Rooms                 ,HALESFIELD DAY NURSERY CENTRE 00032609  ,05-Jan-11,3199606,600.14
Corporate Core,Organisational Improvement,CKG,EMPLOYEES                     ,Course Fees                   ,DEVELOP-MEANT TRAINING CONSULTANTS      ,28-Feb-11,3205747,702.6
Corporate Core,Organisational Improvement,CKG,EMPLOYEES                     ,Course Fees                   ,IN-TRAC                                 ,28-Feb-11,3206512,860.3
Corporate Core,Organisational Improvement,GMT,SUPPLIES & SERVICES           ,Refreshment Machines,AUTOBAR UK LTD                          ,18-Feb-11,3199870,2400
Corporate Core,Organisational Improvement,GOD,SUPPLIES & SERVICES           ,Safer Recruitment Course,WEST MIDLANDS COUNCILS                  ,31-Dec-10,3200896,900
Corporate Core,Organisational Improvement,GYK,CURRENT LIABILITIES           ,Payments to Contractors       ,ELEMENTARY TECHNOLOGY LTD           ,25-Jan-11,3199822,509
Corporate Core,Organisational Improvement,GYK,CURRENT LIABILITIES           ,Payments to Contractors       ,GRANVILLE CONSTRUCTION & MAINTENANCE LTD,14-Feb-11,3210360,685
Corporate Core,Organisational Improvement,GYK,CURRENT LIABILITIES           ,Payments to Contractors       ,SIGNS EXPRESS (TELFORD)                 ,10-Feb-11,3213057,787
Corporate Core,Organisational Improvement,GYK,CURRENT LIABILITIES           ,Payments to Contractors       ,PP ELECTRICAL SERVICES                  ,31-Jan-11,3201050,10570.15
Corporate Core,Organisational Improvement,GYK,CURRENT LIABILITIES           ,Payments to Contractors       ,PP ELECTRICAL SERVICES                  ,31-Dec-10,3201051,12501.2
Corporate Core,Organisational Improvement,PHS,SUPPLIES & SERVICES           ,Conference expenses,THE MIDLAND NEWS ASSOCIATION LTD        ,05-Mar-11,3209045,650
Customer Leisure & Libraries,Leisure Facilities & Services,GYG,CURRENT LIABILITIES           ,Payments to Contractors       ,PP ELECTRICAL SERVICES                  ,30-Mar-11,3219448,597.8
Customer Leisure & Libraries,Leisure Facilities & Services,GYG,CURRENT LIABILITIES           ,Payments to Contractors       ,CKL OFFICE SOLUTIONS LIMITED            ,25-Feb-11,3203144,11601.2
Customer Leisure & Libraries,Leisure Facilities & Services,GYG,CURRENT LIABILITIES           ,Payments to Contractors       ,PAVE AWAYS LTD                          ,17-Mar-11,3212299,198467.48
Customer Leisure & Libraries,Leisure Facilities & Services,GYG,CURRENT LIABILITIES           ,Payments to Contractors       ,PAVE AWAYS LTD                          ,17-Feb-11,3201708,317469.29
"Customer, Leisure & Libraries",Arts & Culture,BGW,SUPPLIES & SERVICES           ,Marketing & Publicity         ,PABLO PRODUCTIONS LTD                   ,04-Jan-11,3214999,840
"Customer, Leisure & Libraries",Arts & Culture,BGW,SUPPLIES & SERVICES           ,Other Arts Development,PABLO PRODUCTIONS LTD                   ,16-Mar-11,3215000,1200
"Customer, Leisure & Libraries",Arts & Culture,BGW,SUPPLIES & SERVICES           ,Other Arts Development,PABLO PRODUCTIONS LTD                   ,16-Mar-11,3215001,1200
"Customer, Leisure & Libraries",Arts & Culture,BGW,SUPPLIES & SERVICES           ,Other Arts Development       ,RUBIX DANCE                             ,23-Feb-11,3202308,1250
"Customer, Leisure & Libraries",Arts & Culture,BGW,SUPPLIES & SERVICES           ,Other Arts Development,PABLO PRODUCTIONS LTD                   ,17-Mar-11,3214998,1600
"Customer, Leisure & Libraries",Arts & Culture,BGW,SUPPLIES & SERVICES           ,Other Arts Development,UNIVERSITY OF WOLVERHAMPTON             ,11-Mar-11,3215129,2100
"Customer, Leisure & Libraries",Arts & Culture,BVX,SUPPLIES & SERVICES           ,Equipment - Purchase          ,NORMANS MUSICAL INSTRUMENTS             ,11-Feb-11,3203133,901.25
"Customer, Leisure & Libraries",Arts & Culture,BVX,SUPPLIES & SERVICES           ,Equipment - Purchase          ,SOAR VALLEY MUSIC LTD                   ,22-Feb-11,3201977,1496
"Customer, Leisure & Libraries",Arts & Culture,BVX,SUPPLIES & SERVICES           ,Equipment - Purchase          ,SOUNDBEAM PROJECT LTD                   ,17-Feb-11,3201031,3580
"Customer, Leisure & Libraries",Arts & Culture,LHA,SUPPLIES & SERVICES           ,Equipment - Purchase          ,MERCURY AV LTD                          ,18-Feb-11,3199490,791.84
"Customer, Leisure & Libraries",Arts & Culture,LHA,PREMISES                      ,Solid Fuel                    ,MIDLANDS WOOD FUEL SUPPLY LTD           ,28-Feb-11,3206034,897.35
"Customer, Leisure & Libraries",Arts & Culture,LHA,PREMISES                      ,Electricity                   ,WEST MERCIA SUPPLIES                    ,18-Feb-11,3203135,992.95
"Customer, Leisure & Libraries",Arts & Culture,LHA,SUPPLIES & SERVICES           ,Computer Hardware (Maint)     ,ARTIFAX SOFTWARE LTD                    ,11-Mar-11,3209371,1422.58
"Customer, Leisure & Libraries",Arts & Culture,LHA,PREMISES                      ,Electricity                   ,WEST MERCIA SUPPLIES                    ,10-Mar-11,3213038,1964.1
"Customer, Leisure & Libraries",Arts & Culture,LHA,PREMISES                      ,Electricity                   ,WEST MERCIA SUPPLIES                    ,04-Mar-11,3209357,2013.64
"Customer, Leisure & Libraries",Arts & Culture,LHA,PREMISES                      ,Gas                           ,WEST MERCIA SUPPLIES                    ,18-Feb-11,3203134,2379.7
"Customer, Leisure & Libraries",Arts & Culture,LHC,SUPPLIES & SERVICES           ,Ticket income,THE BOOTLEG SIXTIES LLP                 ,17-Mar-11,3212876,1813.93
"Customer, Leisure & Libraries",Arts & Culture,LHC,SUPPLIES & SERVICES           ,Ticket income,CHIMES INTERNATIONAL ENTERTAINMENTS LTD ,25-Mar-11,3218911,2506.52
"Customer, Leisure & Libraries",Arts & Culture,LHC,SUPPLIES & SERVICES           ,Ticket income,DEREK BLOCK CONCERT PROMOTIONS          ,04-Mar-11,3219915,7698.3
"Customer, Leisure & Libraries",Arts & Culture,LHN,SUPPLIES & SERVICES           ,Other - Arts Development      ,THE CULTURAL SISTERS                    ,07-Mar-11,3210188,3420
"Customer, Leisure & Libraries",Arts & Culture,LHN,SUPPLIES & SERVICES           ,Other - Arts Development      ,THE CULTURAL SISTERS                    ,07-Mar-11,3210189,4000
"Customer, Leisure & Libraries",Arts & Culture,LHP,SUPPLIES & SERVICES           ,PA Equipment for CultureFest & Park Live 2011,PANDA AV PRODUCTIONS LTD                ,25-Feb-11,3201024,1990.64
"Customer, Leisure & Libraries",Arts & Culture,LHP,SUPPLIES & SERVICES           ,PA Equipment for CultureFest & Park Live 2011,PANDA AV PRODUCTIONS LTD                ,01-Mar-11,3202149,2141.03
"Customer, Leisure & Libraries",Arts & Culture,WCC,SUPPLIES & SERVICES           ,Bar equipment,A1 BARSTUFF LTD                         ,24-Mar-11,3215891,549
"Customer, Leisure & Libraries",Arts & Culture,WCC,SUPPLIES & SERVICES           ,Wet                           ,MOLSON COORS BREWING COMPANY UK LTD     ,02-Mar-11,3209373,1654.57
"Customer, Leisure & Libraries",Arts & Culture,WCC,SUPPLIES & SERVICES           ,Wet                           ,MOLSON COORS BREWING COMPANY UK LTD     ,16-Feb-11,3201848,1803.87
"Customer, Leisure & Libraries",Customer Services,GBD,SUPPLIES & SERVICES           ,Licence Fee For Nationality Checking Service                 ,OFFICE OF IMMIGRATION SVS COMMISSIONER  ,28-Mar-11,3218848,555
"Customer, Leisure & Libraries",Customer Services,GCX,SUPPLIES & SERVICES           ,Accessibility Software Licence for Website,TEXTHELP SYSTEMS LTD                    ,09-Mar-11,3215173,3495
"Customer, Leisure & Libraries",Leisure Facilities & Services,BVY,SUPPLIES & SERVICES           ,Provisions                    ,WOODWARD FOODSERVICE LTD                ,22-Mar-11,3216806,714.68
"Customer, Leisure & Libraries",Leisure Facilities & Services,BVY,SUPPLIES & SERVICES           ,Provisions                    ,WOODWARD FOODSERVICE LTD                ,15-Mar-11,3210120,801.11
"Customer, Leisure & Libraries",Leisure Facilities & Services,BVY,SUPPLIES & SERVICES           ,Provisions                    ,WOODWARD FOODSERVICE LTD                ,29-Mar-11,3219670,802.16
"Customer, Leisure & Libraries",Leisure Facilities & Services,BVY,SUPPLIES & SERVICES           ,Provisions                    ,WOODWARD FOODSERVICE LTD                ,08-Mar-11,3205838,848.4
"Customer, Leisure & Libraries",Leisure Facilities & Services,BVY,PREMISES                      ,R&M -Building Other           ,ENVIROTECK                              ,04-Mar-11,3209971,875
"Customer, Leisure & Libraries",Leisure Facilities & Services,BVY,SUPPLIES & SERVICES           ,Provisions                    ,WOODWARD FOODSERVICE LTD                ,01-Mar-11,3200482,957.56
"Customer, Leisure & Libraries",Leisure Facilities & Services,BVY,SUPPLIES & SERVICES           ,Equipment - Purchase          ,BRENIG                                  ,14-Mar-11,3216804,1138
"Customer, Leisure & Libraries",Leisure Facilities & Services,BVY,TRANSPORT                     ,Purchase Vehicles and Plant   ,DEEMSTER INVESTMENT TRUST LTD           ,10-Mar-11,3207623,6000
"Customer, Leisure & Libraries",Leisure Facilities & Services,BVY,TRANSPORT                     ,Purchase Vehicles and Plant   ,DEEMSTER INVESTMENT TRUST LTD           ,10-Mar-11,3207622,8000
"Customer, Leisure & Libraries",Leisure Facilities & Services,GYR,CURRENT LIABILITIES           ,Payments to Contractors       ,ADIEN                                   ,21-Feb-11,3206055,2220
"Customer, Leisure & Libraries",Leisure Facilities & Services,LBB,SUPPLIES & SERVICES           ,Equipment - Purchase          ,CENTRAL YMCA                            ,09-Feb-11,3205092,612
"Customer, Leisure & Libraries",Leisure Facilities & Services,LBB,EMPLOYEES                     ,Staff Training                ,CENTRAL YMCA                            ,09-Feb-11,3205092,1907
"Customer, Leisure & Libraries",Leisure Facilities & Services,LBB,SUPPLIES & SERVICES           ,Physical Activity reward vouchers funded through external funding.,P&MM LIMITED                            ,01-Mar-11,3205200,4350
"Customer, Leisure & Libraries",Leisure Facilities & Services,LBE,SUPPLIES & SERVICES           ,Grants To Voluntary Organis   ,SHROPSHIRE COUNCIL                      ,09-Mar-11,3218840,2000
"Customer, Leisure & Libraries",Leisure Facilities & Services,LCD,PREMISES                      ,Electricity                   ,WEST MERCIA SUPPLIES                    ,15-Dec-10,3201793,513.23
"Customer, Leisure & Libraries",Leisure Facilities & Services,LCD,PREMISES                      ,Electricity                   ,WEST MERCIA SUPPLIES                    ,18-Feb-11,3201791,566.18
"Customer, Leisure & Libraries",Leisure Facilities & Services,LCD,PREMISES                      ,Electricity                   ,WEST MERCIA SUPPLIES                    ,15-Dec-10,3201792,567.24
"Customer, Leisure & Libraries",Leisure Facilities & Services,LCD,PREMISES                      ,Electricity                   ,WEST MERCIA SUPPLIES                    ,10-Mar-11,3215246,770.04
"Customer, Leisure & Libraries",Leisure Facilities & Services,LCD,PREMISES                      ,Gas                           ,WEST MERCIA SUPPLIES                    ,18-Feb-11,3203140,5114.65
"Customer, Leisure & Libraries",Leisure Facilities & Services,LCD,PREMISES                      ,Electricity                   ,WEST MERCIA SUPPLIES                    ,18-Feb-11,3203139,6132
"Customer, Leisure & Libraries",Leisure Facilities & Services,LCD,THIRD PARTY PAYMENTS          ,Joint Financing               ,TELFORD TRUST                           ,01-Apr-11,3218805,107425
"Customer, Leisure & Libraries",Leisure Facilities & Services,LDA,PREMISES                      ,Fuel Oil                      ,MIDLANDS WOOD FUEL SUPPLY LTD           ,28-Mar-11,3219795,1018.88
"Customer, Leisure & Libraries",Leisure Facilities & Services,LDA,PREMISES                      ,Water Rates                   ,SEVERN TRENT WATER LTD                  ,14-Feb-11,3201698,1638.09
"Customer, Leisure & Libraries",Leisure Facilities & Services,LDA,PREMISES                      ,Fuel Oil                      ,MIDLANDS WOOD FUEL SUPPLY LTD           ,28-Feb-11,3206716,3639.23
"Customer, Leisure & Libraries",Leisure Facilities & Services,LDB,SUPPLIES & SERVICES           ,Equipment - Purchase          ,AMER SPORTS UK LTD                      ,22-Feb-11,3208006,1223.17
"Customer, Leisure & Libraries",Leisure Facilities & Services,LDC,SUPPLIES & SERVICES           ,Repairs and maintenance,GRANVILLE CONSTRUCTION & MAINTENANCE LTD,28-Mar-11,3219791,800
"Customer, Leisure & Libraries",Leisure Facilities & Services,LDH,SUPPLIES & SERVICES           ,Other Services                ,SEASCOOTER UK LTD                       ,20-Dec-10,3210362,1244
"Customer, Leisure & Libraries",Leisure Facilities & Services,LDW,SUPPLIES & SERVICES           ,Equipment - Purchase          ,TRIXTER EUROPE LTD                      ,17-Mar-11,3219936,2105
"Customer, Leisure & Libraries",Leisure Facilities & Services,LJA,PREMISES                      ,General Rents                 ,AFC TELFORD UNITED                      ,11-Mar-11,3206686,2650
"Customer, Leisure & Libraries",Leisure Facilities & Services,LJA,PREMISES                      ,General Rents                 ,AFC TELFORD UNITED                      ,09-Mar-11,3206707,5350
"Customer, Leisure & Libraries",Leisure Facilities & Services,LJD,SUPPLIES & SERVICES           ,New swim 4 Life bags. Funded through external sponsorship,4IMPRINT                                ,22-Feb-11,3201873,2782.5
"Customer, Leisure & Libraries",Leisure Facilities & Services,LJD,SUPPLIES & SERVICES           ,New signage Oakengates Leisure for Tennis Centre,SIGNS EXPRESS (TELFORD)                 ,07-Mar-11,3210198,4076
"Customer, Leisure & Libraries",Leisure Facilities & Services,LJT,SUPPLIES & SERVICES           ,Mens Health Project expenditure. PCT funded.,PERFECT CIRCLE                          ,18-Feb-11,3201854,3333.33
"Customer, Leisure & Libraries",Leisure Facilities & Services,LJT,SUPPLIES & SERVICES           ,Mens Health Project expenditure. PCT funded.,PERFECT CIRCLE                          ,16-Mar-11,3218838,3333.33
"Customer, Leisure & Libraries",Leisure Facilities & Services,LJT,SUPPLIES & SERVICES           ,Mens Health Project expenditure. PCT funded.,PERFECT CIRCLE                          ,11-Mar-11,3218839,3333.33
"Customer, Leisure & Libraries",Leisure Facilities & Services,LKF,SUPPLIES & SERVICES           ,Other Services                ,BRITISH GAS BUSINESS                    ,25-Feb-11,3206501,1286.52
"Customer, Leisure & Libraries",Leisure Facilities & Services,LKF,SUPPLIES & SERVICES           ,Other Services                ,BRITISH GAS BUSINESS                    ,23-Mar-11,3219911,1598.63
"Customer, Leisure & Libraries",Leisure Facilities & Services,LXF,CURRENT LIABILITIES           ,Payments                      ,SHROPSHIRE COUNTY NETBALL ASSOC         ,21-Mar-11,3214956,700
"Customer, Leisure & Libraries",Leisure Facilities & Services,LXN,CURRENT LIABILITIES           ,Payments                      ,CLARITY RETAIL SYSTEMS LTD              ,22-Feb-11,3201099,13182.62
"Customer, Leisure & Libraries",Leisure Facilities & Services,LXP,CURRENT LIABILITIES           ,Payments                      ,FIRST POINT TENNIS COACHING LTD         ,11-Feb-11,3201013,10000
"Customer, Leisure & Libraries",Leisure Facilities & Services,LXV,CURRENT LIABILITIES           ,Payments                      ,TELFORD & WREKIN PCT                    ,14-Feb-11,3201863,11554.28
"Customer, Leisure & Libraries",Leisure Facilities & Services,WDD,SUPPLIES & SERVICES           ,Provisions                    ,TROPICAL ICE                            ,08-Mar-11,3208644,620
"Customer, Leisure & Libraries",Leisure Facilities & Services,WDD,SUPPLIES & SERVICES           ,Repairs and maintenance,EDRYD JENKINS (ELECTRICAL) LTD          ,28-Feb-11,3210306,2350
"Customer, Leisure & Libraries",Leisure Facilities & Services,WDE,SUPPLIES & SERVICES           ,Provisions                    ,BIKOLD                                  ,08-Mar-11,3208955,612.42
"Customer, Leisure & Libraries",Leisure Facilities & Services,WDE,SUPPLIES & SERVICES           ,Provisions                    ,COCA-COLA SCWEPPES BEVERAGES LIMITED    ,10-Mar-11,3209006,622.7
"Customer, Leisure & Libraries",Leisure Facilities & Services,WLC,SUPPLIES & SERVICES           ,Other Materials               ,WELLINGS LTD                            ,14-Mar-11,3212140,737.58
"Customer, Leisure & Libraries",Leisure Facilities & Services,WLC,TRANSPORT                     ,Servicing & Repairs V&P       ,CHARLIES STORES LTD                     ,11-Feb-11,3206505,902.73
"Customer, Leisure & Libraries",Leisure Facilities & Services,WLC,SUPPLIES & SERVICES           ,Other Materials               ,EARTH-TEC LIMITED                       ,14-Mar-11,3215715,1241.5
"Customer, Leisure & Libraries",Leisure Facilities & Services,WLD,SUPPLIES & SERVICES           ,Chemicals                     ,BRENNTAG UK LIMITED                     ,22-Feb-11,3201204,596.48
"Customer, Leisure & Libraries",Leisure Facilities & Services,WLD,PREMISES                      ,Electricity                   ,WEST MERCIA SUPPLIES                    ,09-Mar-11,3216132,706.98
"Customer, Leisure & Libraries",Leisure Facilities & Services,WLD,PREMISES                      ,Electricity                   ,WEST MERCIA SUPPLIES                    ,18-Feb-11,3203142,739.46
"Customer, Leisure & Libraries",Leisure Facilities & Services,WLD,SUPPLIES & SERVICES           ,Equipment - Purchase          ,SEASCOOTER UK LTD                       ,22-Feb-11,3201166,1607.48
"Customer, Leisure & Libraries",Leisure Facilities & Services,WLD,PREMISES                      ,Gas                           ,WEST MERCIA SUPPLIES                    ,18-Feb-11,3206142,3117.29
"Customer, Leisure & Libraries",Leisure Facilities & Services,WLD,CAPITAL FINANCING             ,Leased Equipment              ,BANK OF IRELAND BUSINESS FINANCE        ,24-Mar-11,3217040,4178.32
"Customer, Leisure & Libraries",Leisure Facilities & Services,WLD,PREMISES                      ,Electricity                   ,WEST MERCIA SUPPLIES                    ,09-Mar-11,3216761,4908.02
"Customer, Leisure & Libraries",Leisure Facilities & Services,WLD,PREMISES                      ,Electricity                   ,WEST MERCIA SUPPLIES                    ,18-Feb-11,3206141,5266.6
"Customer, Leisure & Libraries",Leisure Facilities & Services,WLE,PREMISES                      ,Clean Mats & Toilet Requisites,PROVAC CLEANING SERVICES                ,03-Mar-11,3215852,584
"Customer, Leisure & Libraries",Leisure Facilities & Services,WLE,SUPPLIES & SERVICES           ,Equipment - Purchase          ,J P LENNARD LTD                         ,15-Mar-11,3218857,645.08
"Customer, Leisure & Libraries",Leisure Facilities & Services,WLE,PREMISES                      ,Electricity                   ,WEST MERCIA SUPPLIES                    ,09-Mar-11,3216761,733.39
"Customer, Leisure & Libraries",Leisure Facilities & Services,WLE,PREMISES                      ,Electricity                   ,WEST MERCIA SUPPLIES                    ,18-Feb-11,3206141,786.97
"Customer, Leisure & Libraries",Leisure Facilities & Services,WLG,PREMISES                      ,Electricity                   ,WEST MERCIA SUPPLIES                    ,18-Feb-11,3204241,827.67
"Customer, Leisure & Libraries",Leisure Facilities & Services,WLG,PREMISES                      ,Electricity                   ,WEST MERCIA SUPPLIES                    ,17-Mar-11,3215717,1110.76
"Customer, Leisure & Libraries",Leisure Facilities & Services,WLG,SUPPLIES & SERVICES           ,Equipment - Purchase          ,SEASCOOTER UK LTD                       ,20-Dec-10,3210362,1244
"Customer, Leisure & Libraries",Leisure Facilities & Services,WLG,PREMISES                      ,Gas                           ,WEST MERCIA SUPPLIES                    ,18-Feb-11,3204202,2380.63
"Customer, Leisure & Libraries",Leisure Facilities & Services,WLJ,PREMISES                      ,Clean Mats & Toilet Requisites,PREMIERE PRODUCTS                       ,22-Mar-11,3216837,559.74
"Customer, Leisure & Libraries",Leisure Facilities & Services,WLJ,SUPPLIES & SERVICES           ,Equipment - Purchase          ,GRANVILLE CONSTRUCTION & MAINTENANCE LTD,17-Mar-11,3215724,630
"Customer, Leisure & Libraries",Leisure Facilities & Services,WLJ,SUPPLIES & SERVICES           ,Equipment - Purchase          ,NEW ENGLISH SKATES LTD                  ,21-Mar-11,3218836,712.5
"Customer, Leisure & Libraries",Leisure Facilities & Services,WLJ,SUPPLIES & SERVICES           ,Protective Clothing           ,SBA LTD                                 ,22-Mar-11,3215224,824.12
"Customer, Leisure & Libraries",Leisure Facilities & Services,WLJ,PREMISES                      ,Gas                           ,WEST MERCIA SUPPLIES                    ,18-Feb-11,3199968,2265.57
"Customer, Leisure & Libraries",Leisure Facilities & Services,WLJ,THIRD PARTY PAYMENTS          ,Contribution To Other La's    ,JP AUDIO VISUAL LTD                     ,18-Mar-11,3218918,2710.2
"Customer, Leisure & Libraries",Leisure Facilities & Services,WLJ,THIRD PARTY PAYMENTS          ,Contribution To Other La's    ,JP AUDIO VISUAL LTD                     ,21-Mar-11,3218919,2827.4
"Customer, Leisure & Libraries",Leisure Facilities & Services,WLJ,PREMISES                      ,R&M Fixed Plant Other         ,HOOD AIRPORT & ICE LTD                  ,29-Nov-10,3218703,4230
"Customer, Leisure & Libraries",Leisure Facilities & Services,WLJ,SUPPLIES & SERVICES           ,Equipment - Purchase          ,NEW ENGLISH SKATES LTD                  ,01-Mar-11,3208379,5793.5
"Customer, Leisure & Libraries",Leisure Facilities & Services,WLJ,PREMISES                      ,Electricity                   ,WEST MERCIA SUPPLIES                    ,18-Feb-11,3201864,8906.84
"Customer, Leisure & Libraries",Leisure Facilities & Services,WLJ,PREMISES                      ,Electricity                   ,WEST MERCIA SUPPLIES                    ,09-Mar-11,3209358,9308.34
"Customer, Leisure & Libraries",Leisure Facilities & Services,WLM,SUPPLIES & SERVICES           ,Payment Of Income Collected   ,TELFORD TIGERS SOCIETY LTD              ,16-Mar-11,3209608,689.5
"Customer, Leisure & Libraries",Leisure Facilities & Services,WLM,SUPPLIES & SERVICES           ,Payment Of Income Collected   ,TELFORD TIGERS SOCIETY LTD              ,22-Mar-11,3213037,1031.5
"Customer, Leisure & Libraries",Leisure Facilities & Services,WLM,SUPPLIES & SERVICES           ,Payment Of Income Collected   ,TELFORD TIGERS SOCIETY LTD              ,06-Mar-11,3203486,1098
"Customer, Leisure & Libraries",Leisure Facilities & Services,WLM,SUPPLIES & SERVICES           ,Other Services                ,TELFORD TIGERS SOCIETY LTD              ,14-Mar-11,3207901,1183.75
"Customer, Leisure & Libraries",Leisure Facilities & Services,WLM,SUPPLIES & SERVICES           ,Payment Of Income Collected   ,TELFORD TIGERS SOCIETY LTD              ,27-Mar-11,3217050,1625.25
"Customer, Leisure & Libraries",Leisure Facilities & Services,WLR,PREMISES                      ,Contract Cleaning             ,PHS GROUP LTD                           ,25-Feb-11,3205133,554.7
"Customer, Leisure & Libraries",Leisure Facilities & Services,WLR,SUPPLIES & SERVICES           ,Equipment - Hire              ,ING LEASE (UK) LTD                      ,21-Mar-11,3217944,715.4
"Customer, Leisure & Libraries",Leisure Facilities & Services,WLR,PREMISES                      ,Electricity                   ,WEST MERCIA SUPPLIES                    ,10-Mar-11,3212835,1258.83
"Customer, Leisure & Libraries",Leisure Facilities & Services,WLR,PREMISES                      ,Electricity                   ,WEST MERCIA SUPPLIES                    ,18-Feb-11,3201985,1511.88
"Customer, Leisure & Libraries",Leisure Facilities & Services,WLV,SUPPLIES & SERVICES           ,Equipment - Purchase          ,IQL UK LTD                              ,28-Feb-11,3215256,561.6
"Customer, Leisure & Libraries",Leisure Facilities & Services,WLW,SUPPLIES & SERVICES           ,Items For Resale              ,ACUSHNET EUROPE LIMITED                 ,15-Mar-11,3215694,532.5
"Customer, Leisure & Libraries",Leisure Facilities & Services,WLW,SUPPLIES & SERVICES           ,Items For Resale              ,ACUSHNET EUROPE LIMITED                 ,10-Mar-11,3212812,1263.5
"Customer, Leisure & Libraries",Library Services,LLB,SUPPLIES & SERVICES           ,Library Book Fund        ,COVERGOLD LTD                           ,22-Mar-11,3215111,514.77
"Customer, Leisure & Libraries",Library Services,LLB,SUPPLIES & SERVICES           ,Storage / delivery boxes       ,NOMAD LTD                               ,22-Mar-11,3215150,537.5
"Customer, Leisure & Libraries",Library Services,LLB,SUPPLIES & SERVICES           ,Library Book Fund        ,AUDIOGO LIMITED                         ,07-Mar-11,3208722,604.5
"Customer, Leisure & Libraries",Library Services,LLB,SUPPLIES & SERVICES           ,Library Book Fund        ,BERTRAM LIBRARY SERVICES                ,09-Mar-11,3214936,628.38
"Customer, Leisure & Libraries",Library Services,LLB,SUPPLIES & SERVICES           ,Library Book Fund        ,BERTRAM LIBRARY SERVICES                ,16-Feb-11,3202048,640.44
"Customer, Leisure & Libraries",Library Services,LLB,SUPPLIES & SERVICES           ,Furniture & equipment for Wellington Library,OPENING THE BOOK LTD                    ,22-Mar-11,3215113,650
"Customer, Leisure & Libraries",Library Services,LLB,SUPPLIES & SERVICES           ,Library Book Fund        ,BERTRAM LIBRARY SERVICES                ,24-Mar-11,3215776,661.69
"Customer, Leisure & Libraries",Library Services,LLB,SUPPLIES & SERVICES           ,Library Book Fund        ,BERTRAM LIBRARY SERVICES                ,18-Feb-11,3202049,673.9
"Customer, Leisure & Libraries",Library Services,LLB,SUPPLIES & SERVICES           ,Library Book Fund        ,BERTRAM LIBRARY SERVICES                ,18-Feb-11,3202046,696.65
"Customer, Leisure & Libraries",Library Services,LLB,SUPPLIES & SERVICES           ,Library Book Fund        ,BERTRAM LIBRARY SERVICES                ,25-Feb-11,3204891,704.47
"Customer, Leisure & Libraries",Library Services,LLB,SUPPLIES & SERVICES           ,Library Book Fund        ,BERTRAM LIBRARY SERVICES                ,23-Feb-11,3204899,709.56
"Customer, Leisure & Libraries",Library Services,LLB,SUPPLIES & SERVICES           ,Library Book Fund        ,BERTRAM LIBRARY SERVICES                ,08-Mar-11,3208962,761.32
"Customer, Leisure & Libraries",Library Services,LLB,SUPPLIES & SERVICES           ,Library Book Fund        ,BERTRAM LIBRARY SERVICES                ,24-Mar-11,3220329,789.61
"Customer, Leisure & Libraries",Library Services,LLB,SUPPLIES & SERVICES           ,Library Book Fund        ,BERTRAM LIBRARY SERVICES                ,09-Mar-11,3214935,874.19
"Customer, Leisure & Libraries",Library Services,LLB,SUPPLIES & SERVICES           ,Opening hours signs for libraries,SIGNS EXPRESS (TELFORD)                 ,17-Mar-11,3215005,884
"Customer, Leisure & Libraries",Library Services,LLB,SUPPLIES & SERVICES           ,Library Book Fund        ,BERTRAM LIBRARY SERVICES                ,02-Mar-11,3204890,916.34
"Customer, Leisure & Libraries",Library Services,LLB,SUPPLIES & SERVICES           ,Library Book Fund        ,CANS TRUST                              ,01-Jan-11,3201044,1659.48
"Customer, Leisure & Libraries",Library Services,LLB,SUPPLIES & SERVICES           ,Library Book Fund        ,THE READING AGENCY LTD                  ,09-Mar-11,3209260,2018.28
"Customer, Leisure & Libraries",Library Services,LLB,SUPPLIES & SERVICES           ,Library Book Fund        ,OCLC (UK) LIMITED                       ,11-Mar-11,3214997,2267.61
"Customer, Leisure & Libraries",Library Services,LLB,SUPPLIES & SERVICES           ,Library Book Fund        ,NIELSEN BOOK SERVICE                    ,10-Mar-11,3215165,2640
"Customer, Leisure & Libraries",Library Services,LLB,SUPPLIES & SERVICES           ,Library Book Fund        ,OXFORD UNIVERSITY PRESS                 ,17-Feb-11,3211186,3668
"Customer, Leisure & Libraries",Library Services,LLB,SUPPLIES & SERVICES           ,Library Book Fund        ,SHROPSHIRE COUNCIL                      ,22-Feb-11,3203136,5000
"Customer, Leisure & Libraries",Library Services,LLB,SUPPLIES & SERVICES           ,Library shelving & stock display units,OPENING THE BOOK PROMOTIONS LTD         ,14-Mar-11,3218512,8177
"Customer, Leisure & Libraries",Library Services,LLE,SUPPLIES & SERVICES           ,Computer Software (Maint)     ,AXIELL LTD                              ,22-Mar-11,3215094,700
"Customer, Leisure & Libraries",Library Services,LLE,SUPPLIES & SERVICES           ,Computer Hardware (Maint)     ,AXIELL LTD                              ,01-Mar-11,3214873,2296.18
"Customer, Leisure & Libraries",Library Services,LLE,SUPPLIES & SERVICES           ,Computer Software (Maint)     ,AXIELL LTD                              ,01-Mar-11,3214873,4150.31
"Customer, Leisure & Libraries",Library Services,LLE,SUPPLIES & SERVICES           ,Comp Software (Purch / Hire)  ,AXIELL LTD                              ,24-Feb-11,3205252,9695
"Customer, Leisure & Libraries",Library Services,LLH,PREMISES                      ,Electricity                   ,WEST MERCIA SUPPLIES                    ,14-Mar-11,3215130,1221.47
"Customer, Leisure & Libraries",Library Services,LLP,PREMISES                      ,Electricity                   ,WEST MERCIA SUPPLIES                    ,18-Feb-11,3203241,729.92
"Customer, Leisure & Libraries",Library Services,LLP,PREMISES                      ,Electricity                   ,WEST MERCIA SUPPLIES                    ,14-Mar-11,3215131,852.64
"Customer, Leisure & Libraries",Library Services,LLP,PREMISES                      ,Gas                           ,WEST MERCIA SUPPLIES                    ,18-Feb-11,3203137,930.22
"Customer, Leisure & Libraries",Library Services,LLQ,SUPPLIES & SERVICES           ,Annual Supply of Library membership tickets,BEMROSE BOOTH LIMITED                   ,17-Mar-11,3214987,1188.19
"Customer, Leisure & Libraries",Revenues & Benefits,GRB,SUPPLIES & SERVICES           ,Subscription to website,HBINFO LTD                              ,28-Feb-11,3203644,585
"Customer, Leisure & Libraries",Revenues & Benefits,GRB,SUPPLIES & SERVICES           ,Stationery                    ,THE STATIONERY OFFICE                   ,03-Mar-11,3207793,705.75
"Customer, Leisure & Libraries",Revenues & Benefits,GRB,SUPPLIES & SERVICES           ,Comp Software (Purch / Hire)  ,NORTHGATE INFORMATION SOLUTIONS UK LTD  ,11-Mar-11,3213023,900
"Customer, Leisure & Libraries",Revenues & Benefits,GRB,SUPPLIES & SERVICES           ,Postages                      ,ROYAL MAIL GROUP PLC                    ,07-Mar-11,3207988,1138.38
"Customer, Leisure & Libraries",Revenues & Benefits,GRB,SUPPLIES & SERVICES           ,Benchmarking services,CIPFA BUSINESS LTD                      ,15-Feb-11,3199956,1180
"Customer, Leisure & Libraries",Revenues & Benefits,GRB,SUPPLIES & SERVICES           ,Postages                      ,ROYAL MAIL GROUP PLC                    ,14-Mar-11,3213027,1215.22
"Customer, Leisure & Libraries",Revenues & Benefits,GRB,SUPPLIES & SERVICES           ,Legal advice,AIREY CONSULTANCY SERVICES LTD          ,10-Mar-11,3208459,1250
"Customer, Leisure & Libraries",Revenues & Benefits,GRB,SUPPLIES & SERVICES           ,Postages                      ,ROYAL MAIL GROUP PLC                    ,21-Feb-11,3205921,1513.74
"Customer, Leisure & Libraries",Revenues & Benefits,GRB,EMPLOYEES                     ,Staff Training                ,NORTHGATE INFORMATION SOLUTIONS UK LTD  ,12-Mar-11,3213024,1650
"Customer, Leisure & Libraries",Revenues & Benefits,GRB,SUPPLIES & SERVICES           ,Postages                      ,ROYAL MAIL GROUP PLC                    ,28-Feb-11,3205866,1993.49
"Customer, Leisure & Libraries",Revenues & Benefits,GRB,SUPPLIES & SERVICES           ,Comp Software (Purch / Hire)  ,NORTHGATE INFORMATION SOLUTIONS UK LTD  ,22-Feb-11,3205919,8419
"Customer, Leisure & Libraries",Revenues & Benefits,GXA,CURRENT LIABILITIES           ,Payments                      ,EXPERIAN LTD                            ,28-Feb-11,3210898,8300
"Customer, Leisure & Libraries",Superintendent Registrar,PLC,SUPPLIES & SERVICES           ,Grants To Voluntary Organisation For Maintenance Of Cemeteries,ST LEONARDS DCC                         ,10-Mar-11,3207833,667.98
"Customer, Leisure & Libraries",Superintendent Registrar,PLC,PREMISES                      ,Cemeteries Grounds Maintenance,P & W MAINTENANCE CONTRACTING LTD       ,28-Feb-11,3207987,1797.18
"Customer, Leisure & Libraries",Superintendent Registrar,PLC,PREMISES                      ,Cemeteries Grounds Maintenance,P & W MAINTENANCE CONTRACTING LTD       ,28-Feb-11,3207986,3116.71
Economy & Skills,Enterprise & Employment,BBF,THIRD PARTY PAYMENTS          ,Private Contractors           ,YOUNG ENTERPRISE                        ,03-Mar-11,3208657,753.11
Economy & Skills,Enterprise & Employment,BBF,SUPPLIES & SERVICES           ,Venue costs,WHITEHOUSE HOTELS LTD                   ,09-Feb-11,3198919,1824.33
Economy & Skills,Enterprise & Employment,BBF,SUPPLIES & SERVICES           ,Venue costs,TELFORD INTERNATIONAL CENTRE            ,02-Feb-11,3198937,8669.45
Economy & Skills,Enterprise & Employment,DMZ,CURRENT LIABILITIES           ,Payments to Contractors       ,K & M CONSTRUCTION LTD                  ,14-Mar-11,3210307,524.71
Economy & Skills,Enterprise & Employment,DMZ,CURRENT LIABILITIES           ,Payments to Contractors       ,A HAND SERVICES LTD                     ,16-Mar-11,3215727,5403.33
Economy & Skills,Enterprise & Employment,DMZ,CURRENT LIABILITIES           ,Payments to Contractors       ,CONSERVATION BUILDING SERVICES LTD      ,15-Mar-11,3210304,22011.63
Economy & Skills,Enterprise & Employment,DRD,CURRENT LIABILITIES           ,External Professional Fees    ,JACOBS ENGINEERING UK LTD               ,08-Mar-11,3209412,944
Economy & Skills,Enterprise & Employment,DRD,CURRENT LIABILITIES           ,Payments to Contractors       ,SLR CONSULTING LIMITED                  ,25-Feb-11,3213028,2467.5
Economy & Skills,Enterprise & Employment,DRD,CURRENT LIABILITIES           ,Payments to Contractors       ,JACOBS ENGINEERING UK LTD               ,16-Mar-11,3213870,3755.44
Economy & Skills,Enterprise & Employment,DRD,CURRENT LIABILITIES           ,Payments to Contractors       ,FITZGERALD CONTRACTORS LTD              ,16-Mar-11,3213886,78258.38
Economy & Skills,Enterprise & Employment,DRH,SUPPLIES & SERVICES           ,Grants To Voluntary Organis   ,ENTERPRISE HQ LIMITED                   ,17-Feb-11,3210301,12500
Economy & Skills,Enterprise & Employment,DRJ,CURRENT LIABILITIES           ,Other Capital Expenditure     ,JACOBS ENGINEERING UK LTD               ,08-Mar-11,3209412,543
Economy & Skills,Enterprise & Employment,DRJ,CURRENT LIABILITIES           ,Payments to Contractors       ,TELFORD BUILDING CONTRACTORS            ,21-Mar-11,3220233,3433.02
Economy & Skills,Enterprise & Employment,DRJ,CURRENT LIABILITIES           ,Site Investigation            ,ALLIANCE ENVIRONMENT & PLANNING LTD     ,30-Nov-10,3213055,5000
Economy & Skills,Enterprise & Employment,NTA,SUPPLIES & SERVICES           ,Marketing & Publicity         ,IRONBRIDGE GORGE MUSEUM TRUST LTD       ,15-Mar-11,3211170,12500
Economy & Skills,Enterprise & Employment,NTC,SUPPLIES & SERVICES           ,Marketing & Publicity         ,ABSOLUTE PUBLISHING LTD                 ,10-Feb-11,3201006,650
Economy & Skills,Enterprise & Employment,NTC,SUPPLIES & SERVICES           ,Marketing & Publicity         ,LIME GREEN DESIGN                       ,18-Feb-11,3205916,1310
Economy & Skills,Enterprise & Employment,NTC,SUPPLIES & SERVICES           ,Marketing & Publicity         ,CARON PROMOTIONS                        ,23-Mar-11,3220191,1850
Economy & Skills,Enterprise & Employment,NTC,SUPPLIES & SERVICES           ,Marketing & Publicity         ,DESIGN:ONE LTD                          ,04-Mar-11,3211777,2397.5
Economy & Skills,Enterprise & Employment,NTC,SUPPLIES & SERVICES           ,Internet                      ,GRITT DESIGN                            ,11-Mar-11,3212824,2500
Economy & Skills,Enterprise & Employment,NTC,SUPPLIES & SERVICES           ,Internet                      ,GRITT DESIGN                            ,28-Feb-11,3212823,10000
Economy & Skills,Enterprise & Employment,NTE,SUPPLIES & SERVICES           ,Marketing & Publicity         ,7VIDEO LTD                              ,14-Mar-11,3215170,2707
Economy & Skills,Enterprise & Employment,NTE,SUPPLIES & SERVICES           ,Consultants Fees              ,GABEM MANAGEMENT LTD                    ,08-Feb-11,3205177,4940
Economy & Skills,Enterprise & Employment,NTF,SUPPLIES & SERVICES           ,Internet                      ,GRITT DESIGN                            ,14-Mar-11,3213016,1000
Economy & Skills,Enterprise & Employment,NTF,SUPPLIES & SERVICES           ,Internet                      ,GRITT DESIGN                            ,14-Mar-11,3213015,3530
Economy & Skills,Enterprise & Employment,NTF,SUPPLIES & SERVICES           ,Internet                      ,GRITT DESIGN                            ,14-Mar-11,3213017,7500
Economy & Skills,Lifelong Learning,NLD,SUPPLIES & SERVICES           ,Sub Contractors               ,THE SMALL WOODS ASSOCIATION             ,15-Mar-11,3213983,12475.5
Economy & Skills,Lifelong Learning,NLX,SUPPLIES & SERVICES           ,Sub Contractors               ,RELATE SHROPSHIRE & HEREFORDSHIRE LTD   ,28-Feb-11,3211188,2500
Economy & Skills,Strategic Regeneration & Borough Towns Initiative,NBB,SUPPLIES & SERVICES           ,Subscriptions                 ,NAT ASSOC OF BRITISH MARKET AUTHORITIES ,28-Feb-11,3205318,795
Economy & Skills,Strategic Regeneration & Borough Towns Initiative,MMC,CURRENT LIABILITIES           ,Cheques Drawn Creditors       ,IRONBRIDGE GORGE WORLD HERITAGE FESTIVAL,09-Sep-10,3214364,7000
Environmental Services,Engineering Services,DAM,CURRENT LIABILITIES           ,Payments to Contractor        ,MARTIN BLOOMER ASSOCIATES               ,22-Mar-11,3215194,557.53
Environmental Services,Engineering Services,DAM,CURRENT LIABILITIES           ,Payments to Contractor        ,ADT FIRE AND SECURITY                   ,21-Feb-11,3201797,986
Environmental Services,Engineering Services,DAM,CURRENT LIABILITIES           ,Payments to Contractor        ,K & M CONSTRUCTION LTD                  ,25-Feb-11,3205197,1218.83
Environmental Services,Engineering Services,DAM,CURRENT LIABILITIES           ,Payments to Contractor        ,P HUGHES ESQ T/A WESTERN SIGNS&PRINTING ,11-Mar-11,3213039,1650
Environmental Services,Engineering Services,DAM,CURRENT LIABILITIES           ,Payments to Contractor        ,ADT FIRE & SECURITY PLC                 ,21-Feb-11,3205209,1893
Environmental Services,Engineering Services,DAM,CURRENT LIABILITIES           ,Payments to Contractor        ,K & M CONSTRUCTION LTD                  ,21-Feb-11,3201171,2019.27
Environmental Services,Engineering Services,DAM,CURRENT LIABILITIES           ,Payments to Contractor        ,K & M CONSTRUCTION LTD                  ,19-Jan-11,3205346,3605.09
Environmental Services,Engineering Services,DAM,CURRENT LIABILITIES           ,Payments to Contractor        ,MCPHILLIPS (WELLINGTON) LTD             ,04-Mar-11,3208380,64857.62
Environmental Services,Engineering Services,DAM,CURRENT LIABILITIES           ,Payments to Contractor        ,MCPHILLIPS (WELLINGTON) LTD             ,10-Mar-11,3212302,66449.63
Environmental Services,Engineering Services,DAM,CURRENT LIABILITIES           ,Payments to Contractor        ,MCPHILLIPS (WELLINGTON) LTD             ,17-Mar-11,3212300,105942.82
Environmental Services,Engineering Services,PHW,SUPPLIES & SERVICES           ,Comp Hardware (Purch / Hire)  ,KEY TRAFFIC SYSTEMS                     ,15-Feb-11,3217986,570
Environmental Services,Engineering Services,PNJ,SUPPLIES & SERVICES           ,Other Services                ,M.S. & E.M. PATRICK WASTE DISPOSAL      ,28-Feb-11,3207996,1495.08
Environmental Services,Engineering Services,PNJ,SUPPLIES & SERVICES           ,Other Services                ,BIOGAS TECHNOLOGY LIMITED               ,28-Feb-11,3210896,1988.7
Environmental Services,Engineering Services,PNJ,SUPPLIES & SERVICES           ,Other Services                ,BIOGAS TECHNOLOGY LIMITED               ,22-Mar-11,3218904,1988.7
Environmental Services,Engineering Services,PNJ,SUPPLIES & SERVICES           ,Other Services                ,BIOGAS TECHNOLOGY LIMITED               ,21-Mar-11,3218905,3380.98
Environmental Services,EngineerIng Services,PTF,PREMISES                      ,R&M WC Planned                ,K & M CONSTRUCTION LTD                  ,11-Feb-11,3198846,1269.29
Environmental Services,EngineerIng Services,PTF,PREMISES                      ,R&M WC Planned                ,JACOBS ENGINEERING UK LTD               ,08-Mar-11,3209412,1677.75
Environmental Services,EngineerIng Services,PTF,PREMISES                      ,R&M WC Planned                ,K & M CONSTRUCTION LTD                  ,02-Mar-11,3209365,2736.95
Environmental Services,Engineering Services,PWF,SUPPLIES & SERVICES           ,Pump provided for use with flood defences.,SP HOLDING TRACTOR HIRE LTD             ,28-Feb-11,3207849,755
Environmental Services,Engineering Services,PWF,SUPPLIES & SERVICES           ,Assistance with flood defences.,K & M CONSTRUCTION LTD                  ,15-Mar-11,3212120,785.6
Environmental Services,Engineering Services,PWF,SUPPLIES & SERVICES           ,Flood defence deployment.,TELFORD & WREKIN SERVICES LTD           ,16-Mar-11,3215722,17442.92
Environmental Services,Engineering Services,PWH,SUPPLIES & SERVICES           ,Paid under job no EH010 and reclaimed from client.,ALCONTROL UK LIMITED                   ,15-Mar-11,3218040,512
Environmental Services,Engineering Services,PWH,SUPPLIES & SERVICES           ,Consultants Fees              ,ENVIRONMENT AGENCY                      ,09-Feb-11,3218785,13059.75
Environmental Services,Engineering Services,PWH,SUPPLIES & SERVICES           ,Consultants Fees              ,ENVIRONMENT AGENCY                      ,09-Feb-11,3218786,13059.75
Environmental Services,Engineering Services,PWJ,SUPPLIES & SERVICES           ,Ground investigation & boreholes at Spout Mound.,GROUND INVESTIGATION & PILING LTD       ,24-Mar-11,3218818,1708.67
Environmental Services,Engineering Services,PWJ,SUPPLIES & SERVICES           ,Topographical survey of spoil mounds.,JACOBS ENGINEERING UK LTD               ,21-Mar-11,3219778,3000
Environmental Services,Engineering Services,PWY,SUPPLIES & SERVICES           ,Works to footbridge at Coalbrookdale Pools.,K & M CONSTRUCTION LTD                  ,30-Mar-11,3218762,-524.71
Environmental Services,Engineering Services,PWY,SUPPLIES & SERVICES           ,Works to footbridge at Coalbrookdale Pools.,K & M CONSTRUCTION LTD                  ,13-Mar-11,3212119,524.71
Environmental Services,Engineering Services,PWY,PREMISES                      ,R&M -Buildings DLO Charge     ,A HAND SERVICES LTD                     ,16-Mar-11,3213972,1340
Environmental Services,Engineering Services,PWY,SUPPLIES & SERVICES           ,Vegetation removal at Coalbrookdale Pools.,TELFORD & WREKIN SERVICES LTD           ,16-Mar-11,3217038,2160
Environmental Services,Environment & Open Space,GYX,CURRENT LIABILITIES           ,Payments to Contractors       ,RECORD RSS LTD                          ,04-Feb-11,3216101,2519
Environmental Services,Environment & Open Space,PDE,SUPPLIES & SERVICES           ,Sub Contractors               ,TELFORD & WREKIN SERVICES LTD           ,18-Feb-11,3201894,550
Environmental Services,Environment & Open Space,PDE,SUPPLIES & SERVICES           ,Sub Contractors               ,THE WREKIN HOUSING TRUST                ,15-Mar-11,3210174,660
Environmental Services,Environment & Open Space,PDE,SUPPLIES & SERVICES           ,Sub Contractors               ,LANDFORD TREES                          ,28-Feb-11,3215911,845.43
Environmental Services,Environment & Open Space,PDE,SUPPLIES & SERVICES           ,Sub Contractors               ,TELFORD & WREKIN SERVICES LTD           ,27-Jan-11,3203521,959.25
Environmental Services,Environment & Open Space,PDE,SUPPLIES & SERVICES           ,Sub Contractors               ,LUBBE & SONS (BULBS)LTD                 ,16-Feb-11,3199619,1000
Environmental Services,Environment & Open Space,PDE,PREMISES                      ,Payments to Contractors       ,TAYLORMADE CASTINGS LTD                 ,15-Mar-11,3213984,9635
Environmental Services,Environment & Open Space,PEX,SUPPLIES & SERVICES           ,Computer Software (Maint)     ,NORTHGATE INFORMATION SOLUTIONS UK LTD  ,09-Feb-11,3202147,1565.34
Environmental Services,Environment & Open Space,PGA,SUPPLIES & SERVICES           ,Bulk Refuse Contracts Purch   ,STRAIGHT PLC                            ,17-Mar-11,3218841,3300
Environmental Services,Environment & Open Space,PGA,SUPPLIES & SERVICES           ,Bulk Refuse Contracts Purch   ,CORAL PRODUCTS PLC                      ,21-Mar-11,3218915,5460
Environmental Services,Environment & Open Space,PGA,SUPPLIES & SERVICES           ,Bulk Refuse Contracts Purch   ,CORAL PRODUCTS PLC                      ,21-Mar-11,3218914,5775
Environmental Services,Environment & Open Space,PGA,SUPPLIES & SERVICES           ,Bulk Refuse Contracts Purch   ,CRAEMER UK LTD                          ,21-Mar-11,3219916,15120
Environmental Services,Environment & Open Space,PGL,SUPPLIES & SERVICES           ,Other Services                ,HILBRAE PETS HOTEL                      ,03-Mar-11,3210192,2507.52
Environmental Services,Environment & Open Space,PGN,PREMISES                      ,Payments to Contractors       ,TELFORD & WREKIN SERVICES LTD           ,17-Mar-11,3211021,16477.27
Environmental Services,Environment & Open Space,PGN,THIRD PARTY PAYMENTS          ,Payments to Contractors       ,TELFORD & WREKIN SERVICES LTD           ,17-Mar-11,3211021,82604.4
Environmental Services,Environment & Open Space,PLA,SUPPLIES & SERVICES           ,Other Materials               ,TELFORD & WREKIN SERVICES LTD           ,18-Feb-11,3199635,695
Environmental Services,Environment & Open Space,PLP,SUPPLIES & SERVICES           ,Play development              ,SIGNS EXPRESS (TELFORD)                 ,10-Mar-11,3212829,1485
Environmental Services,Environment & Open Space,PLP,SUPPLIES & SERVICES           ,Play development              ,SP HOLDING TRACTOR HIRE LTD             ,21-Mar-11,3219920,2229.5
Environmental Services,Environment & Open Space,PLP,SUPPLIES & SERVICES           ,Play development              ,KOMPAN (UK) LTD                         ,17-Mar-11,3218920,2924.9
Environmental Services,Environment & Open Space,PLP,SUPPLIES & SERVICES           ,Play development              ,RAMPMENTAL LTD                          ,09-Mar-11,3213888,24897.56
Environmental Services,Environment & Open Space,PLT,SUPPLIES & SERVICES           ,Payments to Contractors       ,TELFORD & WREKIN SERVICES LTD           ,15-Mar-11,3220332,510
Environmental Services,Environment & Open Space,PLT,SUPPLIES & SERVICES           ,Sub Contractors               ,K & M CONSTRUCTION LTD                  ,09-Mar-11,3205852,534.6
Environmental Services,Environment & Open Space,PLT,SUPPLIES & SERVICES           ,Security Services             ,BUSINESS WATCH GUARDING LIMITED         ,09-Mar-11,3205844,929.28
Environmental Services,Environment & Open Space,PLT,SUPPLIES & SERVICES           ,Sub Contractors               ,K & M CONSTRUCTION LTD                  ,22-Feb-11,3206144,941.62
Environmental Services,Environment & Open Space,PLT,SUPPLIES & SERVICES           ,Sub Contractors               ,OCS GROUP UK LIMITED ,01-Jan-11,3205340,1242.93
Environmental Services,Environment & Open Space,PLT,SUPPLIES & SERVICES           ,Payments to Contractors       ,CADER CONSTRUCTION LTD                  ,07-Mar-11,3220351,5240
Environmental Services,Environment & Open Space,PLT,SUPPLIES & SERVICES           ,Sub Contractors               ,TELFORD & WREKIN SERVICES LTD           ,21-Oct-10,3208452,5381.99
Environmental Services,Environment & Open Space,PLT,SUPPLIES & SERVICES           ,Sub Contractors               ,PORTAKABIN LTD                          ,04-Mar-11,3210984,6116.64
Environmental Services,Environment & Open Space,PLW,SUPPLIES & SERVICES           ,Payments to Contractors       ,THE AUTOMOBILE ASSOCIATION LTD          ,01-Feb-11,3212966,519.24
Environmental Services,Environment & Open Space,PRW,PREMISES                      ,Payments to Contractors       ,SALT UNION LTD                          ,14-Mar-11,3215007,1022.58
Environmental Services,Environment & Open Space,PRW,PREMISES                      ,Payments to Contractors       ,J C PEACOCK & COMPANY LIMITED           ,28-Feb-11,3215002,1813.87
Environmental Services,Environment & Open Space,PRW,PREMISES                      ,Payments to Contractors       ,SALT UNION LTD                          ,14-Mar-11,3215006,2030.09
Environmental Services,Environment & Open Space,PRW,PREMISES                      ,Payments to Contractors       ,PRISMO RD MARKINGS T/A PRISMO TRAFFIC   ,21-Feb-11,3206036,3960
Environmental Services,Environment & Open Space,PRW,PREMISES                      ,Payments to Contractors       ,SALT UNION LTD                          ,15-Mar-11,3215124,6043.63
Environmental Services,Environment & Open Space,PRW,PREMISES                      ,Payments to Contractors       ,VAISALA LIMITED                         ,17-Feb-11,3202156,8918.3
Environmental Services,Environment & Open Space,PHH,THIRD PARTY PAYMENTS          ,Private Contractors           ,TELFORD & WREKIN SERVICES LTD           ,14-Mar-11,3208425,271591.12
Environmental Services,Environment & Open Space,PHH,THIRD PARTY PAYMENTS          ,Private Contractors           ,TELFORD & WREKIN SERVICES LTD           ,17-Mar-11,3211020,873545.48
Environmental Services,Environment & Open Space,PXF,CURRENT LIABILITIES           ,Payments                      ,KRM CONTRACTORS LTD                     ,28-Feb-11,3208664,2461
Environmental Services,Environment & Open Space,PXF,CURRENT LIABILITIES           ,Payments                      ,ACE ENGINEERS (MORLEY) LTD              ,25-Feb-11,3208673,3200
Environmental Services,Environment & Open Space,PXF,CURRENT LIABILITIES           ,Payments                      ,SMP (PLAYGROUNDS) LTD                   ,11-Mar-11,3211171,4456.67
Environmental Services,Environment & Open Space,PXF,CURRENT LIABILITIES           ,Payments                      ,TELFORD & WREKIN SERVICES LTD           ,18-Feb-11,3208668,6056.76
Environmental Services,Environment & Open Space,PXF,CURRENT LIABILITIES           ,Payments                      ,ACE ENGINEERS (MORLEY) LTD              ,24-Feb-11,3205192,6400
Environmental Services,Environment & Open Space,PXF,CURRENT LIABILITIES           ,Payments                      ,TELFORD & WREKIN SERVICES LTD           ,21-Feb-11,3217018,6975.05
Environmental Services,Environment & Open Space,PXF,CURRENT LIABILITIES           ,Payments                      ,RTC SAFETY SURFACES LTD                 ,16-Feb-11,3201030,14000
Environmental Services,Environment & Open Space,PXF,CURRENT LIABILITIES           ,Payments                      ,TELFORD & WREKIN SERVICES LTD           ,11-Mar-11,3211091,55477.97
Environmental Services,Highways & Transport,PAD,PREMISES                      ,Specific Works                ,JACOBS ENGINEERING UK LTD               ,08-Mar-11,3209412,11741
Environmental Services,Highways & Transport,PCR,CURRENT LIABILITIES           ,Payments to Contractors       ,K & M CONSTRUCTION LTD                  ,25-Feb-11,3208663,1447.92
Environmental Services,Highways & Transport,PCR,CURRENT LIABILITIES           ,Payments to Contractors       ,TARMAC LIMITED                          ,03-Jan-11,3211025,3948.09
Environmental Services,Highways & Transport,PCR,CURRENT LIABILITIES           ,Plan Environment Services Fees,GORMAN MANAGEMENT SERVICES LTD          ,06-Feb-11,3201694,5823.09
Environmental Services,Highways & Transport,PCR,CURRENT LIABILITIES           ,Payments to Contractors       ,J N BENTLEY LTD                         ,14-Feb-11,3199623,6545.24
Environmental Services,Highways & Transport,PCR,CURRENT LIABILITIES           ,External Professional Fees    ,JACOBS ENGINEERING UK LTD               ,03-Mar-11,3208679,6550.43
Environmental Services,Highways & Transport,PCR,CURRENT LIABILITIES           ,Payments to Contractors       ,J N BENTLEY LTD                         ,03-Jan-11,3211030,7703.85
Environmental Services,Highways & Transport,PCR,CURRENT LIABILITIES           ,External Professional Fees    ,JACOBS ENGINEERING UK LTD               ,08-Mar-11,3209412,15852.3
Environmental Services,Highways & Transport,PCR,CURRENT LIABILITIES           ,Payments to Contractors       ,AGGREGATE INDUSTRIES UK LTD             ,20-Dec-10,3211029,28145.92
Environmental Services,Highways & Transport,PCT,CURRENT LIABILITIES           ,Payments to Contractors       ,PRYSMIAN CABLES & SYSTEMS LTD           ,10-Mar-11,3209475,944.4
Environmental Services,Highways & Transport,PCT,CURRENT LIABILITIES           ,Plan Environment Services Fees,BIOGAS TECHNOLOGY LIMITED               ,21-Mar-11,3216941,1115
Environmental Services,Highways & Transport,PCT,CURRENT LIABILITIES           ,Other Capital Expenditure     ,STAINTON METAL CO LTD               ,23-Feb-11,3206720,1317.6
Environmental Services,Highways & Transport,PCT,CURRENT LIABILITIES           ,Other Capital Expenditure     ,PHOSCO LIMITED                          ,02-Mar-11,3206718,1374.85
Environmental Services,Highways & Transport,PCT,CURRENT LIABILITIES           ,Payments to Contractors       ,PRYSMIAN CABLES & SYSTEMS LTD           ,10-Mar-11,3209476,1375.38
Environmental Services,Highways & Transport,PCT,CURRENT LIABILITIES           ,Payments to Contractors       ,PRYSMIAN CABLES & SYSTEMS LTD           ,10-Mar-11,3209481,1811.95
Environmental Services,Highways & Transport,PCT,CURRENT LIABILITIES           ,Payments to Contractors       ,E.ON UK ENERGY SERVICES LIMITED         ,14-Mar-11,3209483,1871
Environmental Services,Highways & Transport,PCT,CURRENT LIABILITIES           ,Plan Environment Services Fees,BIOGAS TECHNOLOGY LIMITED               ,21-Mar-11,3216939,3140
Environmental Services,Highways & Transport,PCT,CURRENT LIABILITIES           ,Payments to Contractors       ,E.ON UK ENERGY SERVICES LIMITED         ,14-Mar-11,3209482,3619
Environmental Services,Highways & Transport,PCT,CURRENT LIABILITIES           ,Payments to Contractors       ,PP ELECTRICAL SERVICES                  ,31-Jan-11,3201697,3680
Environmental Services,Highways & Transport,PCT,CURRENT LIABILITIES           ,Payments to Contractors       ,E.ON UK ENERGY SERVICES LTD             ,21-Feb-11,3208674,3783.9
Environmental Services,Highways & Transport,PCT,CURRENT LIABILITIES           ,Payments to Contractors       ,BIOGAS TECHNOLOGY LIMITED               ,11-Mar-11,3211076,3823
Environmental Services,Highways & Transport,PCT,CURRENT LIABILITIES           ,Payments to Contractors       ,AGGREGATE INDUSTRIES UK LTD             ,20-Dec-10,3211029,4196.17
Environmental Services,Highways & Transport,PCT,CURRENT LIABILITIES           ,Payments to Contractors       ,PP ELECTRICAL SERVICES                  ,11-Mar-11,3211084,4346.5
Environmental Services,Highways & Transport,PCT,CURRENT LIABILITIES           ,Payments to Contractors       ,BIOGAS TECHNOLOGY LIMITED               ,21-Mar-11,3216940,4575.6
Environmental Services,Highways & Transport,PCT,CURRENT LIABILITIES           ,External Professional Fees    ,JACOBS ENGINEERING UK LTD               ,08-Mar-11,3209412,4890
Environmental Services,Highways & Transport,PCT,CURRENT LIABILITIES           ,Payments to Contractors       ,E.ON UK ENERGY SERVICES LIMITED         ,14-Mar-11,3209484,5233.22
Environmental Services,Highways & Transport,PCT,CURRENT LIABILITIES           ,Payments to Contractors       ,JACOBS ENGINEERING UK LTD               ,03-Mar-11,3205865,5518.53
Environmental Services,Highways & Transport,PCT,CURRENT LIABILITIES           ,Payments to Contractors       ,SOUTH TYNE DRILLING LTD                 ,24-Mar-11,3216942,6244.7
Environmental Services,Highways & Transport,PCT,CURRENT LIABILITIES           ,Payments to Contractors       ,TELFORD & WREKIN SERVICES LTD           ,16-Mar-11,3211089,6662.36
Environmental Services,Highways & Transport,PCT,CURRENT LIABILITIES           ,Payments to Contractors       ,TELFORD & WREKIN SERVICES LTD           ,10-Mar-11,3211088,7126.5
Environmental Services,Highways & Transport,PCT,CURRENT LIABILITIES           ,Payments to Contractors       ,BIOGAS TECHNOLOGY LIMITED               ,14-Mar-11,3211077,7714
Environmental Services,Highways & Transport,PCT,CURRENT LIABILITIES           ,Plan Environment Services Fees,BIOGAS TECHNOLOGY LIMITED               ,21-Mar-11,3216938,12065
Environmental Services,Highways & Transport,PCT,CURRENT LIABILITIES           ,Payments to Contractors       ,PP ELECTRICAL SERVICES                  ,09-Mar-11,3209259,12755
Environmental Services,Highways & Transport,PCT,CURRENT LIABILITIES           ,Payments to Contractors       ,PRYSMIAN CABLES & SYSTEMS LTD           ,11-Mar-11,3209477,12815.98
Environmental Services,Highways & Transport,PCT,CURRENT LIABILITIES           ,Payments to Contractors       ,BIOGAS TECHNOLOGY LIMITED               ,09-Feb-11,3201689,14726.86
Environmental Services,Highways & Transport,PCT,CURRENT LIABILITIES           ,Payments to Contractors       ,SOUTH TYNE DRILLING LTD                 ,14-Mar-11,3213877,20858.5
Environmental Services,Highways & Transport,PCT,CURRENT LIABILITIES           ,Payments to Contractors       ,BIOGAS TECHNOLOGY LIMITED               ,23-Mar-11,3216943,26751.41
Environmental Services,Highways & Transport,PCT,CURRENT LIABILITIES           ,Payments to Contractors       ,K & M CONSTRUCTION LTD                  ,14-Mar-11,3211022,30378.52
Environmental Services,Highways & Transport,PCT,CURRENT LIABILITIES           ,Payments to Contractors       ,BIOGAS TECHNOLOGY LIMITED               ,23-Mar-11,3216937,38949.6
Environmental Services,Highways & Transport,PCT,CURRENT LIABILITIES           ,Payments to Contractors       ,K & M CONSTRUCTION LTD                  ,28-Mar-11,3217021,59867.31
Environmental Services,Highways & Transport,PCT,CURRENT LIABILITIES           ,Payments to Contractors       ,BIOGAS TECHNOLOGY LIMITED               ,04-Mar-11,3211017,67436.67
Environmental Services,Highways & Transport,PCT,CURRENT LIABILITIES           ,Payments to Contractors       ,E.ON UK ENERGY SERVICES LIMITED         ,14-Mar-11,3209485,106502.66
Environmental Services,Highways & Transport,PCY,CURRENT LIABILITIES           ,Payments to Contractors       ,K & M CONSTRUCTION LTD                  ,14-Feb-11,3198847,1681.56
Environmental Services,Highways & Transport,PCY,CURRENT LIABILITIES           ,External Professional Fees    ,JACOBS ENGINEERING UK LTD               ,08-Mar-11,3209412,1931
Environmental Services,Highways & Transport,PCY,CURRENT LIABILITIES           ,Payments to Contractors       ,K & M CONSTRUCTION LTD                  ,14-Feb-11,3198936,2391.55
Environmental Services,Highways & Transport,PCY,CURRENT LIABILITIES           ,Payments to Contractors       ,K & M CONSTRUCTION LTD                  ,02-Mar-11,3211094,2412.48
Environmental Services,Highways & Transport,PCY,CURRENT LIABILITIES           ,Payments to Contractors       ,JPCS LTD                                ,28-Feb-11,3206146,6842.24
Environmental Services,Highways & Transport,PCY,CURRENT LIABILITIES           ,Payments to Contractors       ,AGGREGATE INDUSTRIES UK LTD             ,20-Dec-10,3211029,22726.23
Environmental Services,Highways & Transport,PCY,CURRENT LIABILITIES           ,Payments to Contractors       ,JPCS LTD                                ,28-Feb-11,3215726,77335.95
Environmental Services,Highways & Transport,PER,INCOME                        ,Course Fees,UNIVERSITY OF WOLVERHAMPTON             ,23-Feb-11,3206038,1333.33
Environmental Services,Highways & Transport,PER,INCOME                        ,Course Fees,UNIVERSITY OF WOLVERHAMPTON             ,23-Feb-11,3206039,1333.33
Environmental Services,Highways & Transport,PER,INCOME                        ,Course Fees,UNIVERSITY OF WOLVERHAMPTON             ,23-Feb-11,3206040,1333.33
Environmental Services,Highways & Transport,PEV,SUPPLIES & SERVICES           ,Comp Hardware (Purch / Hire)  ,KEY TRAFFIC SYSTEMS                     ,15-Feb-11,3217986,1790
Environmental Services,Highways & Transport,PFB,PREMISES                      ,Street Light Repairs,PRYSMIAN CABLES & SYSTEMS LTD           ,28-Feb-11,3217023,521.38
Environmental Services,Highways & Transport,PFB,PREMISES                      ,Street Light Repairs,PRYSMIAN CABLES & SYSTEMS LTD           ,25-Feb-11,3217022,2383.43
Environmental Services,Highways & Transport,PFB,PREMISES                      ,R&M MEB Contract Maintenance  ,TELFORD & WREKIN SERVICES LTD           ,16-Mar-11,3211089,5000
Environmental Services,Highways & Transport,PFB,PREMISES                      ,Electricity                   ,WEST MERCIA SUPPLIES                    ,07-Mar-11,3210893,26038.35
Environmental Services,Highways & Transport,PFB,PREMISES                      ,Electricity                   ,WEST MERCIA SUPPLIES                    ,18-Feb-11,3210892,32495.57
Environmental Services,Highways & Transport,PFC,PREMISES                      ,Street Light Repairs,PRYSMIAN CABLES & SYSTEMS LTD           ,03-Jan-11,3198855,948.32
Environmental Services,Highways & Transport,PFC,PREMISES                      ,Electricity                   ,WEST MERCIA SUPPLIES                    ,07-Mar-11,3210893,4753.72
Environmental Services,Highways & Transport,PFC,PREMISES                      ,Electricity                   ,WEST MERCIA SUPPLIES                    ,18-Feb-11,3210892,5932.59
Environmental Services,Highways & Transport,PFD,PREMISES                      ,Street Light Repairs,PRYSMIAN CABLES & SYSTEMS LTD           ,08-Feb-11,3208671,1302.27
Environmental Services,Highways & Transport,PFD,PREMISES                      ,Electricity                   ,WEST MERCIA SUPPLIES                    ,07-Mar-11,3210893,4337.27
Environmental Services,Highways & Transport,PFD,PREMISES                      ,Electricity                   ,WEST MERCIA SUPPLIES                    ,18-Feb-11,3210892,5412.87
Environmental Services,Highways & Transport,PLE,SUPPLIES & SERVICES           ,Consultancy                   ,JACOBS ENGINEERING UK LTD               ,08-Mar-11,3209412,1600
Environmental Services,Highways & Transport,PMS,SUPPLIES & SERVICES           ,Payments to Contractors       ,STOPWATCH THEATRE COMPANY               ,02-Feb-11,3201861,3900
Environmental Services,Highways & Transport,PMS,SUPPLIES & SERVICES           ,Payments to Contractors       ,FELTON COMMUNICATION LTD                ,02-Mar-11,3205911,3965
Environmental Services,Highways & Transport,PQK,CURRENT LIABILITIES           ,Payments to Contractors       ,K & M CONSTRUCTION LTD                  ,01-Mar-11,3212296,1404.95
Environmental Services,Highways & Transport,PQK,CURRENT LIABILITIES           ,Payments to Contractors       ,GROUND INVESTIGATION & PILING LTD       ,17-Mar-11,3212883,3982.02
Environmental Services,Highways & Transport,PQK,CURRENT LIABILITIES           ,External Professional Fees    ,JACOBS ENGINEERING UK LTD               ,08-Mar-11,3209412,4115
Environmental Services,Highways & Transport,PQK,CURRENT LIABILITIES           ,Payments to Contractors       ,ADROIT CONSTRUCTION SERVICES PLC        ,10-Mar-11,3210895,13896.52
Environmental Services,Highways & Transport,PQP,CURRENT LIABILITIES           ,Payments to Contractors       ,TELFORD & WREKIN SERVICES LTD           ,08-Sep-10,3209488,505.55
Environmental Services,Highways & Transport,PQP,CURRENT LIABILITIES           ,Payments to Contractors       ,TRAFFIC AND COMMERCIAL SIGNS LTD        ,16-Mar-11,3212880,523.15
Environmental Services,Highways & Transport,PQP,CURRENT LIABILITIES           ,Payments to Contractors       ,A J B CONTRACTING LTD                   ,10-Feb-11,3201157,550
Environmental Services,Highways & Transport,PQP,CURRENT LIABILITIES           ,Payments to Contractors       ,A J B CONTRACTING LTD                   ,14-Mar-11,3211072,600
Environmental Services,Highways & Transport,PQP,CURRENT LIABILITIES           ,Payments to Contractors       ,K & M CONSTRUCTION LTD                  ,27-Jan-11,3201162,679.27
Environmental Services,Highways & Transport,PQP,CURRENT LIABILITIES           ,Payments to Contractors       ,A J B CONTRACTING LTD                   ,14-Mar-11,3211075,825
Environmental Services,Highways & Transport,PQP,CURRENT LIABILITIES           ,Payments to Contractors       ,REDIWELD RUBBER & PLASTICS LTD          ,02-Mar-11,3209262,946.4
Environmental Services,Highways & Transport,PQP,CURRENT LIABILITIES           ,Payments to Contractors       ,S J HOPKINS STREETLIGHTING              ,09-Mar-11,3212825,1120.8
Environmental Services,Highways & Transport,PQP,CURRENT LIABILITIES           ,Payments to Contractors       ,A J B CONTRACTING LTD                   ,03-Mar-11,3206149,1240
Environmental Services,Highways & Transport,PQP,CURRENT LIABILITIES           ,Payments to Contractors       ,A J B CONTRACTING LTD                   ,03-Mar-11,3206148,1300
Environmental Services,Highways & Transport,PQP,CURRENT LIABILITIES           ,Payments to Contractors       ,A J B CONTRACTING LTD                   ,14-Mar-11,3211166,1305
Environmental Services,Highways & Transport,PQP,CURRENT LIABILITIES           ,Direct Labour Recharge        ,E.ON UK ENERGY SERVICES LTD             ,06-Sep-10,3205337,1585
Environmental Services,Highways & Transport,PQP,CURRENT LIABILITIES           ,Payments to Contractors       ,BROXAP  LIMITED                         ,08-Feb-11,3205193,1590
Environmental Services,Highways & Transport,PQP,CURRENT LIABILITIES           ,Payments to Contractors       ,M BISSELL DISPLAY LIMITED               ,10-Feb-11,3198909,1731.1
Environmental Services,Highways & Transport,PQP,CURRENT LIABILITIES           ,Payments to Contractors       ,E.ON UK ENERGY SERVICES LIMITED         ,21-Feb-11,3208672,1848.5
Environmental Services,Highways & Transport,PQP,CURRENT LIABILITIES           ,Payments to Contractors       ,S J HOPKINS STREETLIGHTING              ,17-Jan-11,3201695,1961.4
Environmental Services,Highways & Transport,PQP,CURRENT LIABILITIES           ,Payments to Contractors       ,A J B CONTRACTING LTD                   ,14-Mar-11,3211074,1980
Environmental Services,Highways & Transport,PQP,CURRENT LIABILITIES           ,Payments to Contractors       ,TELFORD & WREKIN SERVICES LTD           ,16-Mar-11,3211162,2188.52
Environmental Services,Highways & Transport,PQP,CURRENT LIABILITIES           ,External Professional Fees    ,SHROPSHIRE WILDLIFE SURVEYS             ,17-Mar-11,3218803,2360
Environmental Services,Highways & Transport,PQP,CURRENT LIABILITIES           ,External Professional Fees    ,JACOBS ENGINEERING UK LTD               ,08-Mar-11,3209412,2540
